NUMERO_MANDATO;RIGA_MANDATO;QUIET;IMPORTO_RIGA;IMPORTO_MANDATO;BENEFICIARIO;CIG;DATA_MANDATO;CAPITOLO;ARTICOLO;NUMERO_IMPEGNO;TITOLO;DESCR_TITOLO;LIVELLO_II;DESCR_LIVELLO_II;LIVELLO_III;DESCR_LIVELLO_III;LIVELLO_IV;DESCR_LIVELLO_IV;LIVELLO_V;DESCR_LIVELLO_V;DATA_PAG_EFF
1;1;9999999;900;900;TIRO A SEGNO NAZIONALE - SEZIONE MIRANO;ZA53D6B201;08/01/2024;561;0;992;1;Spese correnti;3;Acquisto di beni e servizi;2;Acquisto di servizi;4;Acquisto di servizi per formazione e addestramento del personale dell'ente;999;Acquisto di servizi per altre spese per formazione e addestramento n.a.c.;10/01/2024
2;1;9999999;6.724,64;6.724,64;AVV. TRIBUT. SUPPA MARIA;Z6F3A2CAD8;08/01/2024;963;0;320;1;Spese correnti;3;Acquisto di beni e servizi;2;Acquisto di servizi;11;Prestazioni professionali e specialistiche;6;Patrocinio legale;10/01/2024
3;1;9999999;463,6;463,6;Velocar S.r.l.;ZC33B14325;08/01/2024;2344;1;518;1;Spese correnti;3;Acquisto di beni e servizi;2;Acquisto di servizi;9;Manutenzione ordinaria e riparazioni;5;Manutenzione ordinaria e riparazioni di attrezzature;10/01/2024
4;1;9999999;474,51;474,51;ENEL ENERGIA SPA;Z5A3AB0AFF;08/01/2024;2790;0;641;1;Spese correnti;3;Acquisto di beni e servizi;2;Acquisto di servizi;5;Utenze e canoni;4;Energia elettrica;10/01/2024
5;1;9999999;304,23;304,23;ENEL ENERGIA SPA;Z5A3AB0AFF;08/01/2024;2973;0;640;1;Spese correnti;3;Acquisto di beni e servizi;2;Acquisto di servizi;5;Utenze e canoni;4;Energia elettrica;10/01/2024
6;1;9999999;1.000,00;1.000,00;MOVING S.A.S. DI LAMANNA PIERPAOLO &C.;Z753D09FC5;08/01/2024;4711;0;945;1;Spese correnti;3;Acquisto di beni e servizi;2;Acquisto di servizi;99;Altri servizi;999;Altri servizi diversi n.a.c.;10/01/2024
7;1;9999999;9.882,00;9.882,00;NON SOLO VERDE  SOC. COOP. SOCIALE ONLUS;ZBF3B2D023;08/01/2024;7430;0;521;1;Spese correnti;3;Acquisto di beni e servizi;2;Acquisto di servizi;9;Manutenzione ordinaria e riparazioni;8;Manutenzione ordinaria e riparazioni di beni immobili;10/01/2024
8;1;9999999;316,34;316,34;ENEL ENERGIA SPA;Z5A3AB0AFF;08/01/2024;7552;1;642;1;Spese correnti;3;Acquisto di beni e servizi;2;Acquisto di servizi;5;Utenze e canoni;4;Energia elettrica;10/01/2024
9;1;9999999;5.407,07;5.407,07;MOM - MOBILITA' DI MARCA SPA;ZF1393FD13;08/01/2024;8204;1;1317;1;Spese correnti;3;Acquisto di beni e servizi;2;Acquisto di servizi;15;Contratti di servizio pubblico;3;Contratti di servizio per il trasporto di disabili e anziani;10/01/2024
10;1;9999999;2.732,80;2.732,80;CTP PEROZZO IMPIANTI SRL;Z053CEF288;08/01/2024;11302;3;764;2;Spese in conto capitale;2;Investimenti fissi lordi e acquisto di terreni;1;Beni materiali;9;Beni immobili;19;Fabbricati ad uso strumentale;10/01/2024
11;1;9999999;191,67;191,67;CONSIGLIO DI BACINO PRIULA; ;08/01/2024;2347;1;934;1;Spese correnti;3;Acquisto di beni e servizi;2;Acquisto di servizi;9;Manutenzione ordinaria e riparazioni;1;Manutenzione ordinaria e riparazioni di mezzi di trasporto ad uso civile, di sicurezza e ordine pubblico;09/01/2024
12;1;9999999;42,16;42,16;CONSIGLIO DI BACINO PRIULA; ;08/01/2024;2347;1;934;1;Spese correnti;3;Acquisto di beni e servizi;2;Acquisto di servizi;9;Manutenzione ordinaria e riparazioni;1;Manutenzione ordinaria e riparazioni di mezzi di trasporto ad uso civile, di sicurezza e ordine pubblico;10/01/2024
13;1;9999999;1.840,00;1.840,00;CONSIGLIO DI BACINO PRIULA; ;08/01/2024;7433;0;851;1;Spese correnti;3;Acquisto di beni e servizi;2;Acquisto di servizi;99;Altri servizi;999;Altri servizi diversi n.a.c.;09/01/2024
14;1;9999999;404,8;404,8;CONSIGLIO DI BACINO PRIULA; ;08/01/2024;7433;0;851;1;Spese correnti;3;Acquisto di beni e servizi;2;Acquisto di servizi;99;Altri servizi;999;Altri servizi diversi n.a.c.;10/01/2024
15;1;9999999;81;81;INTERMEDIA IB SRL BROKER;Z8530C2DF5;08/01/2024;1795;0;554;1;Spese correnti;10;Altre spese correnti;4;Premi di assicurazione;1;Premi di assicurazione contro i danni;3;Premi di assicurazione per responsabilità civile verso terzi;10/01/2024
16;1;9999999;1.216,45;2.717,54;ABACO S.P.A.;9,44E+58;08/01/2024;1010;0;1065;1;Spese correnti;3;Acquisto di beni e servizi;2;Acquisto di servizi;3;Aggi di riscossione;999;Altri aggi di riscossione n.a.c.;10/01/2024
16;2;9999999;1.501,09;2.717,54;ABACO S.P.A.;9,44E+58;08/01/2024;1010;0;1065;1;Spese correnti;3;Acquisto di beni e servizi;2;Acquisto di servizi;3;Aggi di riscossione;999;Altri aggi di riscossione n.a.c.;10/01/2024
17;1;9999999;1.000,00;1.000,00;GRUPPO DONNE PREGANZIOL; ;08/01/2024;8252;0;1078;1;Spese correnti;4;Trasferimenti correnti;4;Trasferimenti correnti a Istituzioni Sociali Private;1;Trasferimenti correnti a Istituzioni Sociali Private;1;Trasferimenti correnti a Istituzioni Sociali Private;10/01/2024
18;1;9999999;2.516,99;2.516,99;POLISPORTIVA PREGANZIOL; ;08/01/2024;8361;3;1101;1;Spese correnti;4;Trasferimenti correnti;4;Trasferimenti correnti a Istituzioni Sociali Private;1;Trasferimenti correnti a Istituzioni Sociali Private;1;Trasferimenti correnti a Istituzioni Sociali Private;10/01/2024
19;1;9999999;1.174,60;1.174,60;A.S. ZERMAN A.S.D.; ;08/01/2024;8361;3;1102;1;Spese correnti;4;Trasferimenti correnti;4;Trasferimenti correnti a Istituzioni Sociali Private;1;Trasferimenti correnti a Istituzioni Sociali Private;1;Trasferimenti correnti a Istituzioni Sociali Private;10/01/2024
20;1;9999999;10.235,77;10.235,77;STILELIBERO SSD SRL; ;08/01/2024;8361;3;1103;1;Spese correnti;4;Trasferimenti correnti;4;Trasferimenti correnti a Istituzioni Sociali Private;1;Trasferimenti correnti a Istituzioni Sociali Private;1;Trasferimenti correnti a Istituzioni Sociali Private;10/01/2024
21;1;9999999;4.362,79;4.362,79;GRUPPO SPORTIVO SAMBUGHE' SSD a RL; ;08/01/2024;8361;3;1104;1;Spese correnti;4;Trasferimenti correnti;4;Trasferimenti correnti a Istituzioni Sociali Private;1;Trasferimenti correnti a Istituzioni Sociali Private;1;Trasferimenti correnti a Istituzioni Sociali Private;10/01/2024
22;1;9999999;503,4;503,4;F.C. UNION PRO 1928 S.S.D.R.L.; ;08/01/2024;8361;3;1105;1;Spese correnti;4;Trasferimenti correnti;4;Trasferimenti correnti a Istituzioni Sociali Private;1;Trasferimenti correnti a Istituzioni Sociali Private;1;Trasferimenti correnti a Istituzioni Sociali Private;10/01/2024
23;1;9999999;839;839;A.S.D. SCUOLA RUGBY DOSSON; ;08/01/2024;8361;3;1106;1;Spese correnti;4;Trasferimenti correnti;4;Trasferimenti correnti a Istituzioni Sociali Private;1;Trasferimenti correnti a Istituzioni Sociali Private;1;Trasferimenti correnti a Istituzioni Sociali Private;10/01/2024
24;1;9999999;335,6;335,6;REN BU KAN MOGLIANO E PREGANZIOL ASD; ;08/01/2024;8361;3;1107;1;Spese correnti;4;Trasferimenti correnti;4;Trasferimenti correnti a Istituzioni Sociali Private;1;Trasferimenti correnti a Istituzioni Sociali Private;1;Trasferimenti correnti a Istituzioni Sociali Private;10/01/2024
25;1;9999999;167,8;167,8;ASSOCIAZIONE SPORTIVA FRESCADA; ;08/01/2024;8361;3;1108;1;Spese correnti;4;Trasferimenti correnti;4;Trasferimenti correnti a Istituzioni Sociali Private;1;Trasferimenti correnti a Istituzioni Sociali Private;1;Trasferimenti correnti a Istituzioni Sociali Private;10/01/2024
26;1;9999999;2.600,00;2.600,00;ASS. VOLONTARI PROTEZIONE CIVILE PREGANZIOL; ;08/01/2024;6710;0;1111;1;Spese correnti;4;Trasferimenti correnti;4;Trasferimenti correnti a Istituzioni Sociali Private;1;Trasferimenti correnti a Istituzioni Sociali Private;1;Trasferimenti correnti a Istituzioni Sociali Private;10/01/2024
27;1;9999999;1.006,79;1.006,79;POLISPORTIVA CASIER SSD ARL; ;08/01/2024;8361;3;1109;1;Spese correnti;4;Trasferimenti correnti;4;Trasferimenti correnti a Istituzioni Sociali Private;1;Trasferimenti correnti a Istituzioni Sociali Private;1;Trasferimenti correnti a Istituzioni Sociali Private;10/01/2024
28;1;9999999;1.165,47;1.165,47;AUSER INSIEME CIRCOLO RICREATIVO ANZIANI S.TROVASO; ;08/01/2024;4760;0;1133;1;Spese correnti;4;Trasferimenti correnti;4;Trasferimenti correnti a Istituzioni Sociali Private;1;Trasferimenti correnti a Istituzioni Sociali Private;1;Trasferimenti correnti a Istituzioni Sociali Private;10/01/2024
29;1;9999999;3.163,71;3.163,71;CIRCOLO RICREATIVO ANZIANI PREGANZIOL; ;08/01/2024;4760;0;1132;1;Spese correnti;4;Trasferimenti correnti;4;Trasferimenti correnti a Istituzioni Sociali Private;1;Trasferimenti correnti a Istituzioni Sociali Private;1;Trasferimenti correnti a Istituzioni Sociali Private;10/01/2024
37;1;9999999;78;78;ADA con TREVISO - Associazione per la Promozione Sociale - APS; ;09/01/2024;8361;3;527;1;Spese correnti;4;Trasferimenti correnti;4;Trasferimenti correnti a Istituzioni Sociali Private;1;Trasferimenti correnti a Istituzioni Sociali Private;1;Trasferimenti correnti a Istituzioni Sociali Private;12/01/2024
38;1;9999999;1.000,00;1.000,00;SOGEST ITALIA SRL;Z08372EAAD;09/01/2024;1185;1;715;1;Spese correnti;3;Acquisto di beni e servizi;2;Acquisto di servizi;9;Manutenzione ordinaria e riparazioni;4;Manutenzione ordinaria e riparazioni di impianti e macchinari;12/01/2024
39;1;9999999;60;60;SOGEST ITALIA SRL;Z08372EAAD;09/01/2024;1185;2;716;1;Spese correnti;3;Acquisto di beni e servizi;2;Acquisto di servizi;9;Manutenzione ordinaria e riparazioni;4;Manutenzione ordinaria e riparazioni di impianti e macchinari;12/01/2024
40;1;9999999;121,44;4.121,43;PULITORI ED AFFINI SPA;87752258BF;09/01/2024;1794;0;656;1;Spese correnti;3;Acquisto di beni e servizi;2;Acquisto di servizi;13;Servizi ausiliari per il funzionamento dell'ente;2;Servizi di pulizia e lavanderia;12/01/2024
40;2;9999999;3.999,99;4.121,43;PULITORI ED AFFINI SPA;87752258BF;09/01/2024;1794;0;656;1;Spese correnti;3;Acquisto di beni e servizi;2;Acquisto di servizi;13;Servizi ausiliari per il funzionamento dell'ente;2;Servizi di pulizia e lavanderia;12/01/2024
41;1;9999999;1.523,52;1.523,52;SOGEST ITALIA SRL;Z08372EAAD;09/01/2024;1805;0;714;1;Spese correnti;3;Acquisto di beni e servizi;2;Acquisto di servizi;13;Servizi ausiliari per il funzionamento dell'ente;1;Servizi di sorveglianza, custodia e accoglienza;12/01/2024
42;1;9999999;3.327,05;3.327,05;Z.M. SRL;Z163D9E65A;09/01/2024;2770;1;1032;1;Spese correnti;3;Acquisto di beni e servizi;2;Acquisto di servizi;9;Manutenzione ordinaria e riparazioni;4;Manutenzione ordinaria e riparazioni di impianti e macchinari;12/01/2024
43;1;9999999;7.895,41;7.895,41;ELETTROMECCANICA TAMAI A. E MINETTO G. & C. SNC;A018FB7BB9;09/01/2024;7435;2;895;1;Spese correnti;3;Acquisto di beni e servizi;2;Acquisto di servizi;9;Manutenzione ordinaria e riparazioni;4;Manutenzione ordinaria e riparazioni di impianti e macchinari;12/01/2024
44;1;9999999;6.796,69;6.796,69;ELETTROMECCANICA TAMAI A. E MINETTO G. & C. SNC;Z563DECA03;09/01/2024;7435;2;1115;1;Spese correnti;3;Acquisto di beni e servizi;2;Acquisto di servizi;9;Manutenzione ordinaria e riparazioni;4;Manutenzione ordinaria e riparazioni di impianti e macchinari;12/01/2024
45;1;9999999;730,67;730,67;Z.M. SRL;Z163D9E65A;09/01/2024;7550;0;1031;1;Spese correnti;3;Acquisto di beni e servizi;2;Acquisto di servizi;9;Manutenzione ordinaria e riparazioni;4;Manutenzione ordinaria e riparazioni di impianti e macchinari;12/01/2024
46;1;9999999;309,69;309,69;EDILVERDE S.R.L.;Z82398837C;09/01/2024;1147;1;149;1;Spese correnti;3;Acquisto di beni e servizi;1;Acquisto di beni;2;Altri beni di consumo;999;Altri beni e materiali di consumo n.a.c.;12/01/2024
47;1;9999999;174,06;174,06;EDILVERDE S.R.L.;Z82398837C;09/01/2024;1300;0;150;1;Spese correnti;3;Acquisto di beni e servizi;1;Acquisto di beni;2;Altri beni di consumo;999;Altri beni e materiali di consumo n.a.c.;12/01/2024
48;1;9999999;700;700;REMOR S.R.L.;Z053D6C892;09/01/2024;4510;0;988;1;Spese correnti;3;Acquisto di beni e servizi;1;Acquisto di beni;2;Altri beni di consumo;999;Altri beni e materiali di consumo n.a.c.;12/01/2024
49;1;9999999;349,2;349,2;REMOR S.R.L.;Z053D6C892;09/01/2024;4540;0;989;1;Spese correnti;3;Acquisto di beni e servizi;2;Acquisto di servizi;9;Manutenzione ordinaria e riparazioni;3;Manutenzione ordinaria e riparazioni di mobili e arredi;12/01/2024
50;1;9999999;305;305;REMOR S.R.L.;Z053D6C892;09/01/2024;4540;0;1020;1;Spese correnti;3;Acquisto di beni e servizi;2;Acquisto di servizi;9;Manutenzione ordinaria e riparazioni;11;Manutenzione ordinaria e riparazioni di altri beni materiali;12/01/2024
51;1;9999999;326,33;326,33;EDILVERDE S.R.L.;Z82398837C;09/01/2024;5620;2;148;1;Spese correnti;3;Acquisto di beni e servizi;1;Acquisto di beni;2;Altri beni di consumo;999;Altri beni e materiali di consumo n.a.c.;12/01/2024
52;1;9999999;560;560;EDILVERDE S.R.L.;Z82398837C;09/01/2024;5640;0;151;1;Spese correnti;3;Acquisto di beni e servizi;1;Acquisto di beni;2;Altri beni di consumo;999;Altri beni e materiali di consumo n.a.c.;12/01/2024
53;1;9999999;8.223,48;8.223,48;CODESS SOCIALE-COOP. ONLUS;8855832FBD;09/01/2024;7560;1;771;1;Spese correnti;3;Acquisto di beni e servizi;2;Acquisto di servizi;15;Contratti di servizio pubblico;10;Contratti di servizio di asilo nido;12/01/2024
54;1;9999999;8.274,02;17.059,54;CODESS SOCIALE-COOP. ONLUS;8855832FBD;09/01/2024;7560;1;771;1;Spese correnti;3;Acquisto di beni e servizi;2;Acquisto di servizi;15;Contratti di servizio pubblico;10;Contratti di servizio di asilo nido;12/01/2024
54;2;9999999;8.785,52;17.059,54;CODESS SOCIALE-COOP. ONLUS;8855832FBD;09/01/2024;7560;1;771;1;Spese correnti;3;Acquisto di beni e servizi;2;Acquisto di servizi;15;Contratti di servizio pubblico;10;Contratti di servizio di asilo nido;12/01/2024
55;1;9999999;2.399,13;13.426,19;CODESS SOCIALE-COOP. ONLUS;8855832FBD;09/01/2024;7560;1;1195;1;Spese correnti;3;Acquisto di beni e servizi;2;Acquisto di servizi;15;Contratti di servizio pubblico;10;Contratti di servizio di asilo nido;12/01/2024
55;2;9999999;11.027,06;13.426,19;CODESS SOCIALE-COOP. ONLUS;8855832FBD;09/01/2024;7560;1;1195;1;Spese correnti;3;Acquisto di beni e servizi;2;Acquisto di servizi;15;Contratti di servizio pubblico;10;Contratti di servizio di asilo nido;12/01/2024
56;1;9999999;474,16;474,16;F.LLI LANDO SPA;ZEE3C7E685;09/01/2024;8134;1;1083;1;Spese correnti;3;Acquisto di beni e servizi;1;Acquisto di beni;2;Altri beni di consumo;999;Altri beni e materiali di consumo n.a.c.;12/01/2024
57;1;9999999;6.475,84;6.475,84;F.LLI LANDO SPA;ZEE3C7E685;09/01/2024;8170;0;1082;1;Spese correnti;3;Acquisto di beni e servizi;1;Acquisto di beni;2;Altri beni di consumo;999;Altri beni e materiali di consumo n.a.c.;12/01/2024
58;1;9999999;317,2;317,2;OMESSO NOMINATIVO NEL RISPETTO DELLA NORMATIVA SULLA PROTEZIONE DATI PERSONALI;Z2F3D82627;09/01/2024;1340;0;1007;1;Spese correnti;3;Acquisto di beni e servizi;2;Acquisto di servizi;11;Prestazioni professionali e specialistiche;999;Altre prestazioni professionali e specialistiche n.a.c.;12/01/2024
59;1;9999999;119,61;119,61;ENEL ENERGIA SPA;9619395FDC;09/01/2024;1346;0;482;1;Spese correnti;3;Acquisto di beni e servizi;2;Acquisto di servizi;5;Utenze e canoni;4;Energia elettrica;12/01/2024
60;1;9999999;1.305,84;1.305,84;ADPARTNERS SRL;Z233D8162C;09/01/2024;1780;0;1005;1;Spese correnti;3;Acquisto di beni e servizi;1;Acquisto di beni;2;Altri beni di consumo;6;Materiale informatico;12/01/2024
61;1;9999999;4,28;1.828,18;ENEL ENERGIA SPA;9619395FDC;09/01/2024;1801;0;483;1;Spese correnti;3;Acquisto di beni e servizi;2;Acquisto di servizi;5;Utenze e canoni;4;Energia elettrica;12/01/2024
61;2;9999999;46,03;1.828,18;ENEL ENERGIA SPA;9619395FDC;09/01/2024;1801;0;483;1;Spese correnti;3;Acquisto di beni e servizi;2;Acquisto di servizi;5;Utenze e canoni;4;Energia elettrica;12/01/2024
61;3;9999999;191,03;1.828,18;ENEL ENERGIA SPA;9619395FDC;09/01/2024;1801;0;483;1;Spese correnti;3;Acquisto di beni e servizi;2;Acquisto di servizi;5;Utenze e canoni;4;Energia elettrica;12/01/2024
61;4;9999999;507,69;1.828,18;ENEL ENERGIA SPA;9619395FDC;09/01/2024;1801;0;483;1;Spese correnti;3;Acquisto di beni e servizi;2;Acquisto di servizi;5;Utenze e canoni;4;Energia elettrica;12/01/2024
61;5;9999999;537,14;1.828,18;ENEL ENERGIA SPA;9619395FDC;09/01/2024;1801;0;483;1;Spese correnti;3;Acquisto di beni e servizi;2;Acquisto di servizi;5;Utenze e canoni;4;Energia elettrica;12/01/2024
61;6;9999999;542,01;1.828,18;ENEL ENERGIA SPA;9619395FDC;09/01/2024;1801;0;483;1;Spese correnti;3;Acquisto di beni e servizi;2;Acquisto di servizi;5;Utenze e canoni;4;Energia elettrica;12/01/2024
62;1;9999999;236,34;565,29;ENEL ENERGIA SPA;9619395FDC;09/01/2024;2973;0;484;1;Spese correnti;3;Acquisto di beni e servizi;2;Acquisto di servizi;5;Utenze e canoni;4;Energia elettrica;12/01/2024
62;2;9999999;328,95;565,29;ENEL ENERGIA SPA;9619395FDC;09/01/2024;2973;0;484;1;Spese correnti;3;Acquisto di beni e servizi;2;Acquisto di servizi;5;Utenze e canoni;4;Energia elettrica;12/01/2024
63;1;9999999;960,42;960,42;ENEL ENERGIA SPA;9619395FDC;09/01/2024;4527;0;485;1;Spese correnti;3;Acquisto di beni e servizi;2;Acquisto di servizi;5;Utenze e canoni;4;Energia elettrica;12/01/2024
64;1;9999999;70,88;70,88;ENEL ENERGIA SPA;9619395FDC;09/01/2024;4686;1;486;1;Spese correnti;3;Acquisto di beni e servizi;2;Acquisto di servizi;5;Utenze e canoni;4;Energia elettrica;12/01/2024
65;1;9999999;0,24;1.845,88;ENEL ENERGIA SPA;9619395FDC;09/01/2024;5930;0;481;1;Spese correnti;3;Acquisto di beni e servizi;2;Acquisto di servizi;5;Utenze e canoni;4;Energia elettrica;12/01/2024
65;2;9999999;1,05;1.845,88;ENEL ENERGIA SPA;9619395FDC;09/01/2024;5930;0;481;1;Spese correnti;3;Acquisto di beni e servizi;2;Acquisto di servizi;5;Utenze e canoni;4;Energia elettrica;12/01/2024
65;3;9999999;7,33;1.845,88;ENEL ENERGIA SPA;9619395FDC;09/01/2024;5930;0;481;1;Spese correnti;3;Acquisto di beni e servizi;2;Acquisto di servizi;5;Utenze e canoni;4;Energia elettrica;12/01/2024
65;4;9999999;9,66;1.845,88;ENEL ENERGIA SPA;9619395FDC;09/01/2024;5930;0;481;1;Spese correnti;3;Acquisto di beni e servizi;2;Acquisto di servizi;5;Utenze e canoni;4;Energia elettrica;12/01/2024
65;5;9999999;9,66;1.845,88;ENEL ENERGIA SPA;9619395FDC;09/01/2024;5930;0;481;1;Spese correnti;3;Acquisto di beni e servizi;2;Acquisto di servizi;5;Utenze e canoni;4;Energia elettrica;12/01/2024
65;6;9999999;10,89;1.845,88;ENEL ENERGIA SPA;9619395FDC;09/01/2024;5930;0;481;1;Spese correnti;3;Acquisto di beni e servizi;2;Acquisto di servizi;5;Utenze e canoni;4;Energia elettrica;12/01/2024
65;7;9999999;12,94;1.845,88;ENEL ENERGIA SPA;9619395FDC;09/01/2024;5930;0;481;1;Spese correnti;3;Acquisto di beni e servizi;2;Acquisto di servizi;5;Utenze e canoni;4;Energia elettrica;12/01/2024
65;8;9999999;14,75;1.845,88;ENEL ENERGIA SPA;9619395FDC;09/01/2024;5930;0;481;1;Spese correnti;3;Acquisto di beni e servizi;2;Acquisto di servizi;5;Utenze e canoni;4;Energia elettrica;12/01/2024
65;9;9999999;16,42;1.845,88;ENEL ENERGIA SPA;9619395FDC;09/01/2024;5930;0;481;1;Spese correnti;3;Acquisto di beni e servizi;2;Acquisto di servizi;5;Utenze e canoni;4;Energia elettrica;12/01/2024
65;10;9999999;17,46;1.845,88;ENEL ENERGIA SPA;9619395FDC;09/01/2024;5930;0;481;1;Spese correnti;3;Acquisto di beni e servizi;2;Acquisto di servizi;5;Utenze e canoni;4;Energia elettrica;12/01/2024
65;11;9999999;19,3;1.845,88;ENEL ENERGIA SPA;9619395FDC;09/01/2024;5930;0;481;1;Spese correnti;3;Acquisto di beni e servizi;2;Acquisto di servizi;5;Utenze e canoni;4;Energia elettrica;12/01/2024
65;12;9999999;21,29;1.845,88;ENEL ENERGIA SPA;9619395FDC;09/01/2024;5930;0;481;1;Spese correnti;3;Acquisto di beni e servizi;2;Acquisto di servizi;5;Utenze e canoni;4;Energia elettrica;12/01/2024
65;13;9999999;29,13;1.845,88;ENEL ENERGIA SPA;9619395FDC;09/01/2024;5930;0;481;1;Spese correnti;3;Acquisto di beni e servizi;2;Acquisto di servizi;5;Utenze e canoni;4;Energia elettrica;12/01/2024
65;14;9999999;29,96;1.845,88;ENEL ENERGIA SPA;9619395FDC;09/01/2024;5930;0;481;1;Spese correnti;3;Acquisto di beni e servizi;2;Acquisto di servizi;5;Utenze e canoni;4;Energia elettrica;12/01/2024
65;15;9999999;31,52;1.845,88;ENEL ENERGIA SPA;9619395FDC;09/01/2024;5930;0;481;1;Spese correnti;3;Acquisto di beni e servizi;2;Acquisto di servizi;5;Utenze e canoni;4;Energia elettrica;12/01/2024
65;16;9999999;33,51;1.845,88;ENEL ENERGIA SPA;9619395FDC;09/01/2024;5930;0;481;1;Spese correnti;3;Acquisto di beni e servizi;2;Acquisto di servizi;5;Utenze e canoni;4;Energia elettrica;12/01/2024
65;17;9999999;35,64;1.845,88;ENEL ENERGIA SPA;9619395FDC;09/01/2024;5930;0;481;1;Spese correnti;3;Acquisto di beni e servizi;2;Acquisto di servizi;5;Utenze e canoni;4;Energia elettrica;12/01/2024
65;18;9999999;37,22;1.845,88;ENEL ENERGIA SPA;9619395FDC;09/01/2024;5930;0;481;1;Spese correnti;3;Acquisto di beni e servizi;2;Acquisto di servizi;5;Utenze e canoni;4;Energia elettrica;12/01/2024
65;19;9999999;40,88;1.845,88;ENEL ENERGIA SPA;9619395FDC;09/01/2024;5930;0;481;1;Spese correnti;3;Acquisto di beni e servizi;2;Acquisto di servizi;5;Utenze e canoni;4;Energia elettrica;12/01/2024
65;20;9999999;45,7;1.845,88;ENEL ENERGIA SPA;9619395FDC;09/01/2024;5930;0;481;1;Spese correnti;3;Acquisto di beni e servizi;2;Acquisto di servizi;5;Utenze e canoni;4;Energia elettrica;12/01/2024
65;21;9999999;47,41;1.845,88;ENEL ENERGIA SPA;9619395FDC;09/01/2024;5930;0;481;1;Spese correnti;3;Acquisto di beni e servizi;2;Acquisto di servizi;5;Utenze e canoni;4;Energia elettrica;12/01/2024
65;22;9999999;50,26;1.845,88;ENEL ENERGIA SPA;9619395FDC;09/01/2024;5930;0;481;1;Spese correnti;3;Acquisto di beni e servizi;2;Acquisto di servizi;5;Utenze e canoni;4;Energia elettrica;12/01/2024
65;23;9999999;50,34;1.845,88;ENEL ENERGIA SPA;9619395FDC;09/01/2024;5930;0;481;1;Spese correnti;3;Acquisto di beni e servizi;2;Acquisto di servizi;5;Utenze e canoni;4;Energia elettrica;12/01/2024
65;24;9999999;50,92;1.845,88;ENEL ENERGIA SPA;9619395FDC;09/01/2024;5930;0;481;1;Spese correnti;3;Acquisto di beni e servizi;2;Acquisto di servizi;5;Utenze e canoni;4;Energia elettrica;12/01/2024
65;25;9999999;51,33;1.845,88;ENEL ENERGIA SPA;9619395FDC;09/01/2024;5930;0;481;1;Spese correnti;3;Acquisto di beni e servizi;2;Acquisto di servizi;5;Utenze e canoni;4;Energia elettrica;12/01/2024
65;26;9999999;51,46;1.845,88;ENEL ENERGIA SPA;9619395FDC;09/01/2024;5930;0;481;1;Spese correnti;3;Acquisto di beni e servizi;2;Acquisto di servizi;5;Utenze e canoni;4;Energia elettrica;12/01/2024
65;27;9999999;51,72;1.845,88;ENEL ENERGIA SPA;9619395FDC;09/01/2024;5930;0;481;1;Spese correnti;3;Acquisto di beni e servizi;2;Acquisto di servizi;5;Utenze e canoni;4;Energia elettrica;12/01/2024
65;28;9999999;52,8;1.845,88;ENEL ENERGIA SPA;9619395FDC;09/01/2024;5930;0;481;1;Spese correnti;3;Acquisto di beni e servizi;2;Acquisto di servizi;5;Utenze e canoni;4;Energia elettrica;12/01/2024
65;29;9999999;56,41;1.845,88;ENEL ENERGIA SPA;9619395FDC;09/01/2024;5930;0;481;1;Spese correnti;3;Acquisto di beni e servizi;2;Acquisto di servizi;5;Utenze e canoni;4;Energia elettrica;12/01/2024
65;30;9999999;59,76;1.845,88;ENEL ENERGIA SPA;9619395FDC;09/01/2024;5930;0;481;1;Spese correnti;3;Acquisto di beni e servizi;2;Acquisto di servizi;5;Utenze e canoni;4;Energia elettrica;12/01/2024
65;31;9999999;60,66;1.845,88;ENEL ENERGIA SPA;9619395FDC;09/01/2024;5930;0;481;1;Spese correnti;3;Acquisto di beni e servizi;2;Acquisto di servizi;5;Utenze e canoni;4;Energia elettrica;12/01/2024
65;32;9999999;73,04;1.845,88;ENEL ENERGIA SPA;9619395FDC;09/01/2024;5930;0;481;1;Spese correnti;3;Acquisto di beni e servizi;2;Acquisto di servizi;5;Utenze e canoni;4;Energia elettrica;12/01/2024
65;33;9999999;76,29;1.845,88;ENEL ENERGIA SPA;9619395FDC;09/01/2024;5930;0;481;1;Spese correnti;3;Acquisto di beni e servizi;2;Acquisto di servizi;5;Utenze e canoni;4;Energia elettrica;12/01/2024
65;34;9999999;76,47;1.845,88;ENEL ENERGIA SPA;9619395FDC;09/01/2024;5930;0;481;1;Spese correnti;3;Acquisto di beni e servizi;2;Acquisto di servizi;5;Utenze e canoni;4;Energia elettrica;12/01/2024
65;35;9999999;76,47;1.845,88;ENEL ENERGIA SPA;9619395FDC;09/01/2024;5930;0;481;1;Spese correnti;3;Acquisto di beni e servizi;2;Acquisto di servizi;5;Utenze e canoni;4;Energia elettrica;12/01/2024
65;36;9999999;100,94;1.845,88;ENEL ENERGIA SPA;9619395FDC;09/01/2024;5930;0;481;1;Spese correnti;3;Acquisto di beni e servizi;2;Acquisto di servizi;5;Utenze e canoni;4;Energia elettrica;12/01/2024
65;37;9999999;104,25;1.845,88;ENEL ENERGIA SPA;9619395FDC;09/01/2024;5930;0;481;1;Spese correnti;3;Acquisto di beni e servizi;2;Acquisto di servizi;5;Utenze e canoni;4;Energia elettrica;12/01/2024
65;38;9999999;104,8;1.845,88;ENEL ENERGIA SPA;9619395FDC;09/01/2024;5930;0;481;1;Spese correnti;3;Acquisto di beni e servizi;2;Acquisto di servizi;5;Utenze e canoni;4;Energia elettrica;12/01/2024
65;39;9999999;111,48;1.845,88;ENEL ENERGIA SPA;9619395FDC;09/01/2024;5930;0;481;1;Spese correnti;3;Acquisto di beni e servizi;2;Acquisto di servizi;5;Utenze e canoni;4;Energia elettrica;12/01/2024
65;40;9999999;114,52;1.845,88;ENEL ENERGIA SPA;9619395FDC;09/01/2024;5930;0;481;1;Spese correnti;3;Acquisto di beni e servizi;2;Acquisto di servizi;5;Utenze e canoni;4;Energia elettrica;12/01/2024
66;1;9999999;140,67;13.922,36;ENEL ENERGIA SPA;9619395FDC;09/01/2024;5930;0;481;1;Spese correnti;3;Acquisto di beni e servizi;2;Acquisto di servizi;5;Utenze e canoni;4;Energia elettrica;12/01/2024
66;2;9999999;144,16;13.922,36;ENEL ENERGIA SPA;9619395FDC;09/01/2024;5930;0;481;1;Spese correnti;3;Acquisto di beni e servizi;2;Acquisto di servizi;5;Utenze e canoni;4;Energia elettrica;12/01/2024
66;3;9999999;151,62;13.922,36;ENEL ENERGIA SPA;9619395FDC;09/01/2024;5930;0;481;1;Spese correnti;3;Acquisto di beni e servizi;2;Acquisto di servizi;5;Utenze e canoni;4;Energia elettrica;12/01/2024
66;4;9999999;152,51;13.922,36;ENEL ENERGIA SPA;9619395FDC;09/01/2024;5930;0;481;1;Spese correnti;3;Acquisto di beni e servizi;2;Acquisto di servizi;5;Utenze e canoni;4;Energia elettrica;12/01/2024
66;5;9999999;154,82;13.922,36;ENEL ENERGIA SPA;9619395FDC;09/01/2024;5930;0;481;1;Spese correnti;3;Acquisto di beni e servizi;2;Acquisto di servizi;5;Utenze e canoni;4;Energia elettrica;12/01/2024
66;6;9999999;156,55;13.922,36;ENEL ENERGIA SPA;9619395FDC;09/01/2024;5930;0;481;1;Spese correnti;3;Acquisto di beni e servizi;2;Acquisto di servizi;5;Utenze e canoni;4;Energia elettrica;12/01/2024
66;7;9999999;173,2;13.922,36;ENEL ENERGIA SPA;9619395FDC;09/01/2024;5930;0;481;1;Spese correnti;3;Acquisto di beni e servizi;2;Acquisto di servizi;5;Utenze e canoni;4;Energia elettrica;12/01/2024
66;8;9999999;189,44;13.922,36;ENEL ENERGIA SPA;9619395FDC;09/01/2024;5930;0;481;1;Spese correnti;3;Acquisto di beni e servizi;2;Acquisto di servizi;5;Utenze e canoni;4;Energia elettrica;12/01/2024
66;9;9999999;196,94;13.922,36;ENEL ENERGIA SPA;9619395FDC;09/01/2024;5930;0;481;1;Spese correnti;3;Acquisto di beni e servizi;2;Acquisto di servizi;5;Utenze e canoni;4;Energia elettrica;12/01/2024
66;10;9999999;200,2;13.922,36;ENEL ENERGIA SPA;9619395FDC;09/01/2024;5930;0;481;1;Spese correnti;3;Acquisto di beni e servizi;2;Acquisto di servizi;5;Utenze e canoni;4;Energia elettrica;12/01/2024
66;11;9999999;200,85;13.922,36;ENEL ENERGIA SPA;9619395FDC;09/01/2024;5930;0;481;1;Spese correnti;3;Acquisto di beni e servizi;2;Acquisto di servizi;5;Utenze e canoni;4;Energia elettrica;12/01/2024
66;12;9999999;209,24;13.922,36;ENEL ENERGIA SPA;9619395FDC;09/01/2024;5930;0;481;1;Spese correnti;3;Acquisto di beni e servizi;2;Acquisto di servizi;5;Utenze e canoni;4;Energia elettrica;12/01/2024
66;13;9999999;210;13.922,36;ENEL ENERGIA SPA;9619395FDC;09/01/2024;5930;0;481;1;Spese correnti;3;Acquisto di beni e servizi;2;Acquisto di servizi;5;Utenze e canoni;4;Energia elettrica;12/01/2024
66;14;9999999;212,02;13.922,36;ENEL ENERGIA SPA;9619395FDC;09/01/2024;5930;0;481;1;Spese correnti;3;Acquisto di beni e servizi;2;Acquisto di servizi;5;Utenze e canoni;4;Energia elettrica;12/01/2024
66;15;9999999;212,78;13.922,36;ENEL ENERGIA SPA;9619395FDC;09/01/2024;5930;0;481;1;Spese correnti;3;Acquisto di beni e servizi;2;Acquisto di servizi;5;Utenze e canoni;4;Energia elettrica;12/01/2024
66;16;9999999;212,78;13.922,36;ENEL ENERGIA SPA;9619395FDC;09/01/2024;5930;0;481;1;Spese correnti;3;Acquisto di beni e servizi;2;Acquisto di servizi;5;Utenze e canoni;4;Energia elettrica;12/01/2024
66;17;9999999;213,71;13.922,36;ENEL ENERGIA SPA;9619395FDC;09/01/2024;5930;0;481;1;Spese correnti;3;Acquisto di beni e servizi;2;Acquisto di servizi;5;Utenze e canoni;4;Energia elettrica;12/01/2024
66;18;9999999;214,71;13.922,36;ENEL ENERGIA SPA;9619395FDC;09/01/2024;5930;0;481;1;Spese correnti;3;Acquisto di beni e servizi;2;Acquisto di servizi;5;Utenze e canoni;4;Energia elettrica;12/01/2024
66;19;9999999;234,44;13.922,36;ENEL ENERGIA SPA;9619395FDC;09/01/2024;5930;0;481;1;Spese correnti;3;Acquisto di beni e servizi;2;Acquisto di servizi;5;Utenze e canoni;4;Energia elettrica;12/01/2024
66;20;9999999;239,41;13.922,36;ENEL ENERGIA SPA;9619395FDC;09/01/2024;5930;0;481;1;Spese correnti;3;Acquisto di beni e servizi;2;Acquisto di servizi;5;Utenze e canoni;4;Energia elettrica;12/01/2024
66;21;9999999;242,48;13.922,36;ENEL ENERGIA SPA;9619395FDC;09/01/2024;5930;0;481;1;Spese correnti;3;Acquisto di beni e servizi;2;Acquisto di servizi;5;Utenze e canoni;4;Energia elettrica;12/01/2024
66;22;9999999;261,87;13.922,36;ENEL ENERGIA SPA;9619395FDC;09/01/2024;5930;0;481;1;Spese correnti;3;Acquisto di beni e servizi;2;Acquisto di servizi;5;Utenze e canoni;4;Energia elettrica;12/01/2024
66;23;9999999;394,74;13.922,36;ENEL ENERGIA SPA;9619395FDC;09/01/2024;5930;0;481;1;Spese correnti;3;Acquisto di beni e servizi;2;Acquisto di servizi;5;Utenze e canoni;4;Energia elettrica;12/01/2024
66;24;9999999;398,74;13.922,36;ENEL ENERGIA SPA;9619395FDC;09/01/2024;5930;0;481;1;Spese correnti;3;Acquisto di beni e servizi;2;Acquisto di servizi;5;Utenze e canoni;4;Energia elettrica;12/01/2024
66;25;9999999;403,88;13.922,36;ENEL ENERGIA SPA;9619395FDC;09/01/2024;5930;0;481;1;Spese correnti;3;Acquisto di beni e servizi;2;Acquisto di servizi;5;Utenze e canoni;4;Energia elettrica;12/01/2024
66;26;9999999;432,7;13.922,36;ENEL ENERGIA SPA;9619395FDC;09/01/2024;5930;0;481;1;Spese correnti;3;Acquisto di beni e servizi;2;Acquisto di servizi;5;Utenze e canoni;4;Energia elettrica;12/01/2024
66;27;9999999;454,54;13.922,36;ENEL ENERGIA SPA;9619395FDC;09/01/2024;5930;0;481;1;Spese correnti;3;Acquisto di beni e servizi;2;Acquisto di servizi;5;Utenze e canoni;4;Energia elettrica;12/01/2024
66;28;9999999;457,81;13.922,36;ENEL ENERGIA SPA;9619395FDC;09/01/2024;5930;0;481;1;Spese correnti;3;Acquisto di beni e servizi;2;Acquisto di servizi;5;Utenze e canoni;4;Energia elettrica;12/01/2024
66;29;9999999;498,6;13.922,36;ENEL ENERGIA SPA;9619395FDC;09/01/2024;5930;0;481;1;Spese correnti;3;Acquisto di beni e servizi;2;Acquisto di servizi;5;Utenze e canoni;4;Energia elettrica;12/01/2024
66;30;9999999;516,52;13.922,36;ENEL ENERGIA SPA;9619395FDC;09/01/2024;5930;0;481;1;Spese correnti;3;Acquisto di beni e servizi;2;Acquisto di servizi;5;Utenze e canoni;4;Energia elettrica;12/01/2024
66;31;9999999;518,59;13.922,36;ENEL ENERGIA SPA;9619395FDC;09/01/2024;5930;0;481;1;Spese correnti;3;Acquisto di beni e servizi;2;Acquisto di servizi;5;Utenze e canoni;4;Energia elettrica;12/01/2024
66;32;9999999;542,34;13.922,36;ENEL ENERGIA SPA;9619395FDC;09/01/2024;5930;0;481;1;Spese correnti;3;Acquisto di beni e servizi;2;Acquisto di servizi;5;Utenze e canoni;4;Energia elettrica;12/01/2024
66;33;9999999;566,73;13.922,36;ENEL ENERGIA SPA;9619395FDC;09/01/2024;5930;0;481;1;Spese correnti;3;Acquisto di beni e servizi;2;Acquisto di servizi;5;Utenze e canoni;4;Energia elettrica;12/01/2024
66;34;9999999;571,91;13.922,36;ENEL ENERGIA SPA;9619395FDC;09/01/2024;5930;0;481;1;Spese correnti;3;Acquisto di beni e servizi;2;Acquisto di servizi;5;Utenze e canoni;4;Energia elettrica;12/01/2024
66;35;9999999;608,87;13.922,36;ENEL ENERGIA SPA;9619395FDC;09/01/2024;5930;0;481;1;Spese correnti;3;Acquisto di beni e servizi;2;Acquisto di servizi;5;Utenze e canoni;4;Energia elettrica;12/01/2024
66;36;9999999;609,91;13.922,36;ENEL ENERGIA SPA;9619395FDC;09/01/2024;5930;0;481;1;Spese correnti;3;Acquisto di beni e servizi;2;Acquisto di servizi;5;Utenze e canoni;4;Energia elettrica;12/01/2024
66;37;9999999;611,67;13.922,36;ENEL ENERGIA SPA;9619395FDC;09/01/2024;5930;0;481;1;Spese correnti;3;Acquisto di beni e servizi;2;Acquisto di servizi;5;Utenze e canoni;4;Energia elettrica;12/01/2024
66;38;9999999;613,9;13.922,36;ENEL ENERGIA SPA;9619395FDC;09/01/2024;5930;0;481;1;Spese correnti;3;Acquisto di beni e servizi;2;Acquisto di servizi;5;Utenze e canoni;4;Energia elettrica;12/01/2024
66;39;9999999;660,61;13.922,36;ENEL ENERGIA SPA;9619395FDC;09/01/2024;5930;0;481;1;Spese correnti;3;Acquisto di beni e servizi;2;Acquisto di servizi;5;Utenze e canoni;4;Energia elettrica;12/01/2024
66;40;9999999;735,9;13.922,36;ENEL ENERGIA SPA;9619395FDC;09/01/2024;5930;0;481;1;Spese correnti;3;Acquisto di beni e servizi;2;Acquisto di servizi;5;Utenze e canoni;4;Energia elettrica;12/01/2024
67;1;9999999;752,51;752,51;ENEL ENERGIA SPA;9619395FDC;09/01/2024;5930;0;481;1;Spese correnti;3;Acquisto di beni e servizi;2;Acquisto di servizi;5;Utenze e canoni;4;Energia elettrica;12/01/2024
68;1;9999999;11,71;873,74;ENEL ENERGIA SPA;9619395FDC;09/01/2024;5931;0;488;1;Spese correnti;3;Acquisto di beni e servizi;2;Acquisto di servizi;5;Utenze e canoni;4;Energia elettrica;12/01/2024
68;2;9999999;18,35;873,74;ENEL ENERGIA SPA;9619395FDC;09/01/2024;5931;0;488;1;Spese correnti;3;Acquisto di beni e servizi;2;Acquisto di servizi;5;Utenze e canoni;4;Energia elettrica;12/01/2024
68;3;9999999;79,08;873,74;ENEL ENERGIA SPA;9619395FDC;09/01/2024;5931;0;488;1;Spese correnti;3;Acquisto di beni e servizi;2;Acquisto di servizi;5;Utenze e canoni;4;Energia elettrica;12/01/2024
68;4;9999999;85,41;873,74;ENEL ENERGIA SPA;9619395FDC;09/01/2024;5931;0;488;1;Spese correnti;3;Acquisto di beni e servizi;2;Acquisto di servizi;5;Utenze e canoni;4;Energia elettrica;12/01/2024
68;5;9999999;90,76;873,74;ENEL ENERGIA SPA;9619395FDC;09/01/2024;5931;0;488;1;Spese correnti;3;Acquisto di beni e servizi;2;Acquisto di servizi;5;Utenze e canoni;4;Energia elettrica;12/01/2024
68;6;9999999;96,15;873,74;ENEL ENERGIA SPA;9619395FDC;09/01/2024;5931;0;488;1;Spese correnti;3;Acquisto di beni e servizi;2;Acquisto di servizi;5;Utenze e canoni;4;Energia elettrica;12/01/2024
68;7;9999999;120,26;873,74;ENEL ENERGIA SPA;9619395FDC;09/01/2024;5931;0;488;1;Spese correnti;3;Acquisto di beni e servizi;2;Acquisto di servizi;5;Utenze e canoni;4;Energia elettrica;12/01/2024
68;8;9999999;127,15;873,74;ENEL ENERGIA SPA;9619395FDC;09/01/2024;5931;0;488;1;Spese correnti;3;Acquisto di beni e servizi;2;Acquisto di servizi;5;Utenze e canoni;4;Energia elettrica;12/01/2024
68;9;9999999;244,87;873,74;ENEL ENERGIA SPA;9619395FDC;09/01/2024;5931;0;488;1;Spese correnti;3;Acquisto di beni e servizi;2;Acquisto di servizi;5;Utenze e canoni;4;Energia elettrica;12/01/2024
69;1;9999999;48,47;122,76;ENEL ENERGIA SPA;9619395FDC;09/01/2024;6461;0;487;1;Spese correnti;3;Acquisto di beni e servizi;2;Acquisto di servizi;5;Utenze e canoni;4;Energia elettrica;12/01/2024
69;2;9999999;74,29;122,76;ENEL ENERGIA SPA;9619395FDC;09/01/2024;6461;0;487;1;Spese correnti;3;Acquisto di beni e servizi;2;Acquisto di servizi;5;Utenze e canoni;4;Energia elettrica;12/01/2024
70;1;9999999;2.031,00;2.031,00;CONSORZIO PROVINCIALE INTESA-CCA SOC.COOP.SOCIALECONSORTILE;9293702D7F;09/01/2024;8208;0;660;1;Spese correnti;3;Acquisto di beni e servizi;2;Acquisto di servizi;99;Altri servizi;999;Altri servizi diversi n.a.c.;12/01/2024
71;1;9999999;189,45;189,45;SOCIETA' COOPERATIVA GIUSEPPE TONIOLO CONSCIO;Z963D5308F;10/01/2024;1147;1;959;1;Spese correnti;3;Acquisto di beni e servizi;1;Acquisto di beni;2;Altri beni di consumo;999;Altri beni e materiali di consumo n.a.c.;12/01/2024
72;1;9999999;366;366;SOCIETA' COOPERATIVA GIUSEPPE TONIOLO CONSCIO;Z963D5308F;10/01/2024;1147;2;960;1;Spese correnti;3;Acquisto di beni e servizi;1;Acquisto di beni;2;Altri beni di consumo;999;Altri beni e materiali di consumo n.a.c.;12/01/2024
73;1;9999999;1.640,90;1.640,90;TERMICA SILE S.R.L.;Z733832940;10/01/2024;1185;1;975;1;Spese correnti;3;Acquisto di beni e servizi;2;Acquisto di servizi;9;Manutenzione ordinaria e riparazioni;4;Manutenzione ordinaria e riparazioni di impianti e macchinari;12/01/2024
74;1;9999999;400;400;SOCIETA' COOPERATIVA GIUSEPPE TONIOLO CONSCIO;Z963D5308F;10/01/2024;1300;0;961;1;Spese correnti;3;Acquisto di beni e servizi;1;Acquisto di beni;2;Altri beni di consumo;999;Altri beni e materiali di consumo n.a.c.;12/01/2024
75;1;9999999;164,92;164,92;DOLOMITI ENERGIA SPA;964666689C;10/01/2024;1346;0;499;1;Spese correnti;3;Acquisto di beni e servizi;2;Acquisto di servizi;5;Utenze e canoni;6;Gas;12/01/2024
76;1;9999999;-8,46;885,66;DOLOMITI ENERGIA SPA;964666689C;10/01/2024;1801;0;489;1;Spese correnti;3;Acquisto di beni e servizi;2;Acquisto di servizi;5;Utenze e canoni;6;Gas;12/01/2024
76;2;9999999;3,92;885,66;DOLOMITI ENERGIA SPA;964666689C;10/01/2024;1801;0;489;1;Spese correnti;3;Acquisto di beni e servizi;2;Acquisto di servizi;5;Utenze e canoni;6;Gas;12/01/2024
76;3;9999999;8,87;885,66;DOLOMITI ENERGIA SPA;964666689C;10/01/2024;1801;0;489;1;Spese correnti;3;Acquisto di beni e servizi;2;Acquisto di servizi;5;Utenze e canoni;6;Gas;12/01/2024
76;4;9999999;86,5;885,66;DOLOMITI ENERGIA SPA;964666689C;10/01/2024;1801;0;489;1;Spese correnti;3;Acquisto di beni e servizi;2;Acquisto di servizi;5;Utenze e canoni;6;Gas;12/01/2024
76;5;9999999;108,02;885,66;DOLOMITI ENERGIA SPA;964666689C;10/01/2024;1801;0;489;1;Spese correnti;3;Acquisto di beni e servizi;2;Acquisto di servizi;5;Utenze e canoni;6;Gas;12/01/2024
76;6;9999999;172,67;885,66;DOLOMITI ENERGIA SPA;964666689C;10/01/2024;1801;0;489;1;Spese correnti;3;Acquisto di beni e servizi;2;Acquisto di servizi;5;Utenze e canoni;6;Gas;12/01/2024
76;7;9999999;514,14;885,66;DOLOMITI ENERGIA SPA;964666689C;10/01/2024;1801;0;489;1;Spese correnti;3;Acquisto di beni e servizi;2;Acquisto di servizi;5;Utenze e canoni;6;Gas;12/01/2024
77;1;9999999;622;622;SOCIETA' COOPERATIVA GIUSEPPE TONIOLO CONSCIO;Z963D5308F;10/01/2024;2610;0;962;1;Spese correnti;3;Acquisto di beni e servizi;1;Acquisto di beni;2;Altri beni di consumo;999;Altri beni e materiali di consumo n.a.c.;12/01/2024
78;1;9999999;54,9;54,9;TERMICA SILE S.R.L.;Z733832940;10/01/2024;2760;0;970;1;Spese correnti;3;Acquisto di beni e servizi;2;Acquisto di servizi;9;Manutenzione ordinaria e riparazioni;4;Manutenzione ordinaria e riparazioni di impianti e macchinari;12/01/2024
79;1;9999999;2.151,83;2.151,83;DOLOMITI ENERGIA SPA;964666689C;10/01/2024;2790;0;490;1;Spese correnti;3;Acquisto di beni e servizi;2;Acquisto di servizi;5;Utenze e canoni;6;Gas;12/01/2024
80;1;9999999;1.204,91;1.204,91;DOLOMITI ENERGIA SPA;964666689C;10/01/2024;2792;0;491;1;Spese correnti;3;Acquisto di beni e servizi;2;Acquisto di servizi;5;Utenze e canoni;6;Gas;12/01/2024
81;1;9999999;500;500;SOCIETA' COOPERATIVA GIUSEPPE TONIOLO CONSCIO;Z963D5308F;10/01/2024;2910;0;963;1;Spese correnti;3;Acquisto di beni e servizi;1;Acquisto di beni;2;Altri beni di consumo;999;Altri beni e materiali di consumo n.a.c.;12/01/2024
82;1;9999999;567,36;6.529,84;DOLOMITI ENERGIA SPA;964666689C;10/01/2024;2973;0;492;1;Spese correnti;3;Acquisto di beni e servizi;2;Acquisto di servizi;5;Utenze e canoni;6;Gas;12/01/2024
82;2;9999999;957,95;6.529,84;DOLOMITI ENERGIA SPA;964666689C;10/01/2024;2973;0;492;1;Spese correnti;3;Acquisto di beni e servizi;2;Acquisto di servizi;5;Utenze e canoni;6;Gas;12/01/2024
82;3;9999999;1.311,21;6.529,84;DOLOMITI ENERGIA SPA;964666689C;10/01/2024;2973;0;492;1;Spese correnti;3;Acquisto di beni e servizi;2;Acquisto di servizi;5;Utenze e canoni;6;Gas;12/01/2024
82;4;9999999;3.693,32;6.529,84;DOLOMITI ENERGIA SPA;964666689C;10/01/2024;2973;0;492;1;Spese correnti;3;Acquisto di beni e servizi;2;Acquisto di servizi;5;Utenze e canoni;6;Gas;12/01/2024
83;1;9999999;300;300;SOCIETA' COOPERATIVA GIUSEPPE TONIOLO CONSCIO;Z963D5308F;10/01/2024;4010;0;964;1;Spese correnti;3;Acquisto di beni e servizi;1;Acquisto di beni;2;Altri beni di consumo;999;Altri beni e materiali di consumo n.a.c.;12/01/2024
84;1;9999999;6.441,09;6.441,09;DOLOMITI ENERGIA SPA;964666689C;10/01/2024;4020;0;493;1;Spese correnti;3;Acquisto di beni e servizi;2;Acquisto di servizi;5;Utenze e canoni;6;Gas;12/01/2024
85;1;9999999;61,89;61,89;DOLOMITI ENERGIA SPA;964666689C;10/01/2024;4527;0;502;1;Spese correnti;3;Acquisto di beni e servizi;2;Acquisto di servizi;5;Utenze e canoni;6;Gas;12/01/2024
86;1;9999999;54,9;54,9;TERMICA SILE S.R.L.;Z733832940;10/01/2024;4540;0;974;1;Spese correnti;3;Acquisto di beni e servizi;2;Acquisto di servizi;9;Manutenzione ordinaria e riparazioni;4;Manutenzione ordinaria e riparazioni di impianti e macchinari;12/01/2024
87;1;9999999;289,56;3.150,32;DOLOMITI ENERGIA SPA;964666689C;10/01/2024;5050;0;501;1;Spese correnti;3;Acquisto di beni e servizi;2;Acquisto di servizi;5;Utenze e canoni;6;Gas;12/01/2024
87;2;9999999;430,14;3.150,32;DOLOMITI ENERGIA SPA;964666689C;10/01/2024;5050;0;501;1;Spese correnti;3;Acquisto di beni e servizi;2;Acquisto di servizi;5;Utenze e canoni;6;Gas;12/01/2024
87;3;9999999;582,77;3.150,32;DOLOMITI ENERGIA SPA;964666689C;10/01/2024;5050;0;501;1;Spese correnti;3;Acquisto di beni e servizi;2;Acquisto di servizi;5;Utenze e canoni;6;Gas;12/01/2024
87;4;9999999;1.847,85;3.150,32;DOLOMITI ENERGIA SPA;964666689C;10/01/2024;5050;0;501;1;Spese correnti;3;Acquisto di beni e servizi;2;Acquisto di servizi;5;Utenze e canoni;6;Gas;12/01/2024
88;1;9999999;2,92;2,92;DOLOMITI ENERGIA SPA;964666689C;10/01/2024;5051;0;495;1;Spese correnti;3;Acquisto di beni e servizi;2;Acquisto di servizi;5;Utenze e canoni;6;Gas;12/01/2024
89;1;9999999;183,48;183,48;DOLOMITI ENERGIA SPA;964666689C;10/01/2024;6461;0;496;1;Spese correnti;3;Acquisto di beni e servizi;2;Acquisto di servizi;5;Utenze e canoni;6;Gas;12/01/2024
90;1;9999999;50,17;50,17;DOLOMITI ENERGIA SPA;964666689C;10/01/2024;6647;0;497;1;Spese correnti;3;Acquisto di beni e servizi;2;Acquisto di servizi;5;Utenze e canoni;6;Gas;12/01/2024
91;1;9999999;100;100;SOCIETA' COOPERATIVA GIUSEPPE TONIOLO CONSCIO;Z963D5308F;10/01/2024;6760;0;965;1;Spese correnti;3;Acquisto di beni e servizi;1;Acquisto di beni;2;Altri beni di consumo;999;Altri beni e materiali di consumo n.a.c.;12/01/2024
92;1;9999999;484,19;484,19;SOCIETA' COOPERATIVA GIUSEPPE TONIOLO CONSCIO;Z963D5308F;10/01/2024;7520;0;966;1;Spese correnti;3;Acquisto di beni e servizi;1;Acquisto di beni;2;Altri beni di consumo;999;Altri beni e materiali di consumo n.a.c.;12/01/2024
93;1;9999999;131,76;131,76;TERMICA SILE S.R.L.;Z733832940;10/01/2024;7550;0;979;1;Spese correnti;3;Acquisto di beni e servizi;2;Acquisto di servizi;9;Manutenzione ordinaria e riparazioni;4;Manutenzione ordinaria e riparazioni di impianti e macchinari;12/01/2024
94;1;9999999;803,27;2.237,83;DOLOMITI ENERGIA SPA;964666689C;10/01/2024;7552;1;500;1;Spese correnti;3;Acquisto di beni e servizi;2;Acquisto di servizi;5;Utenze e canoni;6;Gas;12/01/2024
94;2;9999999;1.434,56;2.237,83;DOLOMITI ENERGIA SPA;964666689C;10/01/2024;7552;1;500;1;Spese correnti;3;Acquisto di beni e servizi;2;Acquisto di servizi;5;Utenze e canoni;6;Gas;12/01/2024
95;1;9999999;1.209,38;1.209,38;OMESSO NOMINATIVO NEL RISPETTO DELLA NORMATIVA SULLA PROTEZIONE DATI PERSONALI; ;10/01/2024;8361;0;971;1;Spese correnti;4;Trasferimenti correnti;2;Trasferimenti correnti a Famiglie;2;Interventi assistenziali;999;Altri assegni e sussidi assistenziali;12/01/2024
96;1;9999999;30.000,00;30.000,00;CONTARINA S.P.A.; ;10/01/2024;7430;0;868;1;Spese correnti;3;Acquisto di beni e servizi;2;Acquisto di servizi;9;Manutenzione ordinaria e riparazioni;8;Manutenzione ordinaria e riparazioni di beni immobili;12/01/2024
97;1;9999999;7.711,00;7.711,00;SOCIETA' AGRICOLA LUCATO PIANTE S.S.;ZCB3D8E636;10/01/2024;7433;0;1056;1;Spese correnti;3;Acquisto di beni e servizi;2;Acquisto di servizi;99;Altri servizi;9;Acquisto di sevizi per verde e arredo urbano;12/01/2024
98;1;9999999;5.000,00;5.000,00;"SC. PRIM. PARITARIA IST.SUORE FRANCESCANE ""SANTA MARIA DELLE GRAZIE"""; ;10/01/2024;3010;0;1074;1;Spese correnti;4;Trasferimenti correnti;4;Trasferimenti correnti a Istituzioni Sociali Private;1;Trasferimenti correnti a Istituzioni Sociali Private;1;Trasferimenti correnti a Istituzioni Sociali Private;12/01/2024
99;1;9999999;793;793;SOC. IMM. MURETTO S.N.C. DI CRESCENTE V. & C.; ;10/01/2024;1812;0;327;1;Spese correnti;3;Acquisto di beni e servizi;2;Acquisto di servizi;7;Utilizzo di beni di terzi;1;Locazione di beni immobili;12/01/2024
100;1;9999999;9.506,97;9.506,97;SC.MAT.MONS.ROMANELLO; ;10/01/2024;2840;0;1172;1;Spese correnti;4;Trasferimenti correnti;4;Trasferimenti correnti a Istituzioni Sociali Private;1;Trasferimenti correnti a Istituzioni Sociali Private;1;Trasferimenti correnti a Istituzioni Sociali Private;12/01/2024
101;1;9999999;9.506,97;9.506,97;SC.MATERNA GIOVANNI XXIII'; ;10/01/2024;2840;0;1171;1;Spese correnti;4;Trasferimenti correnti;4;Trasferimenti correnti a Istituzioni Sociali Private;1;Trasferimenti correnti a Istituzioni Sociali Private;1;Trasferimenti correnti a Istituzioni Sociali Private;12/01/2024
102;1;9999999;6.337,97;6.337,97;SCUOLA INFANZIA MARIA IMMACOLATA; ;10/01/2024;2840;0;1173;1;Spese correnti;4;Trasferimenti correnti;4;Trasferimenti correnti a Istituzioni Sociali Private;1;Trasferimenti correnti a Istituzioni Sociali Private;1;Trasferimenti correnti a Istituzioni Sociali Private;12/01/2024
103;1;9999999;13.148,88;13.148,88;TEMPO PER CRESCERE SRL; ;10/01/2024;2840;0;1170;1;Spese correnti;4;Trasferimenti correnti;4;Trasferimenti correnti a Istituzioni Sociali Private;1;Trasferimenti correnti a Istituzioni Sociali Private;1;Trasferimenti correnti a Istituzioni Sociali Private;12/01/2024
104;1;9999999;13.922,33;13.922,33;TEMPO PER CRESCERE SRL; ;10/01/2024;1149;0;1169;1;Spese correnti;4;Trasferimenti correnti;4;Trasferimenti correnti a Istituzioni Sociali Private;1;Trasferimenti correnti a Istituzioni Sociali Private;1;Trasferimenti correnti a Istituzioni Sociali Private;12/01/2024
105;1;9999999;6,71;6,71;BANCA MONTE DEI PASCHI DI SIENA S.P.A.; ;10/01/2024;820;0;0;1;Spese correnti;3;Acquisto di beni e servizi;2;Acquisto di servizi;17;Servizi finanziari;2;Oneri per servizio di tesoreria;11/01/2024
106;1;9999999;2.287,50;2.287,50;BANCA MONTE DEI PASCHI DI SIENA S.P.A.;ZA926715C5;12/01/2024;820;0;1464;1;Spese correnti;3;Acquisto di beni e servizi;2;Acquisto di servizi;17;Servizi finanziari;2;Oneri per servizio di tesoreria;15/01/2024
107;1;9999999;223,54;4.286,12;SERENISSIMA RISTORAZIONE SPA;932853027C;12/01/2024;4260;0;731;1;Spese correnti;3;Acquisto di beni e servizi;2;Acquisto di servizi;15;Contratti di servizio pubblico;6;Contratti di servizio per le mense scolastiche;16/01/2024
107;2;9999999;231,55;4.286,12;SERENISSIMA RISTORAZIONE SPA;932853027C;12/01/2024;4260;0;731;1;Spese correnti;3;Acquisto di beni e servizi;2;Acquisto di servizi;15;Contratti di servizio pubblico;6;Contratti di servizio per le mense scolastiche;16/01/2024
107;3;9999999;773,57;4.286,12;SERENISSIMA RISTORAZIONE SPA;932853027C;12/01/2024;4260;0;731;1;Spese correnti;3;Acquisto di beni e servizi;2;Acquisto di servizi;15;Contratti di servizio pubblico;6;Contratti di servizio per le mense scolastiche;16/01/2024
107;4;9999999;1.289,29;4.286,12;SERENISSIMA RISTORAZIONE SPA;932853027C;12/01/2024;4260;0;731;1;Spese correnti;3;Acquisto di beni e servizi;2;Acquisto di servizi;15;Contratti di servizio pubblico;6;Contratti di servizio per le mense scolastiche;16/01/2024
107;5;9999999;1.768,17;4.286,12;SERENISSIMA RISTORAZIONE SPA;932853027C;12/01/2024;4260;0;731;1;Spese correnti;3;Acquisto di beni e servizi;2;Acquisto di servizi;15;Contratti di servizio pubblico;6;Contratti di servizio per le mense scolastiche;16/01/2024
108;1;9999999;18,53;250,08;SERENISSIMA RISTORAZIONE SPA;932853027C;12/01/2024;4260;0;866;1;Spese correnti;3;Acquisto di beni e servizi;2;Acquisto di servizi;15;Contratti di servizio pubblico;6;Contratti di servizio per le mense scolastiche;16/01/2024
108;2;9999999;231,55;250,08;SERENISSIMA RISTORAZIONE SPA;932853027C;12/01/2024;4260;0;866;1;Spese correnti;3;Acquisto di beni e servizi;2;Acquisto di servizi;15;Contratti di servizio pubblico;6;Contratti di servizio per le mense scolastiche;16/01/2024
109;1;9999999;-3.592,60;13.590,37;SERENISSIMA RISTORAZIONE SPA;932853027C;12/01/2024;4261;0;867;1;Spese correnti;3;Acquisto di beni e servizi;2;Acquisto di servizi;15;Contratti di servizio pubblico;6;Contratti di servizio per le mense scolastiche;16/01/2024
109;2;9999999;781,39;13.590,37;SERENISSIMA RISTORAZIONE SPA;932853027C;12/01/2024;4261;0;867;1;Spese correnti;3;Acquisto di beni e servizi;2;Acquisto di servizi;15;Contratti di servizio pubblico;6;Contratti di servizio per le mense scolastiche;16/01/2024
109;3;9999999;816,74;13.590,37;SERENISSIMA RISTORAZIONE SPA;932853027C;12/01/2024;4261;0;867;1;Spese correnti;3;Acquisto di beni e servizi;2;Acquisto di servizi;15;Contratti di servizio pubblico;6;Contratti di servizio per le mense scolastiche;16/01/2024
109;4;9999999;985,9;13.590,37;SERENISSIMA RISTORAZIONE SPA;932853027C;12/01/2024;4261;0;867;1;Spese correnti;3;Acquisto di beni e servizi;2;Acquisto di servizi;15;Contratti di servizio pubblico;6;Contratti di servizio per le mense scolastiche;16/01/2024
109;5;9999999;1.524,53;13.590,37;SERENISSIMA RISTORAZIONE SPA;932853027C;12/01/2024;4261;0;867;1;Spese correnti;3;Acquisto di beni e servizi;2;Acquisto di servizi;15;Contratti di servizio pubblico;6;Contratti di servizio per le mense scolastiche;16/01/2024
109;6;9999999;3.081,75;13.590,37;SERENISSIMA RISTORAZIONE SPA;932853027C;12/01/2024;4261;0;867;1;Spese correnti;3;Acquisto di beni e servizi;2;Acquisto di servizi;15;Contratti di servizio pubblico;6;Contratti di servizio per le mense scolastiche;16/01/2024
109;7;9999999;4.072,23;13.590,37;SERENISSIMA RISTORAZIONE SPA;932853027C;12/01/2024;4261;0;867;1;Spese correnti;3;Acquisto di beni e servizi;2;Acquisto di servizi;15;Contratti di servizio pubblico;6;Contratti di servizio per le mense scolastiche;16/01/2024
109;8;9999999;5.920,43;13.590,37;SERENISSIMA RISTORAZIONE SPA;932853027C;12/01/2024;4261;0;867;1;Spese correnti;3;Acquisto di beni e servizi;2;Acquisto di servizi;15;Contratti di servizio pubblico;6;Contratti di servizio per le mense scolastiche;16/01/2024
110;1;9999999;656,36;656,36;UNIVERSO S.N.C. DI PAOLI CESARE & C.;ZBE3D6966D;12/01/2024;4506;1;990;1;Spese correnti;3;Acquisto di beni e servizi;1;Acquisto di beni;2;Altri beni di consumo;999;Altri beni e materiali di consumo n.a.c.;16/01/2024
111;1;9999999;710,65;710,65;COLIBRI' SYSTEM S.P.A.;ZF23D9FF55;12/01/2024;4506;1;1029;1;Spese correnti;3;Acquisto di beni e servizi;1;Acquisto di beni;2;Altri beni di consumo;999;Altri beni e materiali di consumo n.a.c.;16/01/2024
112;1;9999999;500;500;MAXAUDIOLIBRI di MASSIMO D'ONOFRIO;ZCB3D4C73A;12/01/2024;4529;0;984;1;Spese correnti;3;Acquisto di beni e servizi;2;Acquisto di servizi;11;Prestazioni professionali e specialistiche;999;Altre prestazioni professionali e specialistiche n.a.c.;16/01/2024
113;1;9999999;1.281,00;1.281,00;BROGNERA GEOM.LUCA;Z173B85E9E;12/01/2024;4710;0;541;1;Spese correnti;3;Acquisto di beni e servizi;2;Acquisto di servizi;99;Altri servizi;999;Altri servizi diversi n.a.c.;16/01/2024
114;1;9999999;1.564,00;1.564,00;CONTARINA S.P.A.; ;12/01/2024;5600;0;917;1;Spese correnti;3;Acquisto di beni e servizi;2;Acquisto di servizi;5;Utenze e canoni;999;Utenze e canoni per altri servizi n.a.c.;16/01/2024
115;1;9999999;110,95;2.321,34;SERENISSIMA RISTORAZIONE SPA;932853027C;12/01/2024;7553;1;733;1;Spese correnti;3;Acquisto di beni e servizi;2;Acquisto di servizi;15;Contratti di servizio pubblico;6;Contratti di servizio per le mense scolastiche;16/01/2024
115;2;9999999;995,47;2.321,34;SERENISSIMA RISTORAZIONE SPA;932853027C;12/01/2024;7553;1;733;1;Spese correnti;3;Acquisto di beni e servizi;2;Acquisto di servizi;15;Contratti di servizio pubblico;6;Contratti di servizio per le mense scolastiche;16/01/2024
115;3;9999999;1.214,92;2.321,34;SERENISSIMA RISTORAZIONE SPA;932853027C;12/01/2024;7553;1;733;1;Spese correnti;3;Acquisto di beni e servizi;2;Acquisto di servizi;15;Contratti di servizio pubblico;6;Contratti di servizio per le mense scolastiche;16/01/2024
116;1;9999999;126,05;126,05;SERENISSIMA RISTORAZIONE SPA;932853027C;12/01/2024;7553;1;868;1;Spese correnti;3;Acquisto di beni e servizi;2;Acquisto di servizi;15;Contratti di servizio pubblico;6;Contratti di servizio per le mense scolastiche;16/01/2024
117;1;9999999;15.051,34;15.051,34;CODESS SOCIALE-COOP. ONLUS;9120417633;12/01/2024;8250;0;578;1;Spese correnti;3;Acquisto di beni e servizi;2;Acquisto di servizi;15;Contratti di servizio pubblico;9;Contratti di servizio di assistenza sociale domiciliare;16/01/2024
118;1;9999999;50.000,00;50.000,00;SC.MAT.MONS.ROMANELLO; ;12/01/2024;2822;0;1070;1;Spese correnti;4;Trasferimenti correnti;4;Trasferimenti correnti a Istituzioni Sociali Private;1;Trasferimenti correnti a Istituzioni Sociali Private;1;Trasferimenti correnti a Istituzioni Sociali Private;16/01/2024
119;1;9999999;55.000,00;55.000,00;SC.MATERNA GIOVANNI XXIII'; ;12/01/2024;2822;0;1071;1;Spese correnti;4;Trasferimenti correnti;4;Trasferimenti correnti a Istituzioni Sociali Private;1;Trasferimenti correnti a Istituzioni Sociali Private;1;Trasferimenti correnti a Istituzioni Sociali Private;16/01/2024
120;1;9999999;45.000,00;45.000,00;SCUOLA INFANZIA MARIA IMMACOLATA; ;12/01/2024;2822;0;1072;1;Spese correnti;4;Trasferimenti correnti;4;Trasferimenti correnti a Istituzioni Sociali Private;1;Trasferimenti correnti a Istituzioni Sociali Private;1;Trasferimenti correnti a Istituzioni Sociali Private;16/01/2024
121;1;9999999;10.000,00;10.000,00;TEMPO PER CRESCERE SRL; ;12/01/2024;2822;0;1073;1;Spese correnti;4;Trasferimenti correnti;4;Trasferimenti correnti a Istituzioni Sociali Private;1;Trasferimenti correnti a Istituzioni Sociali Private;1;Trasferimenti correnti a Istituzioni Sociali Private;16/01/2024
122;1;9999999;200;200;OMESSO NOMINATIVO NEL RISPETTO DELLA NORMATIVA SULLA PROTEZIONE DATI PERSONALI;Z2A3D501CD;12/01/2024;4528;0;1054;1;Spese correnti;3;Acquisto di beni e servizi;2;Acquisto di servizi;11;Prestazioni professionali e specialistiche;999;Altre prestazioni professionali e specialistiche n.a.c.;16/01/2024
123;1;9999999;270;270;ASSOCIAZIONE CULTURALE IL BARATTOLO;Z253CDD9EB;12/01/2024;4529;0;937;1;Spese correnti;3;Acquisto di beni e servizi;2;Acquisto di servizi;11;Prestazioni professionali e specialistiche;999;Altre prestazioni professionali e specialistiche n.a.c.;16/01/2024
125;1;9999999;1.346,69;1.346,69;ABACO S.P.A.;9,44E+58;12/01/2024;1010;0;1259;1;Spese correnti;3;Acquisto di beni e servizi;2;Acquisto di servizi;3;Aggi di riscossione;999;Altri aggi di riscossione n.a.c.;16/01/2024
127;1;9999999;1.220,00;1.220,00;VEMARK SRLS UNIPERSONALE;Z7F3BC105E;16/01/2024;610;1;574;1;Spese correnti;3;Acquisto di beni e servizi;2;Acquisto di servizi;2;Organizzazione eventi, pubblicita` e servizi per trasferta;999;Altre spese per relazioni pubbliche, convegni e mostre, pubblicita` n.a.c;18/01/2024
128;1;9999999;132;132;B.R. SERVICE SRL;ZE33D045CD;16/01/2024;678;0;890;1;Spese correnti;3;Acquisto di beni e servizi;2;Acquisto di servizi;4;Acquisto di servizi per formazione e addestramento del personale dell'ente;4;Acquisto di servizi per formazione obbligatoria;18/01/2024
129;1;9999999;173,5;173,5;E.MEDI.CAL SRL;Z473A8B998;16/01/2024;679;0;433;1;Spese correnti;3;Acquisto di beni e servizi;2;Acquisto di servizi;18;Servizi sanitari;1;Spese per accertamenti sanitari resi necessari dall'attività lavorativa;18/01/2024
130;1;9999999;7.177,06;7.177,06;OMESSO NOMINATIVO NEL RISPETTO DELLA NORMATIVA SULLA PROTEZIONE DATI PERSONALI;Z4A3DB2E1E;16/01/2024;1185;17;1063;1;Spese correnti;3;Acquisto di beni e servizi;2;Acquisto di servizi;9;Manutenzione ordinaria e riparazioni;8;Manutenzione ordinaria e riparazioni di beni immobili;18/01/2024
131;1;9999999;488,32;488,32;TELECOM ITALIA S.P.A.;Z523435997;16/01/2024;1801;1;430;1;Spese correnti;3;Acquisto di beni e servizi;2;Acquisto di servizi;5;Utenze e canoni;2;Telefonia mobile;18/01/2024
132;1;9999999;170;170;AREA DI SERVIZIO ENI DI CIMBRO MASSIMILIANO;ZB13AB5473;16/01/2024;1802;0;424;1;Spese correnti;3;Acquisto di beni e servizi;2;Acquisto di servizi;9;Manutenzione ordinaria e riparazioni;1;Manutenzione ordinaria e riparazioni di mezzi di trasporto ad uso civile, di sicurezza e ordine pubblico;18/01/2024
133;1;9999999;117,32;117,32;OLIVETTI S.P.A. CREDIT MANAGEMENT;7660530556;16/01/2024;1813;0;1183;1;Spese correnti;3;Acquisto di beni e servizi;2;Acquisto di servizi;7;Utilizzo di beni di terzi;4;Noleggi di hardware;18/01/2024
134;1;9999999;289,1;289,1;OLIVETTI S.P.A. CREDIT MANAGEMENT;7660530556;16/01/2024;1813;0;1183;1;Spese correnti;3;Acquisto di beni e servizi;2;Acquisto di servizi;7;Utilizzo di beni di terzi;4;Noleggi di hardware;18/01/2024
135;1;9999999;562,2;562,2;VIER  SCARL; ;16/01/2024;2792;0;235;1;Spese correnti;3;Acquisto di beni e servizi;2;Acquisto di servizi;5;Utenze e canoni;4;Energia elettrica;18/01/2024
136;1;9999999;3.065,39;3.065,39;VIER  SCARL; ;16/01/2024;2973;0;131;1;Spese correnti;3;Acquisto di beni e servizi;2;Acquisto di servizi;5;Utenze e canoni;4;Energia elettrica;18/01/2024
137;1;9999999;1.262,99;1.262,99;VIER  SCARL; ;16/01/2024;4020;0;236;1;Spese correnti;3;Acquisto di beni e servizi;2;Acquisto di servizi;5;Utenze e canoni;4;Energia elettrica;18/01/2024
138;1;9999999;-42,21;187,81;LEGGERE S.R.L.;Z673A59373;16/01/2024;4506;0;478;1;Spese correnti;3;Acquisto di beni e servizi;1;Acquisto di beni;1;Giornali, riviste e pubblicazioni;2;Pubblicazioni;18/01/2024
138;2;9999999;230,02;187,81;LEGGERE S.R.L.;Z673A59373;16/01/2024;4506;0;478;1;Spese correnti;3;Acquisto di beni e servizi;1;Acquisto di beni;1;Giornali, riviste e pubblicazioni;2;Pubblicazioni;18/01/2024
139;1;9999999;750;750;DISMA SAS DI A. RIGO & C.;Z0A3BA9AA6;16/01/2024;4529;0;666;1;Spese correnti;3;Acquisto di beni e servizi;2;Acquisto di servizi;11;Prestazioni professionali e specialistiche;999;Altre prestazioni professionali e specialistiche n.a.c.;18/01/2024
140;1;9999999;864,06;864,06;VIER  SCARL; ;16/01/2024;5050;0;132;1;Spese correnti;3;Acquisto di beni e servizi;2;Acquisto di servizi;5;Utenze e canoni;4;Energia elettrica;18/01/2024
141;1;9999999;2.804,98;2.804,98;OMESSO NOMINATIVO NEL RISPETTO DELLA NORMATIVA SULLA PROTEZIONE DATI PERSONALI;Z4A3DB2E1E;16/01/2024;5060;0;1064;1;Spese correnti;3;Acquisto di beni e servizi;2;Acquisto di servizi;9;Manutenzione ordinaria e riparazioni;8;Manutenzione ordinaria e riparazioni di beni immobili;18/01/2024
142;1;9999999;374,79;374,79;VIER  SCARL; ;16/01/2024;7552;1;237;1;Spese correnti;3;Acquisto di beni e servizi;2;Acquisto di servizi;5;Utenze e canoni;4;Energia elettrica;18/01/2024
143;1;9999999;1.837,92;1.837,92;KIRIKU Societa' cooperativa sociale onlus;Z6C35B265E;16/01/2024;8204;4;450;1;Spese correnti;3;Acquisto di beni e servizi;2;Acquisto di servizi;99;Altri servizi;999;Altri servizi diversi n.a.c.;18/01/2024
144;1;9999999;9.796,60;9.796,60;EASY-TECH SRLS UNIPERSONALE;Z733DB2B71;16/01/2024;15010;0;1057;2;Spese in conto capitale;2;Investimenti fissi lordi e acquisto di terreni;1;Beni materiali;9;Beni immobili;16;Impianti sportivi;18/01/2024
145;1;9999999;6.800,89;6.800,89;METALCO S.R.L.;Z0D3CB2038;16/01/2024;15905;16;578;2;Spese in conto capitale;2;Investimenti fissi lordi e acquisto di terreni;1;Beni materiali;9;Beni immobili;12;Infrastrutture stradali;18/01/2024
146;1;9999999;10.208,01;10.208,01;POLISPORTIVA PREGANZIOL; ;16/01/2024;5230;0;1175;1;Spese correnti;4;Trasferimenti correnti;4;Trasferimenti correnti a Istituzioni Sociali Private;1;Trasferimenti correnti a Istituzioni Sociali Private;1;Trasferimenti correnti a Istituzioni Sociali Private;18/01/2024
147;1;9999999;8.859,47;8.859,47;F.C. UNION PRO 1928 S.S.D.R.L.; ;16/01/2024;5230;0;1174;1;Spese correnti;4;Trasferimenti correnti;4;Trasferimenti correnti a Istituzioni Sociali Private;1;Trasferimenti correnti a Istituzioni Sociali Private;1;Trasferimenti correnti a Istituzioni Sociali Private;18/01/2024
148;1;9999999;7.166,61;7.166,61;GRUPPO SPORTIVO SAMBUGHE' SSD a RL; ;16/01/2024;5230;0;1176;1;Spese correnti;4;Trasferimenti correnti;4;Trasferimenti correnti a Istituzioni Sociali Private;1;Trasferimenti correnti a Istituzioni Sociali Private;1;Trasferimenti correnti a Istituzioni Sociali Private;18/01/2024
149;1;9999999;1.333,73;1.333,73;MINISTERO INFRASTR./TRASPORTI-MOTORIZZ.CIVILE; ;16/01/2024;2344;0;930;1;Spese correnti;3;Acquisto di beni e servizi;2;Acquisto di servizi;5;Utenze e canoni;3;Accesso a banche dati e a pubblicazioni on line;18/01/2024
150;1;9999999;26.564,50;26.564,50;EURO TOURS SRL;88188476C3;16/01/2024;4261;4;892;1;Spese correnti;3;Acquisto di beni e servizi;2;Acquisto di servizi;15;Contratti di servizio pubblico;2;Contratti di servizio di trasporto scolastico;18/01/2024
151;1;9999999;1.178,26;4.999,99;EURO TOURS SRL;88188476C3;16/01/2024;4261;4;1028;1;Spese correnti;3;Acquisto di beni e servizi;2;Acquisto di servizi;15;Contratti di servizio pubblico;2;Contratti di servizio di trasporto scolastico;19/01/2024
151;2;9999999;3.821,73;4.999,99;EURO TOURS SRL;88188476C3;16/01/2024;4261;4;1028;1;Spese correnti;3;Acquisto di beni e servizi;2;Acquisto di servizi;15;Contratti di servizio pubblico;2;Contratti di servizio di trasporto scolastico;19/01/2024
152;1;9999999;3.706,00;3.706,00;COORD. PROV. ANTEAS ASSOCIAZIONE VOLONTARIATO; ;16/01/2024;8361;3;471;1;Spese correnti;4;Trasferimenti correnti;4;Trasferimenti correnti a Istituzioni Sociali Private;1;Trasferimenti correnti a Istituzioni Sociali Private;1;Trasferimenti correnti a Istituzioni Sociali Private;18/01/2024
153;1;9999999;10.236,66;10.236,66;ASSOCIAZIONE COMUNI MARCA TREVIGIANA; ;16/01/2024;4261;2;773;1;Spese correnti;3;Acquisto di beni e servizi;2;Acquisto di servizi;99;Altri servizi;999;Altri servizi diversi n.a.c.;18/01/2024
154;1;9999999;4,8;4,8;COMUNE DI PREGANZIOL - ECONOMO PEZZATO ELENA; ;16/01/2024;1470;0;826;1;Spese correnti;3;Acquisto di beni e servizi;1;Acquisto di beni;2;Altri beni di consumo;999;Altri beni e materiali di consumo n.a.c.;18/01/2024
155;1;9999999;89;89;COMUNE DI PREGANZIOL - ECONOMO PEZZATO ELENA; ;16/01/2024;1779;0;804;1;Spese correnti;3;Acquisto di beni e servizi;1;Acquisto di beni;1;Giornali, riviste e pubblicazioni;2;Pubblicazioni;18/01/2024
156;1;9999999;4,9;52,9;COMUNE DI PREGANZIOL - ECONOMO PEZZATO ELENA; ;16/01/2024;4506;1;802;1;Spese correnti;3;Acquisto di beni e servizi;1;Acquisto di beni;2;Altri beni di consumo;999;Altri beni e materiali di consumo n.a.c.;18/01/2024
156;2;9999999;11,5;52,9;COMUNE DI PREGANZIOL - ECONOMO PEZZATO ELENA; ;16/01/2024;4506;1;802;1;Spese correnti;3;Acquisto di beni e servizi;1;Acquisto di beni;2;Altri beni di consumo;999;Altri beni e materiali di consumo n.a.c.;18/01/2024
156;3;9999999;36,5;52,9;COMUNE DI PREGANZIOL - ECONOMO PEZZATO ELENA; ;16/01/2024;4506;1;802;1;Spese correnti;3;Acquisto di beni e servizi;1;Acquisto di beni;2;Altri beni di consumo;999;Altri beni e materiali di consumo n.a.c.;18/01/2024
159;1;9999999;793,24;793,24;OMESSO NOMINATIVO NEL RISPETTO DELLA NORMATIVA SULLA PROTEZIONE DATI PERSONALI; ;16/01/2024;8361;0;63;1;Spese correnti;4;Trasferimenti correnti;2;Trasferimenti correnti a Famiglie;2;Interventi assistenziali;999;Altri assegni e sussidi assistenziali;18/01/2024
161;1;9999999;75;75;IDEAPA SRL;ZC23A36B76;17/01/2024;557;0;301;1;Spese correnti;3;Acquisto di beni e servizi;2;Acquisto di servizi;4;Acquisto di servizi per formazione e addestramento del personale dell'ente;999;Acquisto di servizi per altre spese per formazione e addestramento n.a.c.;19/01/2024
162;1;9999999;585;585;MEDICASL SAS DI STEFFAN ALBERTO & C.;Z1C3D0FD70;17/01/2024;678;0;901;1;Spese correnti;3;Acquisto di beni e servizi;2;Acquisto di servizi;4;Acquisto di servizi per formazione e addestramento del personale dell'ente;999;Acquisto di servizi per altre spese per formazione e addestramento n.a.c.;19/01/2024
163;1;9999999;-33,82;3.249,92;SERENISSIMA RISTORAZIONE SPA;932853027C;17/01/2024;4260;0;866;1;Spese correnti;3;Acquisto di beni e servizi;2;Acquisto di servizi;15;Contratti di servizio pubblico;6;Contratti di servizio per le mense scolastiche;19/01/2024
163;2;9999999;173,66;3.249,92;SERENISSIMA RISTORAZIONE SPA;932853027C;17/01/2024;4260;0;866;1;Spese correnti;3;Acquisto di beni e servizi;2;Acquisto di servizi;15;Contratti di servizio pubblico;6;Contratti di servizio per le mense scolastiche;19/01/2024
163;3;9999999;173,66;3.249,92;SERENISSIMA RISTORAZIONE SPA;932853027C;17/01/2024;4260;0;866;1;Spese correnti;3;Acquisto di beni e servizi;2;Acquisto di servizi;15;Contratti di servizio pubblico;6;Contratti di servizio per le mense scolastiche;19/01/2024
163;4;9999999;189,45;3.249,92;SERENISSIMA RISTORAZIONE SPA;932853027C;17/01/2024;4260;0;866;1;Spese correnti;3;Acquisto di beni e servizi;2;Acquisto di servizi;15;Contratti di servizio pubblico;6;Contratti di servizio per le mense scolastiche;19/01/2024
163;5;9999999;552,55;3.249,92;SERENISSIMA RISTORAZIONE SPA;932853027C;17/01/2024;4260;0;866;1;Spese correnti;3;Acquisto di beni e servizi;2;Acquisto di servizi;15;Contratti di servizio pubblico;6;Contratti di servizio per le mense scolastiche;19/01/2024
163;6;9999999;931,44;3.249,92;SERENISSIMA RISTORAZIONE SPA;932853027C;17/01/2024;4260;0;866;1;Spese correnti;3;Acquisto di beni e servizi;2;Acquisto di servizi;15;Contratti di servizio pubblico;6;Contratti di servizio per le mense scolastiche;19/01/2024
163;7;9999999;1.262,98;3.249,92;SERENISSIMA RISTORAZIONE SPA;932853027C;17/01/2024;4260;0;866;1;Spese correnti;3;Acquisto di beni e servizi;2;Acquisto di servizi;15;Contratti di servizio pubblico;6;Contratti di servizio per le mense scolastiche;19/01/2024
164;1;9999999;242,9;242,9;SERENISSIMA RISTORAZIONE SPA;932853027C;17/01/2024;4261;0;867;1;Spese correnti;3;Acquisto di beni e servizi;2;Acquisto di servizi;15;Contratti di servizio pubblico;6;Contratti di servizio per le mense scolastiche;19/01/2024
165;1;9999999;-6.386,63;5.099,75;SERENISSIMA RISTORAZIONE SPA;932853027C;17/01/2024;4261;0;1076;1;Spese correnti;3;Acquisto di beni e servizi;2;Acquisto di servizi;15;Contratti di servizio pubblico;6;Contratti di servizio per le mense scolastiche;19/01/2024
165;2;9999999;574,37;5.099,75;SERENISSIMA RISTORAZIONE SPA;932853027C;17/01/2024;4261;0;1076;1;Spese correnti;3;Acquisto di beni e servizi;2;Acquisto di servizi;15;Contratti di servizio pubblico;6;Contratti di servizio per le mense scolastiche;19/01/2024
165;3;9999999;608,45;5.099,75;SERENISSIMA RISTORAZIONE SPA;932853027C;17/01/2024;4261;0;1076;1;Spese correnti;3;Acquisto di beni e servizi;2;Acquisto di servizi;15;Contratti di servizio pubblico;6;Contratti di servizio per le mense scolastiche;19/01/2024
165;4;9999999;669,91;5.099,75;SERENISSIMA RISTORAZIONE SPA;932853027C;17/01/2024;4261;0;1076;1;Spese correnti;3;Acquisto di beni e servizi;2;Acquisto di servizi;15;Contratti di servizio pubblico;6;Contratti di servizio per le mense scolastiche;19/01/2024
165;5;9999999;724,59;5.099,75;SERENISSIMA RISTORAZIONE SPA;932853027C;17/01/2024;4261;0;1076;1;Spese correnti;3;Acquisto di beni e servizi;2;Acquisto di servizi;15;Contratti di servizio pubblico;6;Contratti di servizio per le mense scolastiche;19/01/2024
165;6;9999999;1.006,24;5.099,75;SERENISSIMA RISTORAZIONE SPA;932853027C;17/01/2024;4261;0;1076;1;Spese correnti;3;Acquisto di beni e servizi;2;Acquisto di servizi;15;Contratti di servizio pubblico;6;Contratti di servizio per le mense scolastiche;19/01/2024
165;7;9999999;1.989,10;5.099,75;SERENISSIMA RISTORAZIONE SPA;932853027C;17/01/2024;4261;0;1076;1;Spese correnti;3;Acquisto di beni e servizi;2;Acquisto di servizi;15;Contratti di servizio pubblico;6;Contratti di servizio per le mense scolastiche;19/01/2024
165;8;9999999;2.721,38;5.099,75;SERENISSIMA RISTORAZIONE SPA;932853027C;17/01/2024;4261;0;1076;1;Spese correnti;3;Acquisto di beni e servizi;2;Acquisto di servizi;15;Contratti di servizio pubblico;6;Contratti di servizio per le mense scolastiche;19/01/2024
165;9;9999999;3.192,34;5.099,75;SERENISSIMA RISTORAZIONE SPA;932853027C;17/01/2024;4261;0;1076;1;Spese correnti;3;Acquisto di beni e servizi;2;Acquisto di servizi;15;Contratti di servizio pubblico;6;Contratti di servizio per le mense scolastiche;19/01/2024
166;1;9999999;420,9;420,9;OMESSO NOMINATIVO NEL RISPETTO DELLA NORMATIVA SULLA PROTEZIONE DATI PERSONALI;Z073DECE36;17/01/2024;5060;0;1110;1;Spese correnti;3;Acquisto di beni e servizi;2;Acquisto di servizi;9;Manutenzione ordinaria e riparazioni;8;Manutenzione ordinaria e riparazioni di beni immobili;19/01/2024
167;1;9999999;-278,99;1.373,95;SERENISSIMA RISTORAZIONE SPA;932853027C;17/01/2024;7553;1;868;1;Spese correnti;3;Acquisto di beni e servizi;2;Acquisto di servizi;15;Contratti di servizio pubblico;6;Contratti di servizio per le mense scolastiche;19/01/2024
167;2;9999999;162;1.373,95;SERENISSIMA RISTORAZIONE SPA;932853027C;17/01/2024;7553;1;868;1;Spese correnti;3;Acquisto di beni e servizi;2;Acquisto di servizi;15;Contratti di servizio pubblico;6;Contratti di servizio per le mense scolastiche;19/01/2024
167;3;9999999;721,71;1.373,95;SERENISSIMA RISTORAZIONE SPA;932853027C;17/01/2024;7553;1;868;1;Spese correnti;3;Acquisto di beni e servizi;2;Acquisto di servizi;15;Contratti di servizio pubblico;6;Contratti di servizio per le mense scolastiche;19/01/2024
167;4;9999999;769,23;1.373,95;SERENISSIMA RISTORAZIONE SPA;932853027C;17/01/2024;7553;1;868;1;Spese correnti;3;Acquisto di beni e servizi;2;Acquisto di servizi;15;Contratti di servizio pubblico;6;Contratti di servizio per le mense scolastiche;19/01/2024
168;1;9999999;409,92;409,92;STENOTYPE EMILIA S.R.L.;Z5534EB969;18/01/2024;501;0;57;1;Spese correnti;3;Acquisto di beni e servizi;2;Acquisto di servizi;13;Servizi ausiliari per il funzionamento dell'ente;999;Altri servizi ausiliari n.a.c.;23/01/2024
169;1;9999999;1.464,00;1.464,00;STENOTYPE EMILIA S.R.L.;Z5534EB969;18/01/2024;501;0;241;1;Spese correnti;3;Acquisto di beni e servizi;2;Acquisto di servizi;13;Servizi ausiliari per il funzionamento dell'ente;999;Altri servizi ausiliari n.a.c.;23/01/2024
170;1;9999999;340,97;340,97;KUWAIT PETROLEUM ITALIA SPA;Z9C36EAB07;18/01/2024;1307;0;270;1;Spese correnti;3;Acquisto di beni e servizi;1;Acquisto di beni;2;Altri beni di consumo;2;Carburanti, combustibili e lubrificanti;23/01/2024
171;1;9999999;1.147,00;1.147,00;AUTOFFICINA B.M.T. CARS & TRUCKS SRL;ZE83A04208;;;;;;;;;;;;;;;
;18/01/2024;1340;1;284;1;Spese correnti;Acquisto di beni e servizi;2;Acquisto di servizi;9;Manutenzione ordinaria e riparazioni;1;Manutenzione ordinaria e riparazioni di mezzi di trasporto ad uso civile, di sicurezza e ordine pubblico;23/01/2024;;;;;;;
172;1;9999999;3.250,39;3.250,39;ERREBIAN SPA;Z6B3D61048;18/01/2024;1778;0;1006;1;Spese correnti;3;Acquisto di beni e servizi;1;Acquisto di beni;2;Altri beni di consumo;1;Carta, cancelleria e stampati;23/01/2024
173;1;9999999;304,95;304,95;KUWAIT PETROLEUM ITALIA SPA;Z9C36EAB07;18/01/2024;2197;0;271;1;Spese correnti;3;Acquisto di beni e servizi;1;Acquisto di beni;2;Altri beni di consumo;2;Carburanti, combustibili e lubrificanti;23/01/2024
174;1;9999999;1.364,57;1.364,57;AUTOFFICINA B.M.T. CARS & TRUCKS SRL;ZE83A04208;;;;;;;;;;;;;;;
;18/01/2024;2422;1;283;1;Spese correnti;Acquisto di beni e servizi;2;Acquisto di servizi;9;Manutenzione ordinaria e riparazioni;1;Manutenzione ordinaria e riparazioni di mezzi di trasporto ad uso civile, di sicurezza e ordine pubblico;23/01/2024;;;;;;;
175;1;9999999;197,17;197,17;BI ESSE SPA;Z7B398A8D1;18/01/2024;2910;0;159;1;Spese correnti;3;Acquisto di beni e servizi;1;Acquisto di beni;2;Altri beni di consumo;999;Altri beni e materiali di consumo n.a.c.;23/01/2024
176;1;9999999;400;400;BI ESSE SPA;Z7B398A8D1;18/01/2024;4010;0;160;1;Spese correnti;3;Acquisto di beni e servizi;1;Acquisto di beni;2;Altri beni di consumo;999;Altri beni e materiali di consumo n.a.c.;23/01/2024
177;1;9999999;3.953,40;3.953,40;COOP. ITACA Soc.Coop.Soc.Onlus;8693218E6C;18/01/2024;8204;4;453;1;Spese correnti;3;Acquisto di beni e servizi;2;Acquisto di servizi;99;Altri servizi;999;Altri servizi diversi n.a.c.;23/01/2024
178;1;9999999;108,85;108,85;AUTOFFICINA B.M.T. CARS & TRUCKS SRL;ZE83A04208;;;;;;;;;;;;;;;
;18/01/2024;8210;0;285;1;Spese correnti;Acquisto di beni e servizi;2;Acquisto di servizi;9;Manutenzione ordinaria e riparazioni;11;Manutenzione ordinaria e riparazioni di altri beni materiali;23/01/2024;;;;;;;
179;1;9999999;37,55;37,55;AUTOFFICINA B.M.T. CARS & TRUCKS SRL;ZE83A04208;;;;;;;;;;;;;;;
;18/01/2024;8210;1;286;1;Spese correnti;Acquisto di beni e servizi;2;Acquisto di servizi;9;Manutenzione ordinaria e riparazioni;11;Manutenzione ordinaria e riparazioni di altri beni materiali;23/01/2024;;;;;;;
180;1;9999999;2.305,80;2.305,80;GEOM. ANDREA SACCARDO;Z373CAFB7F;18/01/2024;15905;16;578;2;Spese in conto capitale;2;Investimenti fissi lordi e acquisto di terreni;1;Beni materiali;9;Beni immobili;12;Infrastrutture stradali;23/01/2024
183;1;9999999;1.964,29;1.964,29;MICHIELAN PRIMO;Z420FA8F63;19/01/2024;500;0;363;1;Spese correnti;3;Acquisto di beni e servizi;2;Acquisto di servizi;11;Prestazioni professionali e specialistiche;6;Patrocinio legale;23/01/2024
184;1;9999999;218,05;218,05;MICHIELAN PRIMO;Z420FA8F63;19/01/2024;500;0;763;1;Spese correnti;3;Acquisto di beni e servizi;2;Acquisto di servizi;11;Prestazioni professionali e specialistiche;6;Patrocinio legale;23/01/2024
185;1;9999999;334,05;334,05;ENEL ENERGIA SPA;9619395FDC;19/01/2024;1346;0;482;1;Spese correnti;3;Acquisto di beni e servizi;2;Acquisto di servizi;5;Utenze e canoni;4;Energia elettrica;23/01/2024
186;1;9999999;46,34;8.060,58;ENEL ENERGIA SPA;9619395FDC;19/01/2024;1801;0;483;1;Spese correnti;3;Acquisto di beni e servizi;2;Acquisto di servizi;5;Utenze e canoni;4;Energia elettrica;23/01/2024
186;2;9999999;183,4;8.060,58;ENEL ENERGIA SPA;9619395FDC;19/01/2024;1801;0;483;1;Spese correnti;3;Acquisto di beni e servizi;2;Acquisto di servizi;5;Utenze e canoni;4;Energia elettrica;23/01/2024
186;3;9999999;522,54;8.060,58;ENEL ENERGIA SPA;9619395FDC;19/01/2024;1801;0;483;1;Spese correnti;3;Acquisto di beni e servizi;2;Acquisto di servizi;5;Utenze e canoni;4;Energia elettrica;23/01/2024
186;4;9999999;597,42;8.060,58;ENEL ENERGIA SPA;9619395FDC;19/01/2024;1801;0;483;1;Spese correnti;3;Acquisto di beni e servizi;2;Acquisto di servizi;5;Utenze e canoni;4;Energia elettrica;23/01/2024
186;5;9999999;747,15;8.060,58;ENEL ENERGIA SPA;9619395FDC;19/01/2024;1801;0;483;1;Spese correnti;3;Acquisto di beni e servizi;2;Acquisto di servizi;5;Utenze e canoni;4;Energia elettrica;23/01/2024
186;6;9999999;5.963,73;8.060,58;ENEL ENERGIA SPA;9619395FDC;19/01/2024;1801;0;483;1;Spese correnti;3;Acquisto di beni e servizi;2;Acquisto di servizi;5;Utenze e canoni;4;Energia elettrica;23/01/2024
187;1;9999999;-9.296,40;9.279,32;DITTA MICHELETTI DI MICHELETTI SIMONE;ZEE3D44E42;19/01/2024;2190;2;999;1;Spese correnti;3;Acquisto di beni e servizi;1;Acquisto di beni;2;Altri beni di consumo;4;Vestiario;23/01/2024
187;2;9999999;9.279,32;9.279,32;DITTA MICHELETTI DI MICHELETTI SIMONE;ZEE3D44E42;19/01/2024;2190;2;999;1;Spese correnti;3;Acquisto di beni e servizi;1;Acquisto di beni;2;Altri beni di consumo;4;Vestiario;23/01/2024
187;3;9999999;9.296,40;9.279,32;DITTA MICHELETTI DI MICHELETTI SIMONE;ZEE3D44E42;19/01/2024;2190;2;999;1;Spese correnti;3;Acquisto di beni e servizi;1;Acquisto di beni;2;Altri beni di consumo;4;Vestiario;23/01/2024
188;1;9999999;1.380,05;1.380,05;TIRO A SEGNO NAZIONALE-SEZ.TV;ZDA39F2FA6;19/01/2024;2334;2;287;1;Spese correnti;3;Acquisto di beni e servizi;2;Acquisto di servizi;4;Acquisto di servizi per formazione e addestramento del personale dell'ente;4;Acquisto di servizi per formazione obbligatoria;23/01/2024
189;1;9999999;463,6;463,6;Velocar S.r.l.;ZC33B14325;19/01/2024;2344;1;518;1;Spese correnti;3;Acquisto di beni e servizi;2;Acquisto di servizi;9;Manutenzione ordinaria e riparazioni;5;Manutenzione ordinaria e riparazioni di attrezzature;23/01/2024
190;1;9999999;434,05;434,05;ENEL ENERGIA SPA;Z5A3AB0AFF;19/01/2024;2790;0;641;1;Spese correnti;3;Acquisto di beni e servizi;2;Acquisto di servizi;5;Utenze e canoni;4;Energia elettrica;23/01/2024
191;1;9999999;609,36;609,36;VIER  SCARL; ;19/01/2024;2792;0;235;1;Spese correnti;3;Acquisto di beni e servizi;2;Acquisto di servizi;5;Utenze e canoni;4;Energia elettrica;23/01/2024
192;1;9999999;4.596,98;4.596,98;VIER  SCARL; ;19/01/2024;2973;0;131;1;Spese correnti;3;Acquisto di beni e servizi;2;Acquisto di servizi;5;Utenze e canoni;4;Energia elettrica;23/01/2024
193;1;9999999;243,02;541,36;ENEL ENERGIA SPA;9619395FDC;19/01/2024;2973;0;484;1;Spese correnti;3;Acquisto di beni e servizi;2;Acquisto di servizi;5;Utenze e canoni;4;Energia elettrica;23/01/2024
193;2;9999999;298,34;541,36;ENEL ENERGIA SPA;9619395FDC;19/01/2024;2973;0;484;1;Spese correnti;3;Acquisto di beni e servizi;2;Acquisto di servizi;5;Utenze e canoni;4;Energia elettrica;23/01/2024
194;1;9999999;275,59;275,59;ENEL ENERGIA SPA;Z5A3AB0AFF;19/01/2024;2973;0;640;1;Spese correnti;3;Acquisto di beni e servizi;2;Acquisto di servizi;5;Utenze e canoni;4;Energia elettrica;23/01/2024
195;1;9999999;1.751,59;1.751,59;VIER  SCARL; ;19/01/2024;4020;0;236;1;Spese correnti;3;Acquisto di beni e servizi;2;Acquisto di servizi;5;Utenze e canoni;4;Energia elettrica;23/01/2024
196;1;9999999;909,83;909,83;ENEL ENERGIA SPA;9619395FDC;19/01/2024;4527;0;485;1;Spese correnti;3;Acquisto di beni e servizi;2;Acquisto di servizi;5;Utenze e canoni;4;Energia elettrica;23/01/2024
197;1;9999999;59,76;59,76;ENEL ENERGIA SPA;9619395FDC;19/01/2024;4686;1;486;1;Spese correnti;3;Acquisto di beni e servizi;2;Acquisto di servizi;5;Utenze e canoni;4;Energia elettrica;23/01/2024
198;1;9999999;670,18;670,18;VIER  SCARL; ;19/01/2024;5050;0;141;1;Spese correnti;3;Acquisto di beni e servizi;2;Acquisto di servizi;5;Utenze e canoni;4;Energia elettrica;23/01/2024
199;1;9999999;539,52;539,52;VIER  SCARL; ;19/01/2024;5050;0;132;1;Spese correnti;3;Acquisto di beni e servizi;2;Acquisto di servizi;5;Utenze e canoni;4;Energia elettrica;23/01/2024
200;1;9999999;-195,81;1.601,10;ENEL ENERGIA SPA;9619395FDC;19/01/2024;5930;0;481;1;Spese correnti;3;Acquisto di beni e servizi;2;Acquisto di servizi;5;Utenze e canoni;4;Energia elettrica;23/01/2024
200;2;9999999;-189,53;1.601,10;ENEL ENERGIA SPA;9619395FDC;19/01/2024;5930;0;481;1;Spese correnti;3;Acquisto di beni e servizi;2;Acquisto di servizi;5;Utenze e canoni;4;Energia elettrica;23/01/2024
200;3;9999999;-43,22;1.601,10;ENEL ENERGIA SPA;9619395FDC;19/01/2024;5930;0;481;1;Spese correnti;3;Acquisto di beni e servizi;2;Acquisto di servizi;5;Utenze e canoni;4;Energia elettrica;23/01/2024
200;4;9999999;-20,44;1.601,10;ENEL ENERGIA SPA;9619395FDC;19/01/2024;5930;0;481;1;Spese correnti;3;Acquisto di beni e servizi;2;Acquisto di servizi;5;Utenze e canoni;4;Energia elettrica;23/01/2024
200;5;9999999;0,2;1.601,10;ENEL ENERGIA SPA;9619395FDC;19/01/2024;5930;0;481;1;Spese correnti;3;Acquisto di beni e servizi;2;Acquisto di servizi;5;Utenze e canoni;4;Energia elettrica;23/01/2024
200;6;9999999;9,39;1.601,10;ENEL ENERGIA SPA;9619395FDC;19/01/2024;5930;0;481;1;Spese correnti;3;Acquisto di beni e servizi;2;Acquisto di servizi;5;Utenze e canoni;4;Energia elettrica;23/01/2024
200;7;9999999;10,82;1.601,10;ENEL ENERGIA SPA;9619395FDC;19/01/2024;5930;0;481;1;Spese correnti;3;Acquisto di beni e servizi;2;Acquisto di servizi;5;Utenze e canoni;4;Energia elettrica;23/01/2024
200;8;9999999;11,08;1.601,10;ENEL ENERGIA SPA;9619395FDC;19/01/2024;5930;0;481;1;Spese correnti;3;Acquisto di beni e servizi;2;Acquisto di servizi;5;Utenze e canoni;4;Energia elettrica;23/01/2024
200;9;9999999;11,9;1.601,10;ENEL ENERGIA SPA;9619395FDC;19/01/2024;5930;0;481;1;Spese correnti;3;Acquisto di beni e servizi;2;Acquisto di servizi;5;Utenze e canoni;4;Energia elettrica;23/01/2024
200;10;9999999;12;1.601,10;ENEL ENERGIA SPA;9619395FDC;19/01/2024;5930;0;481;1;Spese correnti;3;Acquisto di beni e servizi;2;Acquisto di servizi;5;Utenze e canoni;4;Energia elettrica;23/01/2024
200;11;9999999;13,73;1.601,10;ENEL ENERGIA SPA;9619395FDC;19/01/2024;5930;0;481;1;Spese correnti;3;Acquisto di beni e servizi;2;Acquisto di servizi;5;Utenze e canoni;4;Energia elettrica;23/01/2024
200;12;9999999;15,77;1.601,10;ENEL ENERGIA SPA;9619395FDC;19/01/2024;5930;0;481;1;Spese correnti;3;Acquisto di beni e servizi;2;Acquisto di servizi;5;Utenze e canoni;4;Energia elettrica;23/01/2024
200;13;9999999;16,29;1.601,10;ENEL ENERGIA SPA;9619395FDC;19/01/2024;5930;0;481;1;Spese correnti;3;Acquisto di beni e servizi;2;Acquisto di servizi;5;Utenze e canoni;4;Energia elettrica;23/01/2024
200;14;9999999;17,3;1.601,10;ENEL ENERGIA SPA;9619395FDC;19/01/2024;5930;0;481;1;Spese correnti;3;Acquisto di beni e servizi;2;Acquisto di servizi;5;Utenze e canoni;4;Energia elettrica;23/01/2024
200;15;9999999;21,11;1.601,10;ENEL ENERGIA SPA;9619395FDC;19/01/2024;5930;0;481;1;Spese correnti;3;Acquisto di beni e servizi;2;Acquisto di servizi;5;Utenze e canoni;4;Energia elettrica;23/01/2024
200;16;9999999;22,73;1.601,10;ENEL ENERGIA SPA;9619395FDC;19/01/2024;5930;0;481;1;Spese correnti;3;Acquisto di beni e servizi;2;Acquisto di servizi;5;Utenze e canoni;4;Energia elettrica;23/01/2024
200;17;9999999;26,91;1.601,10;ENEL ENERGIA SPA;9619395FDC;19/01/2024;5930;0;481;1;Spese correnti;3;Acquisto di beni e servizi;2;Acquisto di servizi;5;Utenze e canoni;4;Energia elettrica;23/01/2024
200;18;9999999;30,52;1.601,10;ENEL ENERGIA SPA;9619395FDC;19/01/2024;5930;0;481;1;Spese correnti;3;Acquisto di beni e servizi;2;Acquisto di servizi;5;Utenze e canoni;4;Energia elettrica;23/01/2024
200;19;9999999;31,43;1.601,10;ENEL ENERGIA SPA;9619395FDC;19/01/2024;5930;0;481;1;Spese correnti;3;Acquisto di beni e servizi;2;Acquisto di servizi;5;Utenze e canoni;4;Energia elettrica;23/01/2024
200;20;9999999;32,49;1.601,10;ENEL ENERGIA SPA;9619395FDC;19/01/2024;5930;0;481;1;Spese correnti;3;Acquisto di beni e servizi;2;Acquisto di servizi;5;Utenze e canoni;4;Energia elettrica;23/01/2024
200;21;9999999;34,59;1.601,10;ENEL ENERGIA SPA;9619395FDC;19/01/2024;5930;0;481;1;Spese correnti;3;Acquisto di beni e servizi;2;Acquisto di servizi;5;Utenze e canoni;4;Energia elettrica;23/01/2024
200;22;9999999;39,36;1.601,10;ENEL ENERGIA SPA;9619395FDC;19/01/2024;5930;0;481;1;Spese correnti;3;Acquisto di beni e servizi;2;Acquisto di servizi;5;Utenze e canoni;4;Energia elettrica;23/01/2024
200;23;9999999;42,38;1.601,10;ENEL ENERGIA SPA;9619395FDC;19/01/2024;5930;0;481;1;Spese correnti;3;Acquisto di beni e servizi;2;Acquisto di servizi;5;Utenze e canoni;4;Energia elettrica;23/01/2024
200;24;9999999;53,22;1.601,10;ENEL ENERGIA SPA;9619395FDC;19/01/2024;5930;0;481;1;Spese correnti;3;Acquisto di beni e servizi;2;Acquisto di servizi;5;Utenze e canoni;4;Energia elettrica;23/01/2024
200;25;9999999;55,23;1.601,10;ENEL ENERGIA SPA;9619395FDC;19/01/2024;5930;0;481;1;Spese correnti;3;Acquisto di beni e servizi;2;Acquisto di servizi;5;Utenze e canoni;4;Energia elettrica;23/01/2024
200;26;9999999;55,47;1.601,10;ENEL ENERGIA SPA;9619395FDC;19/01/2024;5930;0;481;1;Spese correnti;3;Acquisto di beni e servizi;2;Acquisto di servizi;5;Utenze e canoni;4;Energia elettrica;23/01/2024
200;27;9999999;57,69;1.601,10;ENEL ENERGIA SPA;9619395FDC;19/01/2024;5930;0;481;1;Spese correnti;3;Acquisto di beni e servizi;2;Acquisto di servizi;5;Utenze e canoni;4;Energia elettrica;23/01/2024
200;28;9999999;61,13;1.601,10;ENEL ENERGIA SPA;9619395FDC;19/01/2024;5930;0;481;1;Spese correnti;3;Acquisto di beni e servizi;2;Acquisto di servizi;5;Utenze e canoni;4;Energia elettrica;23/01/2024
200;29;9999999;61,13;1.601,10;ENEL ENERGIA SPA;9619395FDC;19/01/2024;5930;0;481;1;Spese correnti;3;Acquisto di beni e servizi;2;Acquisto di servizi;5;Utenze e canoni;4;Energia elettrica;23/01/2024
200;30;9999999;76,68;1.601,10;ENEL ENERGIA SPA;9619395FDC;19/01/2024;5930;0;481;1;Spese correnti;3;Acquisto di beni e servizi;2;Acquisto di servizi;5;Utenze e canoni;4;Energia elettrica;23/01/2024
200;31;9999999;82,17;1.601,10;ENEL ENERGIA SPA;9619395FDC;19/01/2024;5930;0;481;1;Spese correnti;3;Acquisto di beni e servizi;2;Acquisto di servizi;5;Utenze e canoni;4;Energia elettrica;23/01/2024
200;32;9999999;100,35;1.601,10;ENEL ENERGIA SPA;9619395FDC;19/01/2024;5930;0;481;1;Spese correnti;3;Acquisto di beni e servizi;2;Acquisto di servizi;5;Utenze e canoni;4;Energia elettrica;23/01/2024
200;33;9999999;114,16;1.601,10;ENEL ENERGIA SPA;9619395FDC;19/01/2024;5930;0;481;1;Spese correnti;3;Acquisto di beni e servizi;2;Acquisto di servizi;5;Utenze e canoni;4;Energia elettrica;23/01/2024
200;34;9999999;114,16;1.601,10;ENEL ENERGIA SPA;9619395FDC;19/01/2024;5930;0;481;1;Spese correnti;3;Acquisto di beni e servizi;2;Acquisto di servizi;5;Utenze e canoni;4;Energia elettrica;23/01/2024
200;35;9999999;119,49;1.601,10;ENEL ENERGIA SPA;9619395FDC;19/01/2024;5930;0;481;1;Spese correnti;3;Acquisto di beni e servizi;2;Acquisto di servizi;5;Utenze e canoni;4;Energia elettrica;23/01/2024
200;36;9999999;121,5;1.601,10;ENEL ENERGIA SPA;9619395FDC;19/01/2024;5930;0;481;1;Spese correnti;3;Acquisto di beni e servizi;2;Acquisto di servizi;5;Utenze e canoni;4;Energia elettrica;23/01/2024
200;37;9999999;124,26;1.601,10;ENEL ENERGIA SPA;9619395FDC;19/01/2024;5930;0;481;1;Spese correnti;3;Acquisto di beni e servizi;2;Acquisto di servizi;5;Utenze e canoni;4;Energia elettrica;23/01/2024
200;38;9999999;148,69;1.601,10;ENEL ENERGIA SPA;9619395FDC;19/01/2024;5930;0;481;1;Spese correnti;3;Acquisto di beni e servizi;2;Acquisto di servizi;5;Utenze e canoni;4;Energia elettrica;23/01/2024
200;39;9999999;152,26;1.601,10;ENEL ENERGIA SPA;9619395FDC;19/01/2024;5930;0;481;1;Spese correnti;3;Acquisto di beni e servizi;2;Acquisto di servizi;5;Utenze e canoni;4;Energia elettrica;23/01/2024
200;40;9999999;152,51;1.601,10;ENEL ENERGIA SPA;9619395FDC;19/01/2024;5930;0;481;1;Spese correnti;3;Acquisto di beni e servizi;2;Acquisto di servizi;5;Utenze e canoni;4;Energia elettrica;23/01/2024
201;1;9999999;152,77;13.315,32;ENEL ENERGIA SPA;9619395FDC;19/01/2024;5930;0;481;1;Spese correnti;3;Acquisto di beni e servizi;2;Acquisto di servizi;5;Utenze e canoni;4;Energia elettrica;23/01/2024
201;2;9999999;170,15;13.315,32;ENEL ENERGIA SPA;9619395FDC;19/01/2024;5930;0;481;1;Spese correnti;3;Acquisto di beni e servizi;2;Acquisto di servizi;5;Utenze e canoni;4;Energia elettrica;23/01/2024
201;3;9999999;182,99;13.315,32;ENEL ENERGIA SPA;9619395FDC;19/01/2024;5930;0;481;1;Spese correnti;3;Acquisto di beni e servizi;2;Acquisto di servizi;5;Utenze e canoni;4;Energia elettrica;23/01/2024
201;4;9999999;205,68;13.315,32;ENEL ENERGIA SPA;9619395FDC;19/01/2024;5930;0;481;1;Spese correnti;3;Acquisto di beni e servizi;2;Acquisto di servizi;5;Utenze e canoni;4;Energia elettrica;23/01/2024
201;5;9999999;210,93;13.315,32;ENEL ENERGIA SPA;9619395FDC;19/01/2024;5930;0;481;1;Spese correnti;3;Acquisto di beni e servizi;2;Acquisto di servizi;5;Utenze e canoni;4;Energia elettrica;23/01/2024
201;6;9999999;223,54;13.315,32;ENEL ENERGIA SPA;9619395FDC;19/01/2024;5930;0;481;1;Spese correnti;3;Acquisto di beni e servizi;2;Acquisto di servizi;5;Utenze e canoni;4;Energia elettrica;23/01/2024
201;7;9999999;224,59;13.315,32;ENEL ENERGIA SPA;9619395FDC;19/01/2024;5930;0;481;1;Spese correnti;3;Acquisto di beni e servizi;2;Acquisto di servizi;5;Utenze e canoni;4;Energia elettrica;23/01/2024
201;8;9999999;226,01;13.315,32;ENEL ENERGIA SPA;9619395FDC;19/01/2024;5930;0;481;1;Spese correnti;3;Acquisto di beni e servizi;2;Acquisto di servizi;5;Utenze e canoni;4;Energia elettrica;23/01/2024
201;9;9999999;230,25;13.315,32;ENEL ENERGIA SPA;9619395FDC;19/01/2024;5930;0;481;1;Spese correnti;3;Acquisto di beni e servizi;2;Acquisto di servizi;5;Utenze e canoni;4;Energia elettrica;23/01/2024
201;10;9999999;231,59;13.315,32;ENEL ENERGIA SPA;9619395FDC;19/01/2024;5930;0;481;1;Spese correnti;3;Acquisto di beni e servizi;2;Acquisto di servizi;5;Utenze e canoni;4;Energia elettrica;23/01/2024
201;11;9999999;233,41;13.315,32;ENEL ENERGIA SPA;9619395FDC;19/01/2024;5930;0;481;1;Spese correnti;3;Acquisto di beni e servizi;2;Acquisto di servizi;5;Utenze e canoni;4;Energia elettrica;23/01/2024
201;12;9999999;233,87;13.315,32;ENEL ENERGIA SPA;9619395FDC;19/01/2024;5930;0;481;1;Spese correnti;3;Acquisto di beni e servizi;2;Acquisto di servizi;5;Utenze e canoni;4;Energia elettrica;23/01/2024
201;13;9999999;257,3;13.315,32;ENEL ENERGIA SPA;9619395FDC;19/01/2024;5930;0;481;1;Spese correnti;3;Acquisto di beni e servizi;2;Acquisto di servizi;5;Utenze e canoni;4;Energia elettrica;23/01/2024
201;14;9999999;258,65;13.315,32;ENEL ENERGIA SPA;9619395FDC;19/01/2024;5930;0;481;1;Spese correnti;3;Acquisto di beni e servizi;2;Acquisto di servizi;5;Utenze e canoni;4;Energia elettrica;23/01/2024
201;15;9999999;262,09;13.315,32;ENEL ENERGIA SPA;9619395FDC;19/01/2024;5930;0;481;1;Spese correnti;3;Acquisto di beni e servizi;2;Acquisto di servizi;5;Utenze e canoni;4;Energia elettrica;23/01/2024
201;16;9999999;284,26;13.315,32;ENEL ENERGIA SPA;9619395FDC;19/01/2024;5930;0;481;1;Spese correnti;3;Acquisto di beni e servizi;2;Acquisto di servizi;5;Utenze e canoni;4;Energia elettrica;23/01/2024
201;17;9999999;302,89;13.315,32;ENEL ENERGIA SPA;9619395FDC;19/01/2024;5930;0;481;1;Spese correnti;3;Acquisto di beni e servizi;2;Acquisto di servizi;5;Utenze e canoni;4;Energia elettrica;23/01/2024
201;18;9999999;303,67;13.315,32;ENEL ENERGIA SPA;9619395FDC;19/01/2024;5930;0;481;1;Spese correnti;3;Acquisto di beni e servizi;2;Acquisto di servizi;5;Utenze e canoni;4;Energia elettrica;23/01/2024
201;19;9999999;331,28;13.315,32;ENEL ENERGIA SPA;9619395FDC;19/01/2024;5930;0;481;1;Spese correnti;3;Acquisto di beni e servizi;2;Acquisto di servizi;5;Utenze e canoni;4;Energia elettrica;23/01/2024
201;20;9999999;399,01;13.315,32;ENEL ENERGIA SPA;9619395FDC;19/01/2024;5930;0;481;1;Spese correnti;3;Acquisto di beni e servizi;2;Acquisto di servizi;5;Utenze e canoni;4;Energia elettrica;23/01/2024
201;21;9999999;450,61;13.315,32;ENEL ENERGIA SPA;9619395FDC;19/01/2024;5930;0;481;1;Spese correnti;3;Acquisto di beni e servizi;2;Acquisto di servizi;5;Utenze e canoni;4;Energia elettrica;23/01/2024
201;22;9999999;469,31;13.315,32;ENEL ENERGIA SPA;9619395FDC;19/01/2024;5930;0;481;1;Spese correnti;3;Acquisto di beni e servizi;2;Acquisto di servizi;5;Utenze e canoni;4;Energia elettrica;23/01/2024
201;23;9999999;481,64;13.315,32;ENEL ENERGIA SPA;9619395FDC;19/01/2024;5930;0;481;1;Spese correnti;3;Acquisto di beni e servizi;2;Acquisto di servizi;5;Utenze e canoni;4;Energia elettrica;23/01/2024
201;24;9999999;527,8;13.315,32;ENEL ENERGIA SPA;9619395FDC;19/01/2024;5930;0;481;1;Spese correnti;3;Acquisto di beni e servizi;2;Acquisto di servizi;5;Utenze e canoni;4;Energia elettrica;23/01/2024
201;25;9999999;533,92;13.315,32;ENEL ENERGIA SPA;9619395FDC;19/01/2024;5930;0;481;1;Spese correnti;3;Acquisto di beni e servizi;2;Acquisto di servizi;5;Utenze e canoni;4;Energia elettrica;23/01/2024
201;26;9999999;562,81;13.315,32;ENEL ENERGIA SPA;9619395FDC;19/01/2024;5930;0;481;1;Spese correnti;3;Acquisto di beni e servizi;2;Acquisto di servizi;5;Utenze e canoni;4;Energia elettrica;23/01/2024
201;27;9999999;564,8;13.315,32;ENEL ENERGIA SPA;9619395FDC;19/01/2024;5930;0;481;1;Spese correnti;3;Acquisto di beni e servizi;2;Acquisto di servizi;5;Utenze e canoni;4;Energia elettrica;23/01/2024
201;28;9999999;568,36;13.315,32;ENEL ENERGIA SPA;9619395FDC;19/01/2024;5930;0;481;1;Spese correnti;3;Acquisto di beni e servizi;2;Acquisto di servizi;5;Utenze e canoni;4;Energia elettrica;23/01/2024
201;29;9999999;626,86;13.315,32;ENEL ENERGIA SPA;9619395FDC;19/01/2024;5930;0;481;1;Spese correnti;3;Acquisto di beni e servizi;2;Acquisto di servizi;5;Utenze e canoni;4;Energia elettrica;23/01/2024
201;30;9999999;647,75;13.315,32;ENEL ENERGIA SPA;9619395FDC;19/01/2024;5930;0;481;1;Spese correnti;3;Acquisto di beni e servizi;2;Acquisto di servizi;5;Utenze e canoni;4;Energia elettrica;23/01/2024
201;31;9999999;653,81;13.315,32;ENEL ENERGIA SPA;9619395FDC;19/01/2024;5930;0;481;1;Spese correnti;3;Acquisto di beni e servizi;2;Acquisto di servizi;5;Utenze e canoni;4;Energia elettrica;23/01/2024
201;32;9999999;718,49;13.315,32;ENEL ENERGIA SPA;9619395FDC;19/01/2024;5930;0;481;1;Spese correnti;3;Acquisto di beni e servizi;2;Acquisto di servizi;5;Utenze e canoni;4;Energia elettrica;23/01/2024
201;33;9999999;782,47;13.315,32;ENEL ENERGIA SPA;9619395FDC;19/01/2024;5930;0;481;1;Spese correnti;3;Acquisto di beni e servizi;2;Acquisto di servizi;5;Utenze e canoni;4;Energia elettrica;23/01/2024
201;34;9999999;801,76;13.315,32;ENEL ENERGIA SPA;9619395FDC;19/01/2024;5930;0;481;1;Spese correnti;3;Acquisto di beni e servizi;2;Acquisto di servizi;5;Utenze e canoni;4;Energia elettrica;23/01/2024
202;1;9999999;11,93;911,26;ENEL ENERGIA SPA;9619395FDC;19/01/2024;5931;0;488;1;Spese correnti;3;Acquisto di beni e servizi;2;Acquisto di servizi;5;Utenze e canoni;4;Energia elettrica;23/01/2024
202;2;9999999;18,35;911,26;ENEL ENERGIA SPA;9619395FDC;19/01/2024;5931;0;488;1;Spese correnti;3;Acquisto di beni e servizi;2;Acquisto di servizi;5;Utenze e canoni;4;Energia elettrica;23/01/2024
202;3;9999999;90,55;911,26;ENEL ENERGIA SPA;9619395FDC;19/01/2024;5931;0;488;1;Spese correnti;3;Acquisto di beni e servizi;2;Acquisto di servizi;5;Utenze e canoni;4;Energia elettrica;23/01/2024
202;4;9999999;91,1;911,26;ENEL ENERGIA SPA;9619395FDC;19/01/2024;5931;0;488;1;Spese correnti;3;Acquisto di beni e servizi;2;Acquisto di servizi;5;Utenze e canoni;4;Energia elettrica;23/01/2024
202;5;9999999;94;911,26;ENEL ENERGIA SPA;9619395FDC;19/01/2024;5931;0;488;1;Spese correnti;3;Acquisto di beni e servizi;2;Acquisto di servizi;5;Utenze e canoni;4;Energia elettrica;23/01/2024
202;6;9999999;95,45;911,26;ENEL ENERGIA SPA;9619395FDC;19/01/2024;5931;0;488;1;Spese correnti;3;Acquisto di beni e servizi;2;Acquisto di servizi;5;Utenze e canoni;4;Energia elettrica;23/01/2024
202;7;9999999;118,29;911,26;ENEL ENERGIA SPA;9619395FDC;19/01/2024;5931;0;488;1;Spese correnti;3;Acquisto di beni e servizi;2;Acquisto di servizi;5;Utenze e canoni;4;Energia elettrica;23/01/2024
202;8;9999999;127,15;911,26;ENEL ENERGIA SPA;9619395FDC;19/01/2024;5931;0;488;1;Spese correnti;3;Acquisto di beni e servizi;2;Acquisto di servizi;5;Utenze e canoni;4;Energia elettrica;23/01/2024
202;9;9999999;264,44;911,26;ENEL ENERGIA SPA;9619395FDC;19/01/2024;5931;0;488;1;Spese correnti;3;Acquisto di beni e servizi;2;Acquisto di servizi;5;Utenze e canoni;4;Energia elettrica;23/01/2024
203;1;9999999;57,82;121,09;ENEL ENERGIA SPA;9619395FDC;19/01/2024;6461;0;487;1;Spese correnti;3;Acquisto di beni e servizi;2;Acquisto di servizi;5;Utenze e canoni;4;Energia elettrica;23/01/2024
203;2;9999999;63,27;121,09;ENEL ENERGIA SPA;9619395FDC;19/01/2024;6461;0;487;1;Spese correnti;3;Acquisto di beni e servizi;2;Acquisto di servizi;5;Utenze e canoni;4;Energia elettrica;23/01/2024
204;1;9999999;406,24;406,24;VIER  SCARL; ;19/01/2024;7552;1;237;1;Spese correnti;3;Acquisto di beni e servizi;2;Acquisto di servizi;5;Utenze e canoni;4;Energia elettrica;23/01/2024
205;1;9999999;289,36;289,36;ENEL ENERGIA SPA;Z5A3AB0AFF;19/01/2024;7552;1;642;1;Spese correnti;3;Acquisto di beni e servizi;2;Acquisto di servizi;5;Utenze e canoni;4;Energia elettrica;23/01/2024
206;1;9999999;2.000,00;2.000,00;ASCOM SERVIZI S P A;Z063CA640B;19/01/2024;9440;0;853;1;Spese correnti;3;Acquisto di beni e servizi;2;Acquisto di servizi;99;Altri servizi;999;Altri servizi diversi n.a.c.;23/01/2024
207;1;9999999;5.000,00;5.000,00;CONTARINA S.P.A.; ;19/01/2024;12441;0;1072;2;Spese in conto capitale;2;Investimenti fissi lordi e acquisto di terreni;1;Beni materiali;9;Beni immobili;9;Infrastrutture telematiche;23/01/2024
208;1;9999999;15.175,00;15.175,00;CONTARINA S.P.A.; ;19/01/2024;12453;0;1070;2;Spese in conto capitale;2;Investimenti fissi lordi e acquisto di terreni;1;Beni materiali;9;Beni immobili;9;Infrastrutture telematiche;23/01/2024
209;1;9999999;35.000,00;35.000,00;CONTARINA S.P.A.; ;19/01/2024;12454;0;1071;2;Spese in conto capitale;2;Investimenti fissi lordi e acquisto di terreni;1;Beni materiali;9;Beni immobili;9;Infrastrutture telematiche;23/01/2024
210;1;9999999;804,99;804,99;CONSIGLIO DI BACINO PRIULA; ;19/01/2024;6278;0;1004;1;Spese correnti;3;Acquisto di beni e servizi;2;Acquisto di servizi;19;Servizi informatici e di telecomunicazioni;1;Gestione e manutenzione applicazioni;22/01/2024
211;1;9999999;177,1;177,1;CONSIGLIO DI BACINO PRIULA; ;19/01/2024;6278;0;1004;1;Spese correnti;3;Acquisto di beni e servizi;2;Acquisto di servizi;19;Servizi informatici e di telecomunicazioni;1;Gestione e manutenzione applicazioni;23/01/2024
212;1;9999999;1.180,00;1.180,00;CONSIGLIO DI BACINO PRIULA; ;19/01/2024;8674;0;848;1;Spese correnti;3;Acquisto di beni e servizi;2;Acquisto di servizi;15;Contratti di servizio pubblico;999;Altre spese per contratti di servizio pubblico;22/01/2024
213;1;9999999;259,6;259,6;CONSIGLIO DI BACINO PRIULA; ;19/01/2024;8674;0;848;1;Spese correnti;3;Acquisto di beni e servizi;2;Acquisto di servizi;15;Contratti di servizio pubblico;999;Altre spese per contratti di servizio pubblico;23/01/2024
214;1;9999999;8.995,20;8.995,20;COMUNE DI MOGLIANO VENETO; ;19/01/2024;12455;0;1367;2;Spese in conto capitale;3;Contributi agli investimenti;1;Contributi agli investimenti a Amministrazioni pubbliche;2;Contributi agli investimenti a Amministrazioni Locali;3;Contributi agli investimenti a Comuni;23/01/2024
215;1;9999999;78,17;78,17;ZAMPIERI TATIANA; ;19/01/2024;2882;0;276;1;Spese correnti;3;Acquisto di beni e servizi;1;Acquisto di beni;2;Altri beni di consumo;999;Altri beni e materiali di consumo n.a.c.;23/01/2024
216;1;9999999;30.000,00;30.000,00;CONTARINA S.P.A.; ;19/01/2024;7430;0;868;1;Spese correnti;3;Acquisto di beni e servizi;2;Acquisto di servizi;9;Manutenzione ordinaria e riparazioni;8;Manutenzione ordinaria e riparazioni di beni immobili;23/01/2024
217;1;9999999;60.000,00;60.000,00;CONTARINA S.P.A.; ;19/01/2024;7430;1;636;1;Spese correnti;3;Acquisto di beni e servizi;2;Acquisto di servizi;9;Manutenzione ordinaria e riparazioni;12;Manutenzione ordinaria e riparazioni di terreni e beni materiali non prodotti;23/01/2024
219;1;9999999;12.611,48;12.611,48;AMMINISTRATORI COMUNALI; ;22/01/2024;74;0;59;1;Spese correnti;3;Acquisto di beni e servizi;2;Acquisto di servizi;1;Organi e incarichi istituzionali dell'amministrazione;1;Organi istituzionali dell'amministrazione - Indennità;25/01/2024
220;1;9999999;381,5;381,5;OMESSO NOMINATIVO NEL RISPETTO DELLA NORMATIVA SULLA PROTEZIONE DATI PERSONALI; ;22/01/2024;74;1;1046;1;Spese correnti;3;Acquisto di beni e servizi;2;Acquisto di servizi;2;Organizzazione eventi, pubblicita` e servizi per trasferta;1;Rimborso per viaggio e trasloco;25/01/2024
310;1;9999999;1.200,00;1.200,00;MINISTERO DELLO SVILUPPO ECONOMICO; ;22/01/2024;1800;0;142;1;Spese correnti;3;Acquisto di beni e servizi;2;Acquisto di servizi;19;Servizi informatici e di telecomunicazioni;5;Servizi per i sistemi e relativa manutenzione;30/01/2024
311;1;9999999;831,62;831,62;COMUNE DI MOGLIANO VENETO; ;22/01/2024;2452;1;307;1;Spese correnti;4;Trasferimenti correnti;1;Trasferimenti correnti a Amministrazioni Pubbliche;2;Trasferimenti correnti a Amministrazioni Locali;3;Trasferimenti correnti a Comuni;24/01/2024
312;1;9999999;8.183,76;8.183,76;ACCATRE-STP PROFESSIONISTI ENTI PUBBLICI S.r.l.;Z7533D22E6;22/01/2024;670;1;1167;1;Spese correnti;3;Acquisto di beni e servizi;2;Acquisto di servizi;99;Altri servizi;999;Altri servizi diversi n.a.c.;24/01/2024
313;1;9999999;394,24;976,17;ABACO S.P.A.;9,44E+58;22/01/2024;1010;0;1065;1;Spese correnti;3;Acquisto di beni e servizi;2;Acquisto di servizi;3;Aggi di riscossione;999;Altri aggi di riscossione n.a.c.;24/01/2024
313;2;9999999;581,93;976,17;ABACO S.P.A.;9,44E+58;;;;;;;;;;;;;;;
;22/01/2024;1010;0;1065;1;Spese correnti;Acquisto di beni e servizi;2;Acquisto di servizi;3;Aggi di riscossione;999;Altri aggi di riscossione n.a.c.;24/01/2024;;;;;;;
314;1;9999999;941,93;941,93;POSTE ITALIANE SPA;ZCE3502180;22/01/2024;1793;0;288;1;Spese correnti;3;Acquisto di beni e servizi;2;Acquisto di servizi;16;Servizi amministrativi;2;Spese postali;24/01/2024
315;1;9999999;10.528,11;41.095,81;CONTARINA S.P.A.; ;22/01/2024;7430;1;916;1;Spese correnti;3;Acquisto di beni e servizi;2;Acquisto di servizi;9;Manutenzione ordinaria e riparazioni;8;Manutenzione ordinaria e riparazioni di beni immobili;24/01/2024
315;2;9999999;30.567,70;41.095,81;CONTARINA S.P.A.; ;22/01/2024;7430;1;916;1;Spese correnti;3;Acquisto di beni e servizi;2;Acquisto di servizi;9;Manutenzione ordinaria e riparazioni;8;Manutenzione ordinaria e riparazioni di beni immobili;24/01/2024
316;1;9999999;1.172,57;1.172,57;TELECOM ITALIA S.P.A.;ZC436E9574;22/01/2024;15905;4;453;2;Spese in conto capitale;2;Investimenti fissi lordi e acquisto di terreni;1;Beni materiali;9;Beni immobili;12;Infrastrutture stradali;24/01/2024
317;1;9999999;182,71;182,71;MORANDINI GIANNI; ;22/01/2024;172;0;1013;1;Spese correnti;3;Acquisto di beni e servizi;2;Acquisto di servizi;1;Organi e incarichi istituzionali dell'amministrazione;2;Organi istituzionali dell'amministrazione - Rimborsi;24/01/2024
318;1;9999999;6.175,88;6.175,88;FILIPPETTO NICOLA; ;22/01/2024;170;0;1012;1;Spese correnti;3;Acquisto di beni e servizi;2;Acquisto di servizi;1;Organi e incarichi istituzionali dell'amministrazione;8;Compensi agli organi istituzionali di revisione, di controllo ed altri incarichi istituzionali dell'amministrazione;24/01/2024
319;1;9999999;4.117,26;4.117,26;CHINELLATO CARLO; ;;;;;;;;;;;;;;;
;22/01/2024;170;0;1012;1;Spese correnti;Acquisto di beni e servizi;2;Acquisto di servizi;1;Organi e incarichi istituzionali dell'amministrazione;8;Compensi agli organi istituzionali di revisione, di controllo ed altri incarichi istituzionali dell'amministrazione;24/01/2024;;;;;;;
320;1;9999999;8.234,51;8.234,51;MORANDINI GIANNI; ;22/01/2024;170;0;1012;1;Spese correnti;3;Acquisto di beni e servizi;2;Acquisto di servizi;1;Organi e incarichi istituzionali dell'amministrazione;8;Compensi agli organi istituzionali di revisione, di controllo ed altri incarichi istituzionali dell'amministrazione;24/01/2024
321;1;9999999;4.090,23;4.090,23;PRO LOCO PREGANZIOL; ;22/01/2024;5412;0;146;1;Spese correnti;4;Trasferimenti correnti;4;Trasferimenti correnti a Istituzioni Sociali Private;1;Trasferimenti correnti a Istituzioni Sociali Private;1;Trasferimenti correnti a Istituzioni Sociali Private;24/01/2024
322;1;9999999;2.134,82;2.134,82;CONTARINA S.P.A.;Z3E39950B4;25/01/2024;1194;0;169;1;Spese correnti;3;Acquisto di beni e servizi;2;Acquisto di servizi;5;Utenze e canoni;999;Utenze e canoni per altri servizi n.a.c.;30/01/2024
323;1;9999999;799,59;799,59;CONTARINA S.P.A.; ;25/01/2024;1194;0;932;1;Spese correnti;3;Acquisto di beni e servizi;2;Acquisto di servizi;5;Utenze e canoni;999;Utenze e canoni per altri servizi n.a.c.;30/01/2024
324;1;9999999;13,24;13,24;FASTWEB SPA;Z742CA65BF;25/01/2024;1346;1;321;1;Spese correnti;3;Acquisto di beni e servizi;2;Acquisto di servizi;5;Utenze e canoni;1;Telefonia fissa;30/01/2024
325;1;9999999;1.423,13;1.423,13;STUDIO CAVAGGIONI SCARL;ZCD36F5326;25/01/2024;1798;0;606;1;Spese correnti;3;Acquisto di beni e servizi;2;Acquisto di servizi;19;Servizi informatici e di telecomunicazioni;6;Servizi di sicurezza;30/01/2024
326;1;9999999;267,26;267,26;FASTWEB SPA;Z742CA65BF;25/01/2024;1801;1;322;1;Spese correnti;3;Acquisto di beni e servizi;2;Acquisto di servizi;5;Utenze e canoni;1;Telefonia fissa;30/01/2024
327;1;9999999;15,49;15,49;FASTWEB SPA;Z742CA65BF;25/01/2024;2790;1;323;1;Spese correnti;3;Acquisto di beni e servizi;2;Acquisto di servizi;5;Utenze e canoni;1;Telefonia fissa;30/01/2024
328;1;9999999;14,53;14,53;FASTWEB SPA;Z742CA65BF;25/01/2024;2792;1;324;1;Spese correnti;3;Acquisto di beni e servizi;2;Acquisto di servizi;5;Utenze e canoni;1;Telefonia fissa;30/01/2024
329;1;9999999;103,67;103,67;FASTWEB SPA;Z742CA65BF;25/01/2024;2973;1;325;1;Spese correnti;3;Acquisto di beni e servizi;2;Acquisto di servizi;5;Utenze e canoni;1;Telefonia fissa;30/01/2024
330;1;9999999;1.525,00;1.525,00;MOSOLE CORRADO SRL;Z0C3D6FC76;25/01/2024;2980;0;997;1;Spese correnti;3;Acquisto di beni e servizi;2;Acquisto di servizi;9;Manutenzione ordinaria e riparazioni;4;Manutenzione ordinaria e riparazioni di impianti e macchinari;30/01/2024
331;1;9999999;2.196,00;2.196,00;ITALSERVICE SRL;Z4E3DF03AA;25/01/2024;2980;0;1117;1;Spese correnti;3;Acquisto di beni e servizi;2;Acquisto di servizi;9;Manutenzione ordinaria e riparazioni;8;Manutenzione ordinaria e riparazioni di beni immobili;30/01/2024
332;1;9999999;112,06;112,06;FASTWEB SPA;Z742CA65BF;25/01/2024;4020;1;326;1;Spese correnti;3;Acquisto di beni e servizi;2;Acquisto di servizi;5;Utenze e canoni;1;Telefonia fissa;30/01/2024
333;1;9999999;13,18;13,18;FASTWEB SPA;Z742CA65BF;25/01/2024;4527;1;327;1;Spese correnti;3;Acquisto di beni e servizi;2;Acquisto di servizi;5;Utenze e canoni;1;Telefonia fissa;30/01/2024
334;1;9999999;3.189,25;3.189,25;SCOMPARIN SERVICE & GARDENS DI SCOMPARIN MICHELE;Z5C38E58E2;25/01/2024;5720;2;1190;1;Spese correnti;3;Acquisto di beni e servizi;2;Acquisto di servizi;9;Manutenzione ordinaria e riparazioni;11;Manutenzione ordinaria e riparazioni di altri beni materiali;30/01/2024
335;1;9999999;13,16;13,16;FASTWEB SPA;Z742CA65BF;25/01/2024;6642;0;328;1;Spese correnti;3;Acquisto di beni e servizi;2;Acquisto di servizi;5;Utenze e canoni;1;Telefonia fissa;30/01/2024
336;1;9999999;42,7;42,7;AGRI AGGIO S.R.L.;Z923D9A9A6;25/01/2024;7412;0;1023;1;Spese correnti;3;Acquisto di beni e servizi;1;Acquisto di beni;2;Altri beni di consumo;7;Altri materiali tecnico-specialistici non sanitari;30/01/2024
337;1;9999999;22.000,00;22.000,00;CONTARINA S.P.A.; ;25/01/2024;7430;0;746;1;Spese correnti;3;Acquisto di beni e servizi;2;Acquisto di servizi;9;Manutenzione ordinaria e riparazioni;8;Manutenzione ordinaria e riparazioni di beni immobili;30/01/2024
338;1;9999999;854;854;INIZIATIVE UNINDUSTRIA SRL; ;25/01/2024;8204;4;758;1;Spese correnti;3;Acquisto di beni e servizi;2;Acquisto di servizi;99;Altri servizi;999;Altri servizi diversi n.a.c.;30/01/2024
339;1;9999999;353,8;353,8;INIZIATIVE UNINDUSTRIA SRL; ;25/01/2024;8204;4;1148;1;Spese correnti;3;Acquisto di beni e servizi;2;Acquisto di servizi;99;Altri servizi;999;Altri servizi diversi n.a.c.;30/01/2024
342;1;9999999;675,05;675,05;OMESSO NOMINATIVO NEL RISPETTO DELLA NORMATIVA SULLA PROTEZIONE DATI PERSONALI; ;25/01/2024;8361;2;144;1;Spese correnti;4;Trasferimenti correnti;4;Trasferimenti correnti a Istituzioni Sociali Private;1;Trasferimenti correnti a Istituzioni Sociali Private;1;Trasferimenti correnti a Istituzioni Sociali Private;30/01/2024
343;1;9999999;25;25;AVI - ASS.VIDEOTECHE E MEDIATECHE ITALIANE;B00F1FE467;25/01/2024;690;0;152;1;Spese correnti;3;Acquisto di beni e servizi;2;Acquisto di servizi;99;Altri servizi;3;Quote di associazioni;30/01/2024
346;1;9999999;88;88;TESORERIA PROV.LE STATO DI TREVISO; ;31/01/2024;1470;0;155;1;Spese correnti;3;Acquisto di beni e servizi;1;Acquisto di beni;2;Altri beni di consumo;14;Stampati specialistici;02/02/2024
347;1;9999999;5.000,00;5.000,00;A.EMME TERMOIDRAULICA DI MANZATO ALESSANDRO;Z083D6EAB7;31/01/2024;13451;0;976;2;Spese in conto capitale;2;Investimenti fissi lordi e acquisto di terreni;1;Beni materiali;9;Beni immobili;3;Fabbricati ad uso scolastico;02/02/2024
348;1;9999999;2.320,00;2.320,00;A.EMME TERMOIDRAULICA DI MANZATO ALESSANDRO;Z083D6EAB7;31/01/2024;15010;0;978;2;Spese in conto capitale;2;Investimenti fissi lordi e acquisto di terreni;1;Beni materiali;9;Beni immobili;16;Impianti sportivi;02/02/2024
349;1;9999999;709,34;709,34;COMUNE DI MOGLIANO VENETO; ;31/01/2024;2452;1;307;1;Spese correnti;4;Trasferimenti correnti;1;Trasferimenti correnti a Amministrazioni Pubbliche;2;Trasferimenti correnti a Amministrazioni Locali;3;Trasferimenti correnti a Comuni;02/02/2024
350;1;9999999;102,12;102,12;MINISTERO INFRASTR./TRASPORTI-MOTORIZZ.CIVILE; ;31/01/2024;2344;0;1167;1;Spese correnti;3;Acquisto di beni e servizi;2;Acquisto di servizi;5;Utenze e canoni;3;Accesso a banche dati e a pubblicazioni on line;01/02/2024
351;1;9999999;475,8;475,8;OMESSO NOMINATIVO NEL RISPETTO DELLA NORMATIVA SULLA PROTEZIONE DATI PERSONALI; ;31/01/2024;8361;0;162;1;Spese correnti;4;Trasferimenti correnti;2;Trasferimenti correnti a Famiglie;2;Interventi assistenziali;999;Altri assegni e sussidi assistenziali;02/02/2024
352;1;9999999;-65,04;6,5;ABACO S.P.A.;9,44E+58;31/01/2024;1010;0;1065;1;Spese correnti;3;Acquisto di beni e servizi;2;Acquisto di servizi;3;Aggi di riscossione;999;Altri aggi di riscossione n.a.c.;02/02/2024
352;2;9999999;6,5;6,5;ABACO S.P.A.;9,44E+58;31/01/2024;1010;0;1065;1;Spese correnti;3;Acquisto di beni e servizi;2;Acquisto di servizi;3;Aggi di riscossione;999;Altri aggi di riscossione n.a.c.;02/02/2024
352;3;9999999;65,04;6,5;ABACO S.P.A.;9,44E+58;31/01/2024;1010;0;1065;1;Spese correnti;3;Acquisto di beni e servizi;2;Acquisto di servizi;3;Aggi di riscossione;999;Altri aggi di riscossione n.a.c.;02/02/2024
353;1;9999999;1.000,00;1.000,00;A.N.U.T.E.L.; ;01/02/2024;690;0;173;1;Spese correnti;3;Acquisto di beni e servizi;2;Acquisto di servizi;99;Altri servizi;3;Quote di associazioni;05/02/2024
354;1;9999999;1.550,00;1.550,00;CENTRO STUDI AMM.VI M.T.; ;01/02/2024;690;0;174;1;Spese correnti;3;Acquisto di beni e servizi;2;Acquisto di servizi;99;Altri servizi;3;Quote di associazioni;05/02/2024
355;1;9999999;700;700;ASSOCIAZIONE AVVISO PUBBLICO; ;01/02/2024;690;0;176;1;Spese correnti;3;Acquisto di beni e servizi;2;Acquisto di servizi;99;Altri servizi;3;Quote di associazioni;05/02/2024
356;1;9999999;1.300,00;1.300,00;ANUSCA ASS.NAZ. UFFICIALI STATO CIVILE E ANAGRAFE; ;01/02/2024;690;0;172;1;Spese correnti;3;Acquisto di beni e servizi;2;Acquisto di servizi;99;Altri servizi;3;Quote di associazioni;05/02/2024
357;1;9999999;825;825;ASSOCIAZIONE COMUNI MARCA TREVIGIANA; ;01/02/2024;690;0;175;1;Spese correnti;3;Acquisto di beni e servizi;2;Acquisto di servizi;99;Altri servizi;3;Quote di associazioni;05/02/2024
358;1;9999999;8.373,71;8.373,71;COOP. SOCIALE IL GERMOGLIO ONLUS;ZA13D5BCCA;01/02/2024;7430;1;1021;1;Spese correnti;3;Acquisto di beni e servizi;2;Acquisto di servizi;9;Manutenzione ordinaria e riparazioni;8;Manutenzione ordinaria e riparazioni di beni immobili;05/02/2024
359;1;9999999;400,16;400,16;COOP. SOCIALE IL GERMOGLIO ONLUS;Z223DEB136;01/02/2024;7430;1;1134;1;Spese correnti;3;Acquisto di beni e servizi;2;Acquisto di servizi;9;Manutenzione ordinaria e riparazioni;12;Manutenzione ordinaria e riparazioni di terreni e beni materiali non prodotti;07/02/2024
360;1;9999999;1.376,50;1.376,50;CONTARINA S.P.A.; ;01/02/2024;7433;0;869;1;Spese correnti;3;Acquisto di beni e servizi;2;Acquisto di servizi;99;Altri servizi;999;Altri servizi diversi n.a.c.;06/02/2024
361;1;9999999;1.589,86;1.589,86;ANCI VENETO; ;01/02/2024;690;0;171;1;Spese correnti;3;Acquisto di beni e servizi;2;Acquisto di servizi;99;Altri servizi;3;Quote di associazioni;05/02/2024
362;1;9999999;2.632,90;2.632,90;OMESSO NOMINATIVO NEL RISPETTO DELLA NORMATIVA SULLA PROTEZIONE DATI PERSONALI; ;01/02/2024;8361;2;1036;1;Spese correnti;4;Trasferimenti correnti;4;Trasferimenti correnti a Istituzioni Sociali Private;1;Trasferimenti correnti a Istituzioni Sociali Private;1;Trasferimenti correnti a Istituzioni Sociali Private;05/02/2024
363;1;9999999;175;175;OMESSO NOMINATIVO NEL RISPETTO DELLA NORMATIVA SULLA PROTEZIONE DATI PERSONALI; ;01/02/2024;15925;3;1374;2;Spese in conto capitale;2;Investimenti fissi lordi e acquisto di terreni;1;Beni materiali;9;Beni immobili;12;Infrastrutture stradali;06/02/2024
364;1;9999999;175;175;OMESSO NOMINATIVO NEL RISPETTO DELLA NORMATIVA SULLA PROTEZIONE DATI PERSONALI; ;01/02/2024;15925;3;1374;2;Spese in conto capitale;2;Investimenti fissi lordi e acquisto di terreni;1;Beni materiali;9;Beni immobili;12;Infrastrutture stradali;06/02/2024
365;1;9999999;147,5;147,5;OMESSO NOMINATIVO NEL RISPETTO DELLA NORMATIVA SULLA PROTEZIONE DATI PERSONALI; ;01/02/2024;15925;3;1374;2;Spese in conto capitale;2;Investimenti fissi lordi e acquisto di terreni;1;Beni materiali;9;Beni immobili;12;Infrastrutture stradali;07/02/2024
366;1;9999999;485;485;OMESSO NOMINATIVO NEL RISPETTO DELLA NORMATIVA SULLA PROTEZIONE DATI PERSONALI; ;01/02/2024;15925;3;1374;2;Spese in conto capitale;2;Investimenti fissi lordi e acquisto di terreni;1;Beni materiali;9;Beni immobili;12;Infrastrutture stradali;05/02/2024
367;1;9999999;1.470,00;1.470,00;OMESSO NOMINATIVO NEL RISPETTO DELLA NORMATIVA SULLA PROTEZIONE DATI PERSONALI; ;01/02/2024;15925;3;1374;2;Spese in conto capitale;2;Investimenti fissi lordi e acquisto di terreni;1;Beni materiali;9;Beni immobili;12;Infrastrutture stradali;05/02/2024
368;1;9999999;970;970;OMESSO NOMINATIVO NEL RISPETTO DELLA NORMATIVA SULLA PROTEZIONE DATI PERSONALI; ;01/02/2024;15925;3;1374;2;Spese in conto capitale;2;Investimenti fissi lordi e acquisto di terreni;1;Beni materiali;9;Beni immobili;12;Infrastrutture stradali;06/02/2024
369;1;9999999;2.940,00;2.940,00;OMESSO NOMINATIVO NEL RISPETTO DELLA NORMATIVA SULLA PROTEZIONE DATI PERSONALI; ;01/02/2024;15925;3;1374;2;Spese in conto capitale;2;Investimenti fissi lordi e acquisto di terreni;1;Beni materiali;9;Beni immobili;12;Infrastrutture stradali;05/02/2024
370;1;9999999;175;175;OMESSO NOMINATIVO NEL RISPETTO DELLA NORMATIVA SULLA PROTEZIONE DATI PERSONALI; ;01/02/2024;15925;3;1374;2;Spese in conto capitale;2;Investimenti fissi lordi e acquisto di terreni;1;Beni materiali;9;Beni immobili;12;Infrastrutture stradali;05/02/2024
371;1;9999999;175;175;OMESSO NOMINATIVO NEL RISPETTO DELLA NORMATIVA SULLA PROTEZIONE DATI PERSONALI; ;01/02/2024;15925;3;1374;2;Spese in conto capitale;2;Investimenti fissi lordi e acquisto di terreni;1;Beni materiali;9;Beni immobili;12;Infrastrutture stradali;06/02/2024
372;1;9999999;147,5;147,5;OMESSO NOMINATIVO NEL RISPETTO DELLA NORMATIVA SULLA PROTEZIONE DATI PERSONALI; ;01/02/2024;15925;3;1374;2;Spese in conto capitale;2;Investimenti fissi lordi e acquisto di terreni;1;Beni materiali;9;Beni immobili;12;Infrastrutture stradali;06/02/2024
373;1;9999999;485;485;OMESSO NOMINATIVO NEL RISPETTO DELLA NORMATIVA SULLA PROTEZIONE DATI PERSONALI; ;01/02/2024;15925;3;1374;2;Spese in conto capitale;2;Investimenti fissi lordi e acquisto di terreni;1;Beni materiali;9;Beni immobili;12;Infrastrutture stradali;05/02/2024
374;1;9999999;1.470,00;1.470,00;OMESSO NOMINATIVO NEL RISPETTO DELLA NORMATIVA SULLA PROTEZIONE DATI PERSONALI; ;01/02/2024;15925;3;1374;2;Spese in conto capitale;2;Investimenti fissi lordi e acquisto di terreni;1;Beni materiali;9;Beni immobili;12;Infrastrutture stradali;05/02/2024
375;1;9999999;244;244;OMESSO NOMINATIVO NEL RISPETTO DELLA NORMATIVA SULLA PROTEZIONE DATI PERSONALI; ;01/02/2024;15925;3;1374;2;Spese in conto capitale;2;Investimenti fissi lordi e acquisto di terreni;1;Beni materiali;9;Beni immobili;12;Infrastrutture stradali;06/02/2024
376;1;9999999;244;244;OMESSO NOMINATIVO NEL RISPETTO DELLA NORMATIVA SULLA PROTEZIONE DATI PERSONALI; ;01/02/2024;15925;3;1374;2;Spese in conto capitale;2;Investimenti fissi lordi e acquisto di terreni;1;Beni materiali;9;Beni immobili;12;Infrastrutture stradali;06/02/2024
377;1;9999999;55;55;OMESSO NOMINATIVO NEL RISPETTO DELLA NORMATIVA SULLA PROTEZIONE DATI PERSONALI; ;01/02/2024;15925;3;1374;2;Spese in conto capitale;2;Investimenti fissi lordi e acquisto di terreni;1;Beni materiali;9;Beni immobili;12;Infrastrutture stradali;05/02/2024
378;1;9999999;55;55;OMESSO NOMINATIVO NEL RISPETTO DELLA NORMATIVA SULLA PROTEZIONE DATI PERSONALI; ;01/02/2024;15925;3;1374;2;Spese in conto capitale;2;Investimenti fissi lordi e acquisto di terreni;1;Beni materiali;9;Beni immobili;12;Infrastrutture stradali;05/02/2024
382;1;9999999;1.477,81;1.477,81;CODESS SOCIALE-COOP. ONLUS;8855832FBD;01/02/2024;7560;1;720;1;Spese correnti;3;Acquisto di beni e servizi;2;Acquisto di servizi;15;Contratti di servizio pubblico;10;Contratti di servizio di asilo nido;06/02/2024
383;1;9999999;9.846,98;9.846,98;CODESS SOCIALE-COOP. ONLUS;8855832FBD;01/02/2024;7560;1;1195;1;Spese correnti;3;Acquisto di beni e servizi;2;Acquisto di servizi;15;Contratti di servizio pubblico;10;Contratti di servizio di asilo nido;05/02/2024
384;1;9999999;8.726,83;8.726,83;CODESS SOCIALE-COOP. ONLUS;8855832FBD;01/02/2024;7560;1;1195;1;Spese correnti;3;Acquisto di beni e servizi;2;Acquisto di servizi;15;Contratti di servizio pubblico;10;Contratti di servizio di asilo nido;05/02/2024
385;1;9999999;440;440;COORD.NAZ.LE ENTI LOCALI PER LA PACE; ;05/02/2024;690;0;180;1;Spese correnti;3;Acquisto di beni e servizi;2;Acquisto di servizi;99;Altri servizi;3;Quote di associazioni;07/02/2024
386;1;9999999;762,43;762,43;OMESSO NOMINATIVO NEL RISPETTO DELLA NORMATIVA SULLA PROTEZIONE DATI PERSONALI;758646708D;05/02/2024;2450;0;712;1;Spese correnti;4;Trasferimenti correnti;4;Trasferimenti correnti a Istituzioni Sociali Private;1;Trasferimenti correnti a Istituzioni Sociali Private;1;Trasferimenti correnti a Istituzioni Sociali Private;07/02/2024
387;1;9999999;1.476,60;1.476,60;OMESSO NOMINATIVO NEL RISPETTO DELLA NORMATIVA SULLA PROTEZIONE DATI PERSONALI; ;05/02/2024;8361;2;1038;1;Spese correnti;4;Trasferimenti correnti;4;Trasferimenti correnti a Istituzioni Sociali Private;1;Trasferimenti correnti a Istituzioni Sociali Private;1;Trasferimenti correnti a Istituzioni Sociali Private;07/02/2024
388;1;9999999;190,19;190,19;DOLOMITI ENERGIA SPA;964666689C;05/02/2024;1346;0;499;1;Spese correnti;3;Acquisto di beni e servizi;2;Acquisto di servizi;5;Utenze e canoni;6;Gas;07/02/2024
389;1;9999999;3.999,99;3.999,99;PULITORI ED AFFINI SPA;87752258BF;05/02/2024;1794;0;656;1;Spese correnti;3;Acquisto di beni e servizi;2;Acquisto di servizi;13;Servizi ausiliari per il funzionamento dell'ente;2;Servizi di pulizia e lavanderia;07/02/2024
390;1;9999999;2,47;2.276,36;DOLOMITI ENERGIA SPA;964666689C;05/02/2024;1801;0;489;1;Spese correnti;3;Acquisto di beni e servizi;2;Acquisto di servizi;5;Utenze e canoni;6;Gas;07/02/2024
390;2;9999999;4,39;2.276,36;DOLOMITI ENERGIA SPA;964666689C;05/02/2024;1801;0;489;1;Spese correnti;3;Acquisto di beni e servizi;2;Acquisto di servizi;5;Utenze e canoni;6;Gas;07/02/2024
390;3;9999999;153,03;2.276,36;DOLOMITI ENERGIA SPA;964666689C;05/02/2024;1801;0;489;1;Spese correnti;3;Acquisto di beni e servizi;2;Acquisto di servizi;5;Utenze e canoni;6;Gas;07/02/2024
390;4;9999999;299,17;2.276,36;DOLOMITI ENERGIA SPA;964666689C;05/02/2024;1801;0;489;1;Spese correnti;3;Acquisto di beni e servizi;2;Acquisto di servizi;5;Utenze e canoni;6;Gas;07/02/2024
390;5;9999999;680,75;2.276,36;DOLOMITI ENERGIA SPA;964666689C;05/02/2024;1801;0;489;1;Spese correnti;3;Acquisto di beni e servizi;2;Acquisto di servizi;5;Utenze e canoni;6;Gas;07/02/2024
390;6;9999999;1.136,55;2.276,36;DOLOMITI ENERGIA SPA;964666689C;05/02/2024;1801;0;489;1;Spese correnti;3;Acquisto di beni e servizi;2;Acquisto di servizi;5;Utenze e canoni;6;Gas;07/02/2024
391;1;9999999;3.254,21;3.254,21;DOLOMITI ENERGIA SPA;964666689C;05/02/2024;2790;0;490;1;Spese correnti;3;Acquisto di beni e servizi;2;Acquisto di servizi;5;Utenze e canoni;6;Gas;07/02/2024
392;1;9999999;358,99;358,99;DOLOMITI ENERGIA SPA;964666689C;05/02/2024;2792;0;179;1;Spese correnti;3;Acquisto di beni e servizi;2;Acquisto di servizi;5;Utenze e canoni;6;Gas;07/02/2024
393;1;9999999;1.037,76;1.037,76;DOLOMITI ENERGIA SPA;964666689C;05/02/2024;2792;0;491;1;Spese correnti;3;Acquisto di beni e servizi;2;Acquisto di servizi;5;Utenze e canoni;6;Gas;07/02/2024
394;1;9999999;788,12;8.136,18;DOLOMITI ENERGIA SPA;964666689C;05/02/2024;2973;0;492;1;Spese correnti;3;Acquisto di beni e servizi;2;Acquisto di servizi;5;Utenze e canoni;6;Gas;07/02/2024
394;2;9999999;1.085,00;8.136,18;DOLOMITI ENERGIA SPA;964666689C;05/02/2024;2973;0;492;1;Spese correnti;3;Acquisto di beni e servizi;2;Acquisto di servizi;5;Utenze e canoni;6;Gas;07/02/2024
394;3;9999999;1.621,99;8.136,18;DOLOMITI ENERGIA SPA;964666689C;05/02/2024;2973;0;492;1;Spese correnti;3;Acquisto di beni e servizi;2;Acquisto di servizi;5;Utenze e canoni;6;Gas;07/02/2024
394;4;9999999;4.641,07;8.136,18;DOLOMITI ENERGIA SPA;964666689C;05/02/2024;2973;0;492;1;Spese correnti;3;Acquisto di beni e servizi;2;Acquisto di servizi;5;Utenze e canoni;6;Gas;07/02/2024
395;1;9999999;9.178,83;9.178,83;DOLOMITI ENERGIA SPA;964666689C;05/02/2024;4020;0;493;1;Spese correnti;3;Acquisto di beni e servizi;2;Acquisto di servizi;5;Utenze e canoni;6;Gas;07/02/2024
396;1;9999999;7,54;7,54;DOLOMITI ENERGIA SPA;964666689C;05/02/2024;4527;0;502;1;Spese correnti;3;Acquisto di beni e servizi;2;Acquisto di servizi;5;Utenze e canoni;6;Gas;07/02/2024
397;1;9999999;11,66;11,66;DOLOMITI ENERGIA SPA;964666689C;05/02/2024;4686;0;494;1;Spese correnti;3;Acquisto di beni e servizi;2;Acquisto di servizi;5;Utenze e canoni;6;Gas;07/02/2024
398;1;9999999;492,28;2.845,99;DOLOMITI ENERGIA SPA;964666689C;05/02/2024;5050;0;178;1;Spese correnti;3;Acquisto di beni e servizi;2;Acquisto di servizi;5;Utenze e canoni;6;Gas;07/02/2024
398;2;9999999;2.353,71;2.845,99;DOLOMITI ENERGIA SPA;964666689C;05/02/2024;5050;0;178;1;Spese correnti;3;Acquisto di beni e servizi;2;Acquisto di servizi;5;Utenze e canoni;6;Gas;07/02/2024
399;1;9999999;317,24;1.294,07;DOLOMITI ENERGIA SPA;964666689C;05/02/2024;5050;0;501;1;Spese correnti;3;Acquisto di beni e servizi;2;Acquisto di servizi;5;Utenze e canoni;6;Gas;07/02/2024
399;2;9999999;363,86;1.294,07;DOLOMITI ENERGIA SPA;964666689C;05/02/2024;5050;0;501;1;Spese correnti;3;Acquisto di beni e servizi;2;Acquisto di servizi;5;Utenze e canoni;6;Gas;07/02/2024
399;3;9999999;612,97;1.294,07;DOLOMITI ENERGIA SPA;964666689C;05/02/2024;5050;0;501;1;Spese correnti;3;Acquisto di beni e servizi;2;Acquisto di servizi;5;Utenze e canoni;6;Gas;07/02/2024
400;1;9999999;3,47;3,47;DOLOMITI ENERGIA SPA;964666689C;05/02/2024;5051;0;495;1;Spese correnti;3;Acquisto di beni e servizi;2;Acquisto di servizi;5;Utenze e canoni;6;Gas;07/02/2024
401;1;9999999;261,09;261,09;DOLOMITI ENERGIA SPA;964666689C;05/02/2024;6461;0;496;1;Spese correnti;3;Acquisto di beni e servizi;2;Acquisto di servizi;5;Utenze e canoni;6;Gas;07/02/2024
402;1;9999999;90,12;90,12;DOLOMITI ENERGIA SPA;964666689C;05/02/2024;6647;0;497;1;Spese correnti;3;Acquisto di beni e servizi;2;Acquisto di servizi;5;Utenze e canoni;6;Gas;07/02/2024
403;1;9999999;931,17;3.100,64;DOLOMITI ENERGIA SPA;964666689C;05/02/2024;7552;1;500;1;Spese correnti;3;Acquisto di beni e servizi;2;Acquisto di servizi;5;Utenze e canoni;6;Gas;07/02/2024
403;2;9999999;2.169,47;3.100,64;DOLOMITI ENERGIA SPA;964666689C;05/02/2024;7552;1;500;1;Spese correnti;3;Acquisto di beni e servizi;2;Acquisto di servizi;5;Utenze e canoni;6;Gas;07/02/2024
404;1;9999999;1.200,00;1.200,00;OMESSO NOMINATIVO NEL RISPETTO DELLA NORMATIVA SULLA PROTEZIONE DATI PERSONALI;Z903D10A13;05/02/2024;4528;0;912;1;Spese correnti;3;Acquisto di beni e servizi;2;Acquisto di servizi;11;Prestazioni professionali e specialistiche;999;Altre prestazioni professionali e specialistiche n.a.c.;07/02/2024
407;1;9999999;45;45;BANCOPOSTA; ;06/02/2024;820;0;127;1;Spese correnti;3;Acquisto di beni e servizi;2;Acquisto di servizi;17;Servizi finanziari;2;Oneri per servizio di tesoreria;09/02/2024
409;1;9999999;4.309,14;4.309,14;CONSORZIO PROVINCIALE INTESA-CCA SOC.COOP.SOCIALECONSORTILE;ZE83C041D9;06/02/2024;1741;1;689;1;Spese correnti;3;Acquisto di beni e servizi;2;Acquisto di servizi;7;Utilizzo di beni di terzi;6;Licenze d'uso per software;09/02/2024
410;1;9999999;1.771,32;1.771,32;CONSORZIO PROVINCIALE INTESA-CCA SOC.COOP.SOCIALECONSORTILE;9293702D7F;06/02/2024;8204;4;847;1;Spese correnti;3;Acquisto di beni e servizi;2;Acquisto di servizi;99;Altri servizi;999;Altri servizi diversi n.a.c.;09/02/2024
411;1;9999999;8.987,68;8.987,68;CONSORZIO PROVINCIALE INTESA-CCA SOC.COOP.SOCIALECONSORTILE;9293702D7F;06/02/2024;8208;0;660;1;Spese correnti;3;Acquisto di beni e servizi;2;Acquisto di servizi;99;Altri servizi;999;Altri servizi diversi n.a.c.;09/02/2024
412;1;9999999;808,84;808,84;OMESSO NOMINATIVO NEL RISPETTO DELLA NORMATIVA SULLA PROTEZIONE DATI PERSONALI; ;06/02/2024;8361;0;184;1;Spese correnti;4;Trasferimenti correnti;2;Trasferimenti correnti a Famiglie;2;Interventi assistenziali;999;Altri assegni e sussidi assistenziali;09/02/2024
413;1;9999999;276,5;276,5;OMESSO NOMINATIVO NEL RISPETTO DELLA NORMATIVA SULLA PROTEZIONE DATI PERSONALI; ;06/02/2024;8361;0;185;1;Spese correnti;4;Trasferimenti correnti;2;Trasferimenti correnti a Famiglie;2;Interventi assistenziali;999;Altri assegni e sussidi assistenziali;09/02/2024
414;1;9999999;310;310;OMESSO NOMINATIVO NEL RISPETTO DELLA NORMATIVA SULLA PROTEZIONE DATI PERSONALI; ;06/02/2024;8361;0;186;1;Spese correnti;4;Trasferimenti correnti;2;Trasferimenti correnti a Famiglie;2;Interventi assistenziali;999;Altri assegni e sussidi assistenziali;09/02/2024
415;1;9999999;700;700;OMESSO NOMINATIVO NEL RISPETTO DELLA NORMATIVA SULLA PROTEZIONE DATI PERSONALI; ;06/02/2024;8361;0;187;1;Spese correnti;4;Trasferimenti correnti;2;Trasferimenti correnti a Famiglie;2;Interventi assistenziali;999;Altri assegni e sussidi assistenziali;09/02/2024
416;1;9999999;265;265;OMESSO NOMINATIVO NEL RISPETTO DELLA NORMATIVA SULLA PROTEZIONE DATI PERSONALI; ;06/02/2024;8361;0;188;1;Spese correnti;4;Trasferimenti correnti;2;Trasferimenti correnti a Famiglie;2;Interventi assistenziali;999;Altri assegni e sussidi assistenziali;09/02/2024
417;1;9999999;385;385;OMESSO NOMINATIVO NEL RISPETTO DELLA NORMATIVA SULLA PROTEZIONE DATI PERSONALI; ;06/02/2024;8361;0;189;1;Spese correnti;4;Trasferimenti correnti;2;Trasferimenti correnti a Famiglie;2;Interventi assistenziali;999;Altri assegni e sussidi assistenziali;09/02/2024
418;1;9999999;475,75;475,75;OMESSO NOMINATIVO NEL RISPETTO DELLA NORMATIVA SULLA PROTEZIONE DATI PERSONALI; ;06/02/2024;8361;0;190;1;Spese correnti;4;Trasferimenti correnti;2;Trasferimenti correnti a Famiglie;2;Interventi assistenziali;999;Altri assegni e sussidi assistenziali;09/02/2024
419;1;9999999;385;385;OMESSO NOMINATIVO NEL RISPETTO DELLA NORMATIVA SULLA PROTEZIONE DATI PERSONALI; ;06/02/2024;8361;0;191;1;Spese correnti;4;Trasferimenti correnti;2;Trasferimenti correnti a Famiglie;2;Interventi assistenziali;999;Altri assegni e sussidi assistenziali;09/02/2024
420;1;9999999;879,5;879,5;OMESSO NOMINATIVO NEL RISPETTO DELLA NORMATIVA SULLA PROTEZIONE DATI PERSONALI; ;06/02/2024;8361;0;192;1;Spese correnti;4;Trasferimenti correnti;2;Trasferimenti correnti a Famiglie;2;Interventi assistenziali;999;Altri assegni e sussidi assistenziali;09/02/2024
421;1;9999999;240;240;OMESSO NOMINATIVO NEL RISPETTO DELLA NORMATIVA SULLA PROTEZIONE DATI PERSONALI; ;06/02/2024;8361;0;193;1;Spese correnti;4;Trasferimenti correnti;2;Trasferimenti correnti a Famiglie;2;Interventi assistenziali;999;Altri assegni e sussidi assistenziali;09/02/2024
422;1;9999999;1.003,90;1.003,90;OMESSO NOMINATIVO NEL RISPETTO DELLA NORMATIVA SULLA PROTEZIONE DATI PERSONALI; ;06/02/2024;8361;0;194;1;Spese correnti;4;Trasferimenti correnti;2;Trasferimenti correnti a Famiglie;2;Interventi assistenziali;999;Altri assegni e sussidi assistenziali;09/02/2024
424;1;9999999;176;176;OMESSO NOMINATIVO NEL RISPETTO DELLA NORMATIVA SULLA PROTEZIONE DATI PERSONALI; ;06/02/2024;4050;0;164;1;Spese correnti;4;Trasferimenti correnti;2;Trasferimenti correnti a Famiglie;2;Interventi assistenziali;999;Altri assegni e sussidi assistenziali;09/02/2024
425;1;9999999;200;200;OMESSO NOMINATIVO NEL RISPETTO DELLA NORMATIVA SULLA PROTEZIONE DATI PERSONALI; ;06/02/2024;4050;0;164;1;Spese correnti;4;Trasferimenti correnti;2;Trasferimenti correnti a Famiglie;2;Interventi assistenziali;999;Altri assegni e sussidi assistenziali;09/02/2024
426;1;9999999;68,7;68,7;OMESSO NOMINATIVO NEL RISPETTO DELLA NORMATIVA SULLA PROTEZIONE DATI PERSONALI; ;06/02/2024;4050;0;164;1;Spese correnti;4;Trasferimenti correnti;2;Trasferimenti correnti a Famiglie;2;Interventi assistenziali;999;Altri assegni e sussidi assistenziali;09/02/2024
427;1;9999999;200;200;OMESSO NOMINATIVO NEL RISPETTO DELLA NORMATIVA SULLA PROTEZIONE DATI PERSONALI; ;06/02/2024;4050;0;164;1;Spese correnti;4;Trasferimenti correnti;2;Trasferimenti correnti a Famiglie;2;Interventi assistenziali;999;Altri assegni e sussidi assistenziali;09/02/2024
428;1;9999999;200;200;OMESSO NOMINATIVO NEL RISPETTO DELLA NORMATIVA SULLA PROTEZIONE DATI PERSONALI; ;06/02/2024;4050;0;164;1;Spese correnti;4;Trasferimenti correnti;2;Trasferimenti correnti a Famiglie;2;Interventi assistenziali;999;Altri assegni e sussidi assistenziali;09/02/2024
429;1;9999999;319,4;319,4;OMESSO NOMINATIVO NEL RISPETTO DELLA NORMATIVA SULLA PROTEZIONE DATI PERSONALI; ;06/02/2024;4050;0;164;1;Spese correnti;4;Trasferimenti correnti;2;Trasferimenti correnti a Famiglie;2;Interventi assistenziali;999;Altri assegni e sussidi assistenziali;09/02/2024
430;1;9999999;79;79;OMESSO NOMINATIVO NEL RISPETTO DELLA NORMATIVA SULLA PROTEZIONE DATI PERSONALI; ;06/02/2024;4050;0;164;1;Spese correnti;4;Trasferimenti correnti;2;Trasferimenti correnti a Famiglie;2;Interventi assistenziali;999;Altri assegni e sussidi assistenziali;09/02/2024
431;1;9999999;93,6;93,6;OMESSO NOMINATIVO NEL RISPETTO DELLA NORMATIVA SULLA PROTEZIONE DATI PERSONALI; ;06/02/2024;4050;0;164;1;Spese correnti;4;Trasferimenti correnti;2;Trasferimenti correnti a Famiglie;2;Interventi assistenziali;999;Altri assegni e sussidi assistenziali;09/02/2024
432;1;9999999;133,9;133,9;OMESSO NOMINATIVO NEL RISPETTO DELLA NORMATIVA SULLA PROTEZIONE DATI PERSONALI; ;06/02/2024;4050;0;164;1;Spese correnti;4;Trasferimenti correnti;2;Trasferimenti correnti a Famiglie;2;Interventi assistenziali;999;Altri assegni e sussidi assistenziali;09/02/2024
433;1;9999999;68,82;68,82;OMESSO NOMINATIVO NEL RISPETTO DELLA NORMATIVA SULLA PROTEZIONE DATI PERSONALI; ;06/02/2024;4050;0;164;1;Spese correnti;4;Trasferimenti correnti;2;Trasferimenti correnti a Famiglie;2;Interventi assistenziali;999;Altri assegni e sussidi assistenziali;09/02/2024
434;1;9999999;200;200;OMESSO NOMINATIVO NEL RISPETTO DELLA NORMATIVA SULLA PROTEZIONE DATI PERSONALI; ;06/02/2024;4050;0;164;1;Spese correnti;4;Trasferimenti correnti;2;Trasferimenti correnti a Famiglie;2;Interventi assistenziali;999;Altri assegni e sussidi assistenziali;09/02/2024
435;1;9999999;163,77;163,77;OMESSO NOMINATIVO NEL RISPETTO DELLA NORMATIVA SULLA PROTEZIONE DATI PERSONALI; ;06/02/2024;4050;0;164;1;Spese correnti;4;Trasferimenti correnti;2;Trasferimenti correnti a Famiglie;2;Interventi assistenziali;999;Altri assegni e sussidi assistenziali;09/02/2024
436;1;9999999;93,51;93,51;OMESSO NOMINATIVO NEL RISPETTO DELLA NORMATIVA SULLA PROTEZIONE DATI PERSONALI; ;06/02/2024;4050;0;164;1;Spese correnti;4;Trasferimenti correnti;2;Trasferimenti correnti a Famiglie;2;Interventi assistenziali;999;Altri assegni e sussidi assistenziali;09/02/2024
437;1;9999999;80,43;80,43;OMESSO NOMINATIVO NEL RISPETTO DELLA NORMATIVA SULLA PROTEZIONE DATI PERSONALI; ;06/02/2024;4050;0;164;1;Spese correnti;4;Trasferimenti correnti;2;Trasferimenti correnti a Famiglie;2;Interventi assistenziali;999;Altri assegni e sussidi assistenziali;09/02/2024
438;1;9999999;126,22;126,22;OMESSO NOMINATIVO NEL RISPETTO DELLA NORMATIVA SULLA PROTEZIONE DATI PERSONALI; ;06/02/2024;4050;0;164;1;Spese correnti;4;Trasferimenti correnti;2;Trasferimenti correnti a Famiglie;2;Interventi assistenziali;999;Altri assegni e sussidi assistenziali;09/02/2024
439;1;9999999;175,3;175,3;OMESSO NOMINATIVO NEL RISPETTO DELLA NORMATIVA SULLA PROTEZIONE DATI PERSONALI; ;06/02/2024;4050;0;164;1;Spese correnti;4;Trasferimenti correnti;2;Trasferimenti correnti a Famiglie;2;Interventi assistenziali;999;Altri assegni e sussidi assistenziali;09/02/2024
440;1;9999999;156,6;156,6;OMESSO NOMINATIVO NEL RISPETTO DELLA NORMATIVA SULLA PROTEZIONE DATI PERSONALI; ;06/02/2024;4050;0;164;1;Spese correnti;4;Trasferimenti correnti;2;Trasferimenti correnti a Famiglie;2;Interventi assistenziali;999;Altri assegni e sussidi assistenziali;09/02/2024
441;1;9999999;146,3;146,3;OMESSO NOMINATIVO NEL RISPETTO DELLA NORMATIVA SULLA PROTEZIONE DATI PERSONALI; ;06/02/2024;4050;0;164;1;Spese correnti;4;Trasferimenti correnti;2;Trasferimenti correnti a Famiglie;2;Interventi assistenziali;999;Altri assegni e sussidi assistenziali;09/02/2024
442;1;9999999;200;200;OMESSO NOMINATIVO NEL RISPETTO DELLA NORMATIVA SULLA PROTEZIONE DATI PERSONALI; ;06/02/2024;4050;0;164;1;Spese correnti;4;Trasferimenti correnti;2;Trasferimenti correnti a Famiglie;2;Interventi assistenziali;999;Altri assegni e sussidi assistenziali;09/02/2024
443;1;9999999;747,9;747,9;OMESSO NOMINATIVO NEL RISPETTO DELLA NORMATIVA SULLA PROTEZIONE DATI PERSONALI; ;06/02/2024;4050;0;164;1;Spese correnti;4;Trasferimenti correnti;2;Trasferimenti correnti a Famiglie;2;Interventi assistenziali;999;Altri assegni e sussidi assistenziali;09/02/2024
444;1;9999999;200;200;OMESSO NOMINATIVO NEL RISPETTO DELLA NORMATIVA SULLA PROTEZIONE DATI PERSONALI; ;06/02/2024;4050;0;164;1;Spese correnti;4;Trasferimenti correnti;2;Trasferimenti correnti a Famiglie;2;Interventi assistenziali;999;Altri assegni e sussidi assistenziali;09/02/2024
445;1;9999999;59,99;59,99;OMESSO NOMINATIVO NEL RISPETTO DELLA NORMATIVA SULLA PROTEZIONE DATI PERSONALI; ;06/02/2024;4050;0;164;1;Spese correnti;4;Trasferimenti correnti;2;Trasferimenti correnti a Famiglie;2;Interventi assistenziali;999;Altri assegni e sussidi assistenziali;09/02/2024
446;1;9999999;201,55;201,55;OMESSO NOMINATIVO NEL RISPETTO DELLA NORMATIVA SULLA PROTEZIONE DATI PERSONALI; ;06/02/2024;4050;0;164;1;Spese correnti;4;Trasferimenti correnti;2;Trasferimenti correnti a Famiglie;2;Interventi assistenziali;999;Altri assegni e sussidi assistenziali;09/02/2024
447;1;9999999;196,58;196,58;OMESSO NOMINATIVO NEL RISPETTO DELLA NORMATIVA SULLA PROTEZIONE DATI PERSONALI; ;06/02/2024;4050;0;164;1;Spese correnti;4;Trasferimenti correnti;2;Trasferimenti correnti a Famiglie;2;Interventi assistenziali;999;Altri assegni e sussidi assistenziali;09/02/2024
448;1;9999999;128;128;OMESSO NOMINATIVO NEL RISPETTO DELLA NORMATIVA SULLA PROTEZIONE DATI PERSONALI; ;06/02/2024;4050;0;164;1;Spese correnti;4;Trasferimenti correnti;2;Trasferimenti correnti a Famiglie;2;Interventi assistenziali;999;Altri assegni e sussidi assistenziali;09/02/2024
449;1;9999999;152,3;152,3;OMESSO NOMINATIVO NEL RISPETTO DELLA NORMATIVA SULLA PROTEZIONE DATI PERSONALI; ;06/02/2024;4050;0;164;1;Spese correnti;4;Trasferimenti correnti;2;Trasferimenti correnti a Famiglie;2;Interventi assistenziali;999;Altri assegni e sussidi assistenziali;09/02/2024
450;1;9999999;400;400;OMESSO NOMINATIVO NEL RISPETTO DELLA NORMATIVA SULLA PROTEZIONE DATI PERSONALI; ;06/02/2024;4050;0;164;1;Spese correnti;4;Trasferimenti correnti;2;Trasferimenti correnti a Famiglie;2;Interventi assistenziali;999;Altri assegni e sussidi assistenziali;09/02/2024
451;1;9999999;576,4;576,4;OMESSO NOMINATIVO NEL RISPETTO DELLA NORMATIVA SULLA PROTEZIONE DATI PERSONALI; ;06/02/2024;4050;0;164;1;Spese correnti;4;Trasferimenti correnti;2;Trasferimenti correnti a Famiglie;2;Interventi assistenziali;999;Altri assegni e sussidi assistenziali;09/02/2024
452;1;9999999;398,7;398,7;OMESSO NOMINATIVO NEL RISPETTO DELLA NORMATIVA SULLA PROTEZIONE DATI PERSONALI; ;06/02/2024;4050;0;164;1;Spese correnti;4;Trasferimenti correnti;2;Trasferimenti correnti a Famiglie;2;Interventi assistenziali;999;Altri assegni e sussidi assistenziali;09/02/2024
453;1;9999999;93,51;93,51;OMESSO NOMINATIVO NEL RISPETTO DELLA NORMATIVA SULLA PROTEZIONE DATI PERSONALI; ;06/02/2024;4050;0;164;1;Spese correnti;4;Trasferimenti correnti;2;Trasferimenti correnti a Famiglie;2;Interventi assistenziali;999;Altri assegni e sussidi assistenziali;09/02/2024
454;1;9999999;79,8;79,8;OMESSO NOMINATIVO NEL RISPETTO DELLA NORMATIVA SULLA PROTEZIONE DATI PERSONALI; ;06/02/2024;4050;0;164;1;Spese correnti;4;Trasferimenti correnti;2;Trasferimenti correnti a Famiglie;2;Interventi assistenziali;999;Altri assegni e sussidi assistenziali;09/02/2024
455;1;9999999;71,97;71,97;OMESSO NOMINATIVO NEL RISPETTO DELLA NORMATIVA SULLA PROTEZIONE DATI PERSONALI; ;06/02/2024;4050;0;164;1;Spese correnti;4;Trasferimenti correnti;2;Trasferimenti correnti a Famiglie;2;Interventi assistenziali;999;Altri assegni e sussidi assistenziali;09/02/2024
456;1;9999999;143,59;143,59;OMESSO NOMINATIVO NEL RISPETTO DELLA NORMATIVA SULLA PROTEZIONE DATI PERSONALI; ;06/02/2024;4050;0;164;1;Spese correnti;4;Trasferimenti correnti;2;Trasferimenti correnti a Famiglie;2;Interventi assistenziali;999;Altri assegni e sussidi assistenziali;09/02/2024
457;1;9999999;269,5;269,5;OMESSO NOMINATIVO NEL RISPETTO DELLA NORMATIVA SULLA PROTEZIONE DATI PERSONALI; ;06/02/2024;4050;0;164;1;Spese correnti;4;Trasferimenti correnti;2;Trasferimenti correnti a Famiglie;2;Interventi assistenziali;999;Altri assegni e sussidi assistenziali;09/02/2024
458;1;9999999;93,51;93,51;OMESSO NOMINATIVO NEL RISPETTO DELLA NORMATIVA SULLA PROTEZIONE DATI PERSONALI; ;06/02/2024;4050;0;164;1;Spese correnti;4;Trasferimenti correnti;2;Trasferimenti correnti a Famiglie;2;Interventi assistenziali;999;Altri assegni e sussidi assistenziali;09/02/2024
459;1;9999999;173,04;173,04;OMESSO NOMINATIVO NEL RISPETTO DELLA NORMATIVA SULLA PROTEZIONE DATI PERSONALI; ;06/02/2024;4050;0;164;1;Spese correnti;4;Trasferimenti correnti;2;Trasferimenti correnti a Famiglie;2;Interventi assistenziali;999;Altri assegni e sussidi assistenziali;09/02/2024
460;1;9999999;79,8;79,8;OMESSO NOMINATIVO NEL RISPETTO DELLA NORMATIVA SULLA PROTEZIONE DATI PERSONALI; ;06/02/2024;4050;0;164;1;Spese correnti;4;Trasferimenti correnti;2;Trasferimenti correnti a Famiglie;2;Interventi assistenziali;999;Altri assegni e sussidi assistenziali;09/02/2024
461;1;9999999;174,24;174,24;OMESSO NOMINATIVO NEL RISPETTO DELLA NORMATIVA SULLA PROTEZIONE DATI PERSONALI; ;06/02/2024;4050;0;164;1;Spese correnti;4;Trasferimenti correnti;2;Trasferimenti correnti a Famiglie;2;Interventi assistenziali;999;Altri assegni e sussidi assistenziali;09/02/2024
462;1;9999999;200;200;OMESSO NOMINATIVO NEL RISPETTO DELLA NORMATIVA SULLA PROTEZIONE DATI PERSONALI; ;06/02/2024;4050;0;164;1;Spese correnti;4;Trasferimenti correnti;2;Trasferimenti correnti a Famiglie;2;Interventi assistenziali;999;Altri assegni e sussidi assistenziali;09/02/2024
463;1;9999999;188,1;188,1;OMESSO NOMINATIVO NEL RISPETTO DELLA NORMATIVA SULLA PROTEZIONE DATI PERSONALI; ;06/02/2024;4050;0;164;1;Spese correnti;4;Trasferimenti correnti;2;Trasferimenti correnti a Famiglie;2;Interventi assistenziali;999;Altri assegni e sussidi assistenziali;09/02/2024
464;1;9999999;93,51;93,51;OMESSO NOMINATIVO NEL RISPETTO DELLA NORMATIVA SULLA PROTEZIONE DATI PERSONALI; ;07/02/2024;4050;0;164;1;Spese correnti;4;Trasferimenti correnti;2;Trasferimenti correnti a Famiglie;2;Interventi assistenziali;999;Altri assegni e sussidi assistenziali;09/02/2024
465;1;9999999;142,42;142,42;OMESSO NOMINATIVO NEL RISPETTO DELLA NORMATIVA SULLA PROTEZIONE DATI PERSONALI; ;07/02/2024;4050;0;164;1;Spese correnti;4;Trasferimenti correnti;2;Trasferimenti correnti a Famiglie;2;Interventi assistenziali;999;Altri assegni e sussidi assistenziali;09/02/2024
466;1;9999999;93,51;93,51;OMESSO NOMINATIVO NEL RISPETTO DELLA NORMATIVA SULLA PROTEZIONE DATI PERSONALI; ;07/02/2024;4050;0;164;1;Spese correnti;4;Trasferimenti correnti;2;Trasferimenti correnti a Famiglie;2;Interventi assistenziali;999;Altri assegni e sussidi assistenziali;09/02/2024
467;1;9999999;93,51;93,51;OMESSO NOMINATIVO NEL RISPETTO DELLA NORMATIVA SULLA PROTEZIONE DATI PERSONALI; ;07/02/2024;4050;0;164;1;Spese correnti;4;Trasferimenti correnti;2;Trasferimenti correnti a Famiglie;2;Interventi assistenziali;999;Altri assegni e sussidi assistenziali;09/02/2024
468;1;9999999;93,51;93,51;OMESSO NOMINATIVO NEL RISPETTO DELLA NORMATIVA SULLA PROTEZIONE DATI PERSONALI; ;07/02/2024;4050;0;164;1;Spese correnti;4;Trasferimenti correnti;2;Trasferimenti correnti a Famiglie;2;Interventi assistenziali;999;Altri assegni e sussidi assistenziali;09/02/2024
469;1;9999999;200;200;OMESSO NOMINATIVO NEL RISPETTO DELLA NORMATIVA SULLA PROTEZIONE DATI PERSONALI; ;07/02/2024;4050;0;164;1;Spese correnti;4;Trasferimenti correnti;2;Trasferimenti correnti a Famiglie;2;Interventi assistenziali;999;Altri assegni e sussidi assistenziali;09/02/2024
470;1;9999999;128;128;OMESSO NOMINATIVO NEL RISPETTO DELLA NORMATIVA SULLA PROTEZIONE DATI PERSONALI; ;07/02/2024;4050;0;164;1;Spese correnti;4;Trasferimenti correnti;2;Trasferimenti correnti a Famiglie;2;Interventi assistenziali;999;Altri assegni e sussidi assistenziali;09/02/2024
471;1;9999999;68,62;68,62;OMESSO NOMINATIVO NEL RISPETTO DELLA NORMATIVA SULLA PROTEZIONE DATI PERSONALI; ;07/02/2024;4050;0;164;1;Spese correnti;4;Trasferimenti correnti;2;Trasferimenti correnti a Famiglie;2;Interventi assistenziali;999;Altri assegni e sussidi assistenziali;09/02/2024
472;1;9999999;352,8;352,8;OMESSO NOMINATIVO NEL RISPETTO DELLA NORMATIVA SULLA PROTEZIONE DATI PERSONALI; ;07/02/2024;4050;0;164;1;Spese correnti;4;Trasferimenti correnti;2;Trasferimenti correnti a Famiglie;2;Interventi assistenziali;999;Altri assegni e sussidi assistenziali;09/02/2024
473;1;9999999;200;200;OMESSO NOMINATIVO NEL RISPETTO DELLA NORMATIVA SULLA PROTEZIONE DATI PERSONALI; ;07/02/2024;4050;0;164;1;Spese correnti;4;Trasferimenti correnti;2;Trasferimenti correnti a Famiglie;2;Interventi assistenziali;999;Altri assegni e sussidi assistenziali;09/02/2024
474;1;9999999;200;200;OMESSO NOMINATIVO NEL RISPETTO DELLA NORMATIVA SULLA PROTEZIONE DATI PERSONALI; ;07/02/2024;4050;0;164;1;Spese correnti;4;Trasferimenti correnti;2;Trasferimenti correnti a Famiglie;2;Interventi assistenziali;999;Altri assegni e sussidi assistenziali;09/02/2024
475;1;9999999;50,7;50,7;OMESSO NOMINATIVO NEL RISPETTO DELLA NORMATIVA SULLA PROTEZIONE DATI PERSONALI; ;07/02/2024;4050;0;164;1;Spese correnti;4;Trasferimenti correnti;2;Trasferimenti correnti a Famiglie;2;Interventi assistenziali;999;Altri assegni e sussidi assistenziali;09/02/2024
476;1;9999999;169,31;169,31;OMESSO NOMINATIVO NEL RISPETTO DELLA NORMATIVA SULLA PROTEZIONE DATI PERSONALI; ;07/02/2024;4050;0;164;1;Spese correnti;4;Trasferimenti correnti;2;Trasferimenti correnti a Famiglie;2;Interventi assistenziali;999;Altri assegni e sussidi assistenziali;09/02/2024
477;1;9999999;93,51;93,51;OMESSO NOMINATIVO NEL RISPETTO DELLA NORMATIVA SULLA PROTEZIONE DATI PERSONALI; ;07/02/2024;4050;0;164;1;Spese correnti;4;Trasferimenti correnti;2;Trasferimenti correnti a Famiglie;2;Interventi assistenziali;999;Altri assegni e sussidi assistenziali;09/02/2024
478;1;9999999;156,8;156,8;OMESSO NOMINATIVO NEL RISPETTO DELLA NORMATIVA SULLA PROTEZIONE DATI PERSONALI; ;07/02/2024;4050;0;164;1;Spese correnti;4;Trasferimenti correnti;2;Trasferimenti correnti a Famiglie;2;Interventi assistenziali;999;Altri assegni e sussidi assistenziali;09/02/2024
479;1;9999999;200;200;OMESSO NOMINATIVO NEL RISPETTO DELLA NORMATIVA SULLA PROTEZIONE DATI PERSONALI; ;07/02/2024;4050;0;164;1;Spese correnti;4;Trasferimenti correnti;2;Trasferimenti correnti a Famiglie;2;Interventi assistenziali;999;Altri assegni e sussidi assistenziali;09/02/2024
480;1;9999999;93,51;93,51;OMESSO NOMINATIVO NEL RISPETTO DELLA NORMATIVA SULLA PROTEZIONE DATI PERSONALI; ;07/02/2024;4050;0;164;1;Spese correnti;4;Trasferimenti correnti;2;Trasferimenti correnti a Famiglie;2;Interventi assistenziali;999;Altri assegni e sussidi assistenziali;09/02/2024
481;1;9999999;200;200;OMESSO NOMINATIVO NEL RISPETTO DELLA NORMATIVA SULLA PROTEZIONE DATI PERSONALI; ;07/02/2024;4050;0;164;1;Spese correnti;4;Trasferimenti correnti;2;Trasferimenti correnti a Famiglie;2;Interventi assistenziali;999;Altri assegni e sussidi assistenziali;09/02/2024
482;1;9999999;93,51;93,51;OMESSO NOMINATIVO NEL RISPETTO DELLA NORMATIVA SULLA PROTEZIONE DATI PERSONALI; ;07/02/2024;4050;0;164;1;Spese correnti;4;Trasferimenti correnti;2;Trasferimenti correnti a Famiglie;2;Interventi assistenziali;999;Altri assegni e sussidi assistenziali;09/02/2024
483;1;9999999;200;200;OMESSO NOMINATIVO NEL RISPETTO DELLA NORMATIVA SULLA PROTEZIONE DATI PERSONALI; ;07/02/2024;4050;0;164;1;Spese correnti;4;Trasferimenti correnti;2;Trasferimenti correnti a Famiglie;2;Interventi assistenziali;999;Altri assegni e sussidi assistenziali;09/02/2024
484;1;9999999;250;250;OMESSO NOMINATIVO NEL RISPETTO DELLA NORMATIVA SULLA PROTEZIONE DATI PERSONALI; ;07/02/2024;4050;0;164;1;Spese correnti;4;Trasferimenti correnti;2;Trasferimenti correnti a Famiglie;2;Interventi assistenziali;999;Altri assegni e sussidi assistenziali;09/02/2024
485;1;9999999;400;400;OMESSO NOMINATIVO NEL RISPETTO DELLA NORMATIVA SULLA PROTEZIONE DATI PERSONALI; ;07/02/2024;4050;0;164;1;Spese correnti;4;Trasferimenti correnti;2;Trasferimenti correnti a Famiglie;2;Interventi assistenziali;999;Altri assegni e sussidi assistenziali;09/02/2024
486;1;9999999;169;169;OMESSO NOMINATIVO NEL RISPETTO DELLA NORMATIVA SULLA PROTEZIONE DATI PERSONALI; ;07/02/2024;4050;0;164;1;Spese correnti;4;Trasferimenti correnti;2;Trasferimenti correnti a Famiglie;2;Interventi assistenziali;999;Altri assegni e sussidi assistenziali;09/02/2024
487;1;9999999;400;400;OMESSO NOMINATIVO NEL RISPETTO DELLA NORMATIVA SULLA PROTEZIONE DATI PERSONALI; ;07/02/2024;4050;0;164;1;Spese correnti;4;Trasferimenti correnti;2;Trasferimenti correnti a Famiglie;2;Interventi assistenziali;999;Altri assegni e sussidi assistenziali;09/02/2024
488;1;9999999;200;200;OMESSO NOMINATIVO NEL RISPETTO DELLA NORMATIVA SULLA PROTEZIONE DATI PERSONALI; ;07/02/2024;4050;0;164;1;Spese correnti;4;Trasferimenti correnti;2;Trasferimenti correnti a Famiglie;2;Interventi assistenziali;999;Altri assegni e sussidi assistenziali;09/02/2024
489;1;9999999;312,4;312,4;OMESSO NOMINATIVO NEL RISPETTO DELLA NORMATIVA SULLA PROTEZIONE DATI PERSONALI; ;07/02/2024;4050;0;164;1;Spese correnti;4;Trasferimenti correnti;2;Trasferimenti correnti a Famiglie;2;Interventi assistenziali;999;Altri assegni e sussidi assistenziali;09/02/2024
490;1;9999999;200;200;OMESSO NOMINATIVO NEL RISPETTO DELLA NORMATIVA SULLA PROTEZIONE DATI PERSONALI; ;07/02/2024;4050;0;164;1;Spese correnti;4;Trasferimenti correnti;2;Trasferimenti correnti a Famiglie;2;Interventi assistenziali;999;Altri assegni e sussidi assistenziali;09/02/2024
491;1;9999999;137,43;137,43;OMESSO NOMINATIVO NEL RISPETTO DELLA NORMATIVA SULLA PROTEZIONE DATI PERSONALI; ;07/02/2024;4050;0;164;1;Spese correnti;4;Trasferimenti correnti;2;Trasferimenti correnti a Famiglie;2;Interventi assistenziali;999;Altri assegni e sussidi assistenziali;09/02/2024
492;1;9999999;116,66;116,66;OMESSO NOMINATIVO NEL RISPETTO DELLA NORMATIVA SULLA PROTEZIONE DATI PERSONALI; ;07/02/2024;4050;0;164;1;Spese correnti;4;Trasferimenti correnti;2;Trasferimenti correnti a Famiglie;2;Interventi assistenziali;999;Altri assegni e sussidi assistenziali;09/02/2024
493;1;9999999;200;200;OMESSO NOMINATIVO NEL RISPETTO DELLA NORMATIVA SULLA PROTEZIONE DATI PERSONALI; ;07/02/2024;4050;0;164;1;Spese correnti;4;Trasferimenti correnti;2;Trasferimenti correnti a Famiglie;2;Interventi assistenziali;999;Altri assegni e sussidi assistenziali;09/02/2024
494;1;9999999;69,15;69,15;OMESSO NOMINATIVO NEL RISPETTO DELLA NORMATIVA SULLA PROTEZIONE DATI PERSONALI; ;07/02/2024;4050;0;164;1;Spese correnti;4;Trasferimenti correnti;2;Trasferimenti correnti a Famiglie;2;Interventi assistenziali;999;Altri assegni e sussidi assistenziali;09/02/2024
495;1;9999999;69,47;69,47;OMESSO NOMINATIVO NEL RISPETTO DELLA NORMATIVA SULLA PROTEZIONE DATI PERSONALI; ;07/02/2024;4050;0;164;1;Spese correnti;4;Trasferimenti correnti;2;Trasferimenti correnti a Famiglie;2;Interventi assistenziali;999;Altri assegni e sussidi assistenziali;09/02/2024
496;1;9999999;269,5;269,5;OMESSO NOMINATIVO NEL RISPETTO DELLA NORMATIVA SULLA PROTEZIONE DATI PERSONALI; ;07/02/2024;4050;0;164;1;Spese correnti;4;Trasferimenti correnti;2;Trasferimenti correnti a Famiglie;2;Interventi assistenziali;999;Altri assegni e sussidi assistenziali;09/02/2024
497;1;9999999;81,79;81,79;OMESSO NOMINATIVO NEL RISPETTO DELLA NORMATIVA SULLA PROTEZIONE DATI PERSONALI; ;07/02/2024;4050;0;164;1;Spese correnti;4;Trasferimenti correnti;2;Trasferimenti correnti a Famiglie;2;Interventi assistenziali;999;Altri assegni e sussidi assistenziali;09/02/2024
498;1;9999999;93,51;93,51;OMESSO NOMINATIVO NEL RISPETTO DELLA NORMATIVA SULLA PROTEZIONE DATI PERSONALI; ;07/02/2024;4050;0;164;1;Spese correnti;4;Trasferimenti correnti;2;Trasferimenti correnti a Famiglie;2;Interventi assistenziali;999;Altri assegni e sussidi assistenziali;09/02/2024
499;1;9999999;316,9;316,9;OMESSO NOMINATIVO NEL RISPETTO DELLA NORMATIVA SULLA PROTEZIONE DATI PERSONALI; ;07/02/2024;4050;0;164;1;Spese correnti;4;Trasferimenti correnti;2;Trasferimenti correnti a Famiglie;2;Interventi assistenziali;999;Altri assegni e sussidi assistenziali;09/02/2024
500;1;9999999;93,51;93,51;OMESSO NOMINATIVO NEL RISPETTO DELLA NORMATIVA SULLA PROTEZIONE DATI PERSONALI; ;07/02/2024;4050;0;164;1;Spese correnti;4;Trasferimenti correnti;2;Trasferimenti correnti a Famiglie;2;Interventi assistenziali;999;Altri assegni e sussidi assistenziali;09/02/2024
501;1;9999999;200;200;OMESSO NOMINATIVO NEL RISPETTO DELLA NORMATIVA SULLA PROTEZIONE DATI PERSONALI; ;07/02/2024;4050;0;164;1;Spese correnti;4;Trasferimenti correnti;2;Trasferimenti correnti a Famiglie;2;Interventi assistenziali;999;Altri assegni e sussidi assistenziali;09/02/2024
502;1;9999999;66,48;66,48;OMESSO NOMINATIVO NEL RISPETTO DELLA NORMATIVA SULLA PROTEZIONE DATI PERSONALI; ;07/02/2024;4050;0;164;1;Spese correnti;4;Trasferimenti correnti;2;Trasferimenti correnti a Famiglie;2;Interventi assistenziali;999;Altri assegni e sussidi assistenziali;09/02/2024
503;1;9999999;129,5;129,5;OMESSO NOMINATIVO NEL RISPETTO DELLA NORMATIVA SULLA PROTEZIONE DATI PERSONALI; ;07/02/2024;4050;0;164;1;Spese correnti;4;Trasferimenti correnti;2;Trasferimenti correnti a Famiglie;2;Interventi assistenziali;999;Altri assegni e sussidi assistenziali;09/02/2024
504;1;9999999;400;400;OMESSO NOMINATIVO NEL RISPETTO DELLA NORMATIVA SULLA PROTEZIONE DATI PERSONALI; ;07/02/2024;4050;0;164;1;Spese correnti;4;Trasferimenti correnti;2;Trasferimenti correnti a Famiglie;2;Interventi assistenziali;999;Altri assegni e sussidi assistenziali;09/02/2024
505;1;9999999;76,87;76,87;OMESSO NOMINATIVO NEL RISPETTO DELLA NORMATIVA SULLA PROTEZIONE DATI PERSONALI; ;07/02/2024;4050;0;164;1;Spese correnti;4;Trasferimenti correnti;2;Trasferimenti correnti a Famiglie;2;Interventi assistenziali;999;Altri assegni e sussidi assistenziali;09/02/2024
506;1;9999999;133,2;133,2;OMESSO NOMINATIVO NEL RISPETTO DELLA NORMATIVA SULLA PROTEZIONE DATI PERSONALI; ;07/02/2024;4050;0;164;1;Spese correnti;4;Trasferimenti correnti;2;Trasferimenti correnti a Famiglie;2;Interventi assistenziali;999;Altri assegni e sussidi assistenziali;09/02/2024
507;1;9999999;93,51;93,51;OMESSO NOMINATIVO NEL RISPETTO DELLA NORMATIVA SULLA PROTEZIONE DATI PERSONALI; ;07/02/2024;4050;0;164;1;Spese correnti;4;Trasferimenti correnti;2;Trasferimenti correnti a Famiglie;2;Interventi assistenziali;999;Altri assegni e sussidi assistenziali;09/02/2024
508;1;9999999;62,17;62,17;OMESSO NOMINATIVO NEL RISPETTO DELLA NORMATIVA SULLA PROTEZIONE DATI PERSONALI; ;07/02/2024;4050;0;164;1;Spese correnti;4;Trasferimenti correnti;2;Trasferimenti correnti a Famiglie;2;Interventi assistenziali;999;Altri assegni e sussidi assistenziali;09/02/2024
509;1;9999999;200;200;OMESSO NOMINATIVO NEL RISPETTO DELLA NORMATIVA SULLA PROTEZIONE DATI PERSONALI; ;07/02/2024;4050;0;164;1;Spese correnti;4;Trasferimenti correnti;2;Trasferimenti correnti a Famiglie;2;Interventi assistenziali;999;Altri assegni e sussidi assistenziali;09/02/2024
510;1;9999999;136,5;136,5;OMESSO NOMINATIVO NEL RISPETTO DELLA NORMATIVA SULLA PROTEZIONE DATI PERSONALI; ;07/02/2024;4050;0;164;1;Spese correnti;4;Trasferimenti correnti;2;Trasferimenti correnti a Famiglie;2;Interventi assistenziali;999;Altri assegni e sussidi assistenziali;09/02/2024
511;1;9999999;93,51;93,51;OMESSO NOMINATIVO NEL RISPETTO DELLA NORMATIVA SULLA PROTEZIONE DATI PERSONALI; ;07/02/2024;4050;0;164;1;Spese correnti;4;Trasferimenti correnti;2;Trasferimenti correnti a Famiglie;2;Interventi assistenziali;999;Altri assegni e sussidi assistenziali;09/02/2024
512;1;9999999;187,02;187,02;OMESSO NOMINATIVO NEL RISPETTO DELLA NORMATIVA SULLA PROTEZIONE DATI PERSONALI; ;07/02/2024;4050;0;164;1;Spese correnti;4;Trasferimenti correnti;2;Trasferimenti correnti a Famiglie;2;Interventi assistenziali;999;Altri assegni e sussidi assistenziali;09/02/2024
513;1;9999999;251,15;251,15;OMESSO NOMINATIVO NEL RISPETTO DELLA NORMATIVA SULLA PROTEZIONE DATI PERSONALI; ;07/02/2024;4050;0;164;1;Spese correnti;4;Trasferimenti correnti;2;Trasferimenti correnti a Famiglie;2;Interventi assistenziali;999;Altri assegni e sussidi assistenziali;09/02/2024
514;1;9999999;250;250;OMESSO NOMINATIVO NEL RISPETTO DELLA NORMATIVA SULLA PROTEZIONE DATI PERSONALI; ;07/02/2024;4050;0;164;1;Spese correnti;4;Trasferimenti correnti;2;Trasferimenti correnti a Famiglie;2;Interventi assistenziali;999;Altri assegni e sussidi assistenziali;09/02/2024
515;1;9999999;156,86;156,86;OMESSO NOMINATIVO NEL RISPETTO DELLA NORMATIVA SULLA PROTEZIONE DATI PERSONALI; ;07/02/2024;4050;0;164;1;Spese correnti;4;Trasferimenti correnti;2;Trasferimenti correnti a Famiglie;2;Interventi assistenziali;999;Altri assegni e sussidi assistenziali;09/02/2024
516;1;9999999;159,95;159,95;OMESSO NOMINATIVO NEL RISPETTO DELLA NORMATIVA SULLA PROTEZIONE DATI PERSONALI; ;07/02/2024;4050;0;164;1;Spese correnti;4;Trasferimenti correnti;2;Trasferimenti correnti a Famiglie;2;Interventi assistenziali;999;Altri assegni e sussidi assistenziali;09/02/2024
517;1;9999999;400;400;OMESSO NOMINATIVO NEL RISPETTO DELLA NORMATIVA SULLA PROTEZIONE DATI PERSONALI; ;07/02/2024;4050;0;164;1;Spese correnti;4;Trasferimenti correnti;2;Trasferimenti correnti a Famiglie;2;Interventi assistenziali;999;Altri assegni e sussidi assistenziali;09/02/2024
518;1;9999999;200;200;OMESSO NOMINATIVO NEL RISPETTO DELLA NORMATIVA SULLA PROTEZIONE DATI PERSONALI; ;07/02/2024;4050;0;164;1;Spese correnti;4;Trasferimenti correnti;2;Trasferimenti correnti a Famiglie;2;Interventi assistenziali;999;Altri assegni e sussidi assistenziali;09/02/2024
519;1;9999999;280,53;280,53;OMESSO NOMINATIVO NEL RISPETTO DELLA NORMATIVA SULLA PROTEZIONE DATI PERSONALI; ;07/02/2024;4050;0;164;1;Spese correnti;4;Trasferimenti correnti;2;Trasferimenti correnti a Famiglie;2;Interventi assistenziali;999;Altri assegni e sussidi assistenziali;09/02/2024
520;1;9999999;93,51;93,51;OMESSO NOMINATIVO NEL RISPETTO DELLA NORMATIVA SULLA PROTEZIONE DATI PERSONALI; ;07/02/2024;4050;0;164;1;Spese correnti;4;Trasferimenti correnti;2;Trasferimenti correnti a Famiglie;2;Interventi assistenziali;999;Altri assegni e sussidi assistenziali;09/02/2024
521;1;9999999;200;200;OMESSO NOMINATIVO NEL RISPETTO DELLA NORMATIVA SULLA PROTEZIONE DATI PERSONALI; ;07/02/2024;4050;0;164;1;Spese correnti;4;Trasferimenti correnti;2;Trasferimenti correnti a Famiglie;2;Interventi assistenziali;999;Altri assegni e sussidi assistenziali;09/02/2024
522;1;9999999;400;400;OMESSO NOMINATIVO NEL RISPETTO DELLA NORMATIVA SULLA PROTEZIONE DATI PERSONALI; ;07/02/2024;4050;0;164;1;Spese correnti;4;Trasferimenti correnti;2;Trasferimenti correnti a Famiglie;2;Interventi assistenziali;999;Altri assegni e sussidi assistenziali;09/02/2024
523;1;9999999;187,02;187,02;OMESSO NOMINATIVO NEL RISPETTO DELLA NORMATIVA SULLA PROTEZIONE DATI PERSONALI; ;07/02/2024;4050;0;164;1;Spese correnti;4;Trasferimenti correnti;2;Trasferimenti correnti a Famiglie;2;Interventi assistenziali;999;Altri assegni e sussidi assistenziali;09/02/2024
524;1;9999999;214,69;214,69;OMESSO NOMINATIVO NEL RISPETTO DELLA NORMATIVA SULLA PROTEZIONE DATI PERSONALI; ;07/02/2024;4050;0;164;1;Spese correnti;4;Trasferimenti correnti;2;Trasferimenti correnti a Famiglie;2;Interventi assistenziali;999;Altri assegni e sussidi assistenziali;09/02/2024
525;1;9999999;97;97;OMESSO NOMINATIVO NEL RISPETTO DELLA NORMATIVA SULLA PROTEZIONE DATI PERSONALI; ;07/02/2024;4050;0;164;1;Spese correnti;4;Trasferimenti correnti;2;Trasferimenti correnti a Famiglie;2;Interventi assistenziali;999;Altri assegni e sussidi assistenziali;09/02/2024
526;1;9999999;156,7;156,7;OMESSO NOMINATIVO NEL RISPETTO DELLA NORMATIVA SULLA PROTEZIONE DATI PERSONALI; ;07/02/2024;4050;0;164;1;Spese correnti;4;Trasferimenti correnti;2;Trasferimenti correnti a Famiglie;2;Interventi assistenziali;999;Altri assegni e sussidi assistenziali;09/02/2024
527;1;9999999;200;200;OMESSO NOMINATIVO NEL RISPETTO DELLA NORMATIVA SULLA PROTEZIONE DATI PERSONALI; ;07/02/2024;4050;0;164;1;Spese correnti;4;Trasferimenti correnti;2;Trasferimenti correnti a Famiglie;2;Interventi assistenziali;999;Altri assegni e sussidi assistenziali;09/02/2024
528;1;9999999;83,04;83,04;OMESSO NOMINATIVO NEL RISPETTO DELLA NORMATIVA SULLA PROTEZIONE DATI PERSONALI; ;07/02/2024;4050;0;164;1;Spese correnti;4;Trasferimenti correnti;2;Trasferimenti correnti a Famiglie;2;Interventi assistenziali;999;Altri assegni e sussidi assistenziali;09/02/2024
529;1;9999999;200;200;OMESSO NOMINATIVO NEL RISPETTO DELLA NORMATIVA SULLA PROTEZIONE DATI PERSONALI; ;07/02/2024;4050;0;164;1;Spese correnti;4;Trasferimenti correnti;2;Trasferimenti correnti a Famiglie;2;Interventi assistenziali;999;Altri assegni e sussidi assistenziali;09/02/2024
530;1;9999999;200;200;OMESSO NOMINATIVO NEL RISPETTO DELLA NORMATIVA SULLA PROTEZIONE DATI PERSONALI; ;07/02/2024;4050;0;164;1;Spese correnti;4;Trasferimenti correnti;2;Trasferimenti correnti a Famiglie;2;Interventi assistenziali;999;Altri assegni e sussidi assistenziali;09/02/2024
531;1;9999999;200;200;OMESSO NOMINATIVO NEL RISPETTO DELLA NORMATIVA SULLA PROTEZIONE DATI PERSONALI; ;07/02/2024;4050;0;164;1;Spese correnti;4;Trasferimenti correnti;2;Trasferimenti correnti a Famiglie;2;Interventi assistenziali;999;Altri assegni e sussidi assistenziali;09/02/2024
532;1;9999999;93,51;93,51;OMESSO NOMINATIVO NEL RISPETTO DELLA NORMATIVA SULLA PROTEZIONE DATI PERSONALI; ;07/02/2024;4050;0;164;1;Spese correnti;4;Trasferimenti correnti;2;Trasferimenti correnti a Famiglie;2;Interventi assistenziali;999;Altri assegni e sussidi assistenziali;09/02/2024
533;1;9999999;200;200;OMESSO NOMINATIVO NEL RISPETTO DELLA NORMATIVA SULLA PROTEZIONE DATI PERSONALI; ;07/02/2024;4050;0;164;1;Spese correnti;4;Trasferimenti correnti;2;Trasferimenti correnti a Famiglie;2;Interventi assistenziali;999;Altri assegni e sussidi assistenziali;09/02/2024
534;1;9999999;93,51;93,51;OMESSO NOMINATIVO NEL RISPETTO DELLA NORMATIVA SULLA PROTEZIONE DATI PERSONALI; ;07/02/2024;4050;0;164;1;Spese correnti;4;Trasferimenti correnti;2;Trasferimenti correnti a Famiglie;2;Interventi assistenziali;999;Altri assegni e sussidi assistenziali;09/02/2024
535;1;9999999;82,14;82,14;OMESSO NOMINATIVO NEL RISPETTO DELLA NORMATIVA SULLA PROTEZIONE DATI PERSONALI; ;07/02/2024;4050;0;164;1;Spese correnti;4;Trasferimenti correnti;2;Trasferimenti correnti a Famiglie;2;Interventi assistenziali;999;Altri assegni e sussidi assistenziali;09/02/2024
536;1;9999999;83,47;83,47;OMESSO NOMINATIVO NEL RISPETTO DELLA NORMATIVA SULLA PROTEZIONE DATI PERSONALI; ;07/02/2024;4050;0;164;1;Spese correnti;4;Trasferimenti correnti;2;Trasferimenti correnti a Famiglie;2;Interventi assistenziali;999;Altri assegni e sussidi assistenziali;09/02/2024
537;1;9999999;200;200;OMESSO NOMINATIVO NEL RISPETTO DELLA NORMATIVA SULLA PROTEZIONE DATI PERSONALI; ;07/02/2024;4050;0;164;1;Spese correnti;4;Trasferimenti correnti;2;Trasferimenti correnti a Famiglie;2;Interventi assistenziali;999;Altri assegni e sussidi assistenziali;09/02/2024
538;1;9999999;155,02;155,02;OMESSO NOMINATIVO NEL RISPETTO DELLA NORMATIVA SULLA PROTEZIONE DATI PERSONALI; ;07/02/2024;4050;0;164;1;Spese correnti;4;Trasferimenti correnti;2;Trasferimenti correnti a Famiglie;2;Interventi assistenziali;999;Altri assegni e sussidi assistenziali;09/02/2024
539;1;9999999;128;128;OMESSO NOMINATIVO NEL RISPETTO DELLA NORMATIVA SULLA PROTEZIONE DATI PERSONALI; ;07/02/2024;4050;0;164;1;Spese correnti;4;Trasferimenti correnti;2;Trasferimenti correnti a Famiglie;2;Interventi assistenziali;999;Altri assegni e sussidi assistenziali;09/02/2024
540;1;9999999;368,1;368,1;OMESSO NOMINATIVO NEL RISPETTO DELLA NORMATIVA SULLA PROTEZIONE DATI PERSONALI; ;07/02/2024;4050;0;164;1;Spese correnti;4;Trasferimenti correnti;2;Trasferimenti correnti a Famiglie;2;Interventi assistenziali;999;Altri assegni e sussidi assistenziali;09/02/2024
541;1;9999999;93,51;93,51;OMESSO NOMINATIVO NEL RISPETTO DELLA NORMATIVA SULLA PROTEZIONE DATI PERSONALI; ;07/02/2024;4050;0;164;1;Spese correnti;4;Trasferimenti correnti;2;Trasferimenti correnti a Famiglie;2;Interventi assistenziali;999;Altri assegni e sussidi assistenziali;09/02/2024
542;1;9999999;332,86;332,86;OMESSO NOMINATIVO NEL RISPETTO DELLA NORMATIVA SULLA PROTEZIONE DATI PERSONALI; ;07/02/2024;4050;0;164;1;Spese correnti;4;Trasferimenti correnti;2;Trasferimenti correnti a Famiglie;2;Interventi assistenziali;999;Altri assegni e sussidi assistenziali;09/02/2024
543;1;9999999;93,51;93,51;OMESSO NOMINATIVO NEL RISPETTO DELLA NORMATIVA SULLA PROTEZIONE DATI PERSONALI; ;07/02/2024;4050;0;164;1;Spese correnti;4;Trasferimenti correnti;2;Trasferimenti correnti a Famiglie;2;Interventi assistenziali;999;Altri assegni e sussidi assistenziali;09/02/2024
544;1;9999999;93,51;93,51;OMESSO NOMINATIVO NEL RISPETTO DELLA NORMATIVA SULLA PROTEZIONE DATI PERSONALI; ;07/02/2024;4050;0;164;1;Spese correnti;4;Trasferimenti correnti;2;Trasferimenti correnti a Famiglie;2;Interventi assistenziali;999;Altri assegni e sussidi assistenziali;09/02/2024
545;1;9999999;93,51;93,51;OMESSO NOMINATIVO NEL RISPETTO DELLA NORMATIVA SULLA PROTEZIONE DATI PERSONALI; ;07/02/2024;4050;0;164;1;Spese correnti;4;Trasferimenti correnti;2;Trasferimenti correnti a Famiglie;2;Interventi assistenziali;999;Altri assegni e sussidi assistenziali;09/02/2024
546;1;9999999;151,79;151,79;OMESSO NOMINATIVO NEL RISPETTO DELLA NORMATIVA SULLA PROTEZIONE DATI PERSONALI; ;07/02/2024;4050;0;164;1;Spese correnti;4;Trasferimenti correnti;2;Trasferimenti correnti a Famiglie;2;Interventi assistenziali;999;Altri assegni e sussidi assistenziali;09/02/2024
547;1;9999999;200;200;OMESSO NOMINATIVO NEL RISPETTO DELLA NORMATIVA SULLA PROTEZIONE DATI PERSONALI; ;07/02/2024;4050;0;164;1;Spese correnti;4;Trasferimenti correnti;2;Trasferimenti correnti a Famiglie;2;Interventi assistenziali;999;Altri assegni e sussidi assistenziali;09/02/2024
548;1;9999999;362,4;362,4;OMESSO NOMINATIVO NEL RISPETTO DELLA NORMATIVA SULLA PROTEZIONE DATI PERSONALI; ;07/02/2024;4050;0;164;1;Spese correnti;4;Trasferimenti correnti;2;Trasferimenti correnti a Famiglie;2;Interventi assistenziali;999;Altri assegni e sussidi assistenziali;09/02/2024
549;1;9999999;93,51;93,51;OMESSO NOMINATIVO NEL RISPETTO DELLA NORMATIVA SULLA PROTEZIONE DATI PERSONALI; ;07/02/2024;4050;0;164;1;Spese correnti;4;Trasferimenti correnti;2;Trasferimenti correnti a Famiglie;2;Interventi assistenziali;999;Altri assegni e sussidi assistenziali;09/02/2024
550;1;9999999;200;200;OMESSO NOMINATIVO NEL RISPETTO DELLA NORMATIVA SULLA PROTEZIONE DATI PERSONALI; ;07/02/2024;4050;0;164;1;Spese correnti;4;Trasferimenti correnti;2;Trasferimenti correnti a Famiglie;2;Interventi assistenziali;999;Altri assegni e sussidi assistenziali;09/02/2024
551;1;9999999;275,4;275,4;OMESSO NOMINATIVO NEL RISPETTO DELLA NORMATIVA SULLA PROTEZIONE DATI PERSONALI; ;07/02/2024;4050;0;164;1;Spese correnti;4;Trasferimenti correnti;2;Trasferimenti correnti a Famiglie;2;Interventi assistenziali;999;Altri assegni e sussidi assistenziali;09/02/2024
552;1;9999999;93,51;93,51;OMESSO NOMINATIVO NEL RISPETTO DELLA NORMATIVA SULLA PROTEZIONE DATI PERSONALI; ;07/02/2024;4050;0;164;1;Spese correnti;4;Trasferimenti correnti;2;Trasferimenti correnti a Famiglie;2;Interventi assistenziali;999;Altri assegni e sussidi assistenziali;09/02/2024
553;1;9999999;200;200;OMESSO NOMINATIVO NEL RISPETTO DELLA NORMATIVA SULLA PROTEZIONE DATI PERSONALI; ;07/02/2024;4050;0;164;1;Spese correnti;4;Trasferimenti correnti;2;Trasferimenti correnti a Famiglie;2;Interventi assistenziali;999;Altri assegni e sussidi assistenziali;09/02/2024
554;1;9999999;93,51;93,51;OMESSO NOMINATIVO NEL RISPETTO DELLA NORMATIVA SULLA PROTEZIONE DATI PERSONALI; ;07/02/2024;4050;0;164;1;Spese correnti;4;Trasferimenti correnti;2;Trasferimenti correnti a Famiglie;2;Interventi assistenziali;999;Altri assegni e sussidi assistenziali;09/02/2024
555;1;9999999;1.224,00;1.224,00;GIES S.R.L.;Z7934ED2CD;07/02/2024;810;0;200;1;Spese correnti;3;Acquisto di beni e servizi;2;Acquisto di servizi;99;Altri servizi;999;Altri servizi diversi n.a.c.;09/02/2024
556;1;9999999;1.600,00;1.600,00;GIES S.R.L.;Z7934ED2CD;07/02/2024;1201;0;199;1;Spese correnti;3;Acquisto di beni e servizi;2;Acquisto di servizi;99;Altri servizi;999;Altri servizi diversi n.a.c.;09/02/2024
557;1;9999999;9.171,57;9.171,57;CONTARINA S.P.A.;Z753C1F1A2;07/02/2024;19534;6;1371;2;Spese in conto capitale;2;Investimenti fissi lordi e acquisto di terreni;1;Beni materiali;9;Beni immobili;15;Cimiteri;09/02/2024
558;1;9999999;961,06;961,06;OMESSO NOMINATIVO NEL RISPETTO DELLA NORMATIVA SULLA PROTEZIONE DATI PERSONALI; ;07/02/2024;8361;0;196;1;Spese correnti;4;Trasferimenti correnti;2;Trasferimenti correnti a Famiglie;2;Interventi assistenziali;999;Altri assegni e sussidi assistenziali;09/02/2024
559;1;9999999;793,24;793,24;OMESSO NOMINATIVO NEL RISPETTO DELLA NORMATIVA SULLA PROTEZIONE DATI PERSONALI; ;07/02/2024;8361;0;63;1;Spese correnti;4;Trasferimenti correnti;2;Trasferimenti correnti a Famiglie;2;Interventi assistenziali;999;Altri assegni e sussidi assistenziali;09/02/2024
560;1;9999999;269,28;269,28;GIES S.R.L.;Z7934ED2CD;08/02/2024;810;0;200;1;Spese correnti;3;Acquisto di beni e servizi;2;Acquisto di servizi;99;Altri servizi;999;Altri servizi diversi n.a.c.;12/02/2024
561;1;9999999;352;352;GIES S.R.L.;Z7934ED2CD;08/02/2024;1201;0;199;1;Spese correnti;3;Acquisto di beni e servizi;2;Acquisto di servizi;99;Altri servizi;999;Altri servizi diversi n.a.c.;12/02/2024
562;1;9999999;20,86;374,14;LEGGERE S.R.L.;Z673A59373;08/02/2024;4506;0;478;1;Spese correnti;3;Acquisto di beni e servizi;1;Acquisto di beni;1;Giornali, riviste e pubblicazioni;2;Pubblicazioni;12/02/2024
562;2;9999999;36,39;374,14;LEGGERE S.R.L.;Z673A59373;08/02/2024;4506;0;478;1;Spese correnti;3;Acquisto di beni e servizi;1;Acquisto di beni;1;Giornali, riviste e pubblicazioni;2;Pubblicazioni;12/02/2024
562;3;9999999;316,89;374,14;LEGGERE S.R.L.;Z673A59373;08/02/2024;4506;0;478;1;Spese correnti;3;Acquisto di beni e servizi;1;Acquisto di beni;1;Giornali, riviste e pubblicazioni;2;Pubblicazioni;12/02/2024
564;1;9999999;15,57;469,25;VERITAS  S.P.A.; ;08/02/2024;1801;0;203;1;Spese correnti;3;Acquisto di beni e servizi;2;Acquisto di servizi;5;Utenze e canoni;5;Acqua;12/02/2024
564;2;9999999;70,78;469,25;VERITAS  S.P.A.; ;08/02/2024;1801;0;203;1;Spese correnti;3;Acquisto di beni e servizi;2;Acquisto di servizi;5;Utenze e canoni;5;Acqua;12/02/2024
564;3;9999999;95,04;469,25;VERITAS  S.P.A.; ;08/02/2024;1801;0;203;1;Spese correnti;3;Acquisto di beni e servizi;2;Acquisto di servizi;5;Utenze e canoni;5;Acqua;12/02/2024
564;4;9999999;287,86;469,25;VERITAS  S.P.A.; ;08/02/2024;1801;0;203;1;Spese correnti;3;Acquisto di beni e servizi;2;Acquisto di servizi;5;Utenze e canoni;5;Acqua;12/02/2024
565;1;9999999;157,64;157,64;VERITAS  S.P.A.; ;08/02/2024;2790;0;222;1;Spese correnti;3;Acquisto di beni e servizi;2;Acquisto di servizi;5;Utenze e canoni;5;Acqua;12/02/2024
566;1;9999999;110,99;110,99;VERITAS  S.P.A.; ;08/02/2024;2792;0;223;1;Spese correnti;3;Acquisto di beni e servizi;2;Acquisto di servizi;5;Utenze e canoni;5;Acqua;12/02/2024
567;1;9999999;32,51;1.191,43;VERITAS  S.P.A.; ;08/02/2024;2973;0;224;1;Spese correnti;3;Acquisto di beni e servizi;2;Acquisto di servizi;5;Utenze e canoni;5;Acqua;12/02/2024
567;2;9999999;52,21;1.191,43;VERITAS  S.P.A.; ;08/02/2024;2973;0;224;1;Spese correnti;3;Acquisto di beni e servizi;2;Acquisto di servizi;5;Utenze e canoni;5;Acqua;12/02/2024
567;3;9999999;52,21;1.191,43;VERITAS  S.P.A.; ;08/02/2024;2973;0;224;1;Spese correnti;3;Acquisto di beni e servizi;2;Acquisto di servizi;5;Utenze e canoni;5;Acqua;12/02/2024
567;4;9999999;52,21;1.191,43;VERITAS  S.P.A.; ;08/02/2024;2973;0;224;1;Spese correnti;3;Acquisto di beni e servizi;2;Acquisto di servizi;5;Utenze e canoni;5;Acqua;12/02/2024
567;5;9999999;52,21;1.191,43;VERITAS  S.P.A.; ;08/02/2024;2973;0;224;1;Spese correnti;3;Acquisto di beni e servizi;2;Acquisto di servizi;5;Utenze e canoni;5;Acqua;12/02/2024
567;6;9999999;52,21;1.191,43;VERITAS  S.P.A.; ;08/02/2024;2973;0;224;1;Spese correnti;3;Acquisto di beni e servizi;2;Acquisto di servizi;5;Utenze e canoni;5;Acqua;12/02/2024
567;7;9999999;54,89;1.191,43;VERITAS  S.P.A.; ;08/02/2024;2973;0;224;1;Spese correnti;3;Acquisto di beni e servizi;2;Acquisto di servizi;5;Utenze e canoni;5;Acqua;12/02/2024
567;8;9999999;74,59;1.191,43;VERITAS  S.P.A.; ;08/02/2024;2973;0;224;1;Spese correnti;3;Acquisto di beni e servizi;2;Acquisto di servizi;5;Utenze e canoni;5;Acqua;12/02/2024
567;9;9999999;112,69;1.191,43;VERITAS  S.P.A.; ;08/02/2024;2973;0;224;1;Spese correnti;3;Acquisto di beni e servizi;2;Acquisto di servizi;5;Utenze e canoni;5;Acqua;12/02/2024
567;10;9999999;211,69;1.191,43;VERITAS  S.P.A.; ;08/02/2024;2973;0;224;1;Spese correnti;3;Acquisto di beni e servizi;2;Acquisto di servizi;5;Utenze e canoni;5;Acqua;12/02/2024
567;11;9999999;444,01;1.191,43;VERITAS  S.P.A.; ;08/02/2024;2973;0;224;1;Spese correnti;3;Acquisto di beni e servizi;2;Acquisto di servizi;5;Utenze e canoni;5;Acqua;12/02/2024
568;1;9999999;52,21;4.279,15;VERITAS  S.P.A.; ;08/02/2024;4020;0;204;1;Spese correnti;3;Acquisto di beni e servizi;2;Acquisto di servizi;5;Utenze e canoni;5;Acqua;12/02/2024
568;2;9999999;58,61;4.279,15;VERITAS  S.P.A.; ;08/02/2024;4020;0;204;1;Spese correnti;3;Acquisto di beni e servizi;2;Acquisto di servizi;5;Utenze e canoni;5;Acqua;12/02/2024
568;3;9999999;4.168,33;4.279,15;VERITAS  S.P.A.; ;08/02/2024;4020;0;204;1;Spese correnti;3;Acquisto di beni e servizi;2;Acquisto di servizi;5;Utenze e canoni;5;Acqua;12/02/2024
569;1;9999999;125,63;125,63;VERITAS  S.P.A.; ;08/02/2024;4527;0;225;1;Spese correnti;3;Acquisto di beni e servizi;2;Acquisto di servizi;5;Utenze e canoni;5;Acqua;12/02/2024
570;1;9999999;39,91;339,51;VERITAS  S.P.A.; ;08/02/2024;5051;0;205;1;Spese correnti;3;Acquisto di beni e servizi;2;Acquisto di servizi;5;Utenze e canoni;5;Acqua;12/02/2024
570;2;9999999;80,3;339,51;VERITAS  S.P.A.; ;08/02/2024;5051;0;205;1;Spese correnti;3;Acquisto di beni e servizi;2;Acquisto di servizi;5;Utenze e canoni;5;Acqua;12/02/2024
570;3;9999999;219,3;339,51;VERITAS  S.P.A.; ;08/02/2024;5051;0;205;1;Spese correnti;3;Acquisto di beni e servizi;2;Acquisto di servizi;5;Utenze e canoni;5;Acqua;12/02/2024
571;1;9999999;12,52;104,94;VERITAS  S.P.A.; ;08/02/2024;6461;0;226;1;Spese correnti;3;Acquisto di beni e servizi;2;Acquisto di servizi;5;Utenze e canoni;5;Acqua;12/02/2024
571;2;9999999;15,57;104,94;VERITAS  S.P.A.; ;08/02/2024;6461;0;226;1;Spese correnti;3;Acquisto di beni e servizi;2;Acquisto di servizi;5;Utenze e canoni;5;Acqua;12/02/2024
571;3;9999999;19,4;104,94;VERITAS  S.P.A.; ;08/02/2024;6461;0;226;1;Spese correnti;3;Acquisto di beni e servizi;2;Acquisto di servizi;5;Utenze e canoni;5;Acqua;12/02/2024
571;4;9999999;57,45;104,94;VERITAS  S.P.A.; ;08/02/2024;6461;0;226;1;Spese correnti;3;Acquisto di beni e servizi;2;Acquisto di servizi;5;Utenze e canoni;5;Acqua;12/02/2024
572;1;9999999;12,52;238,3;VERITAS  S.P.A.; ;08/02/2024;6905;0;206;1;Spese correnti;3;Acquisto di beni e servizi;2;Acquisto di servizi;5;Utenze e canoni;5;Acqua;12/02/2024
572;2;9999999;12,52;238,3;VERITAS  S.P.A.; ;08/02/2024;6905;0;206;1;Spese correnti;3;Acquisto di beni e servizi;2;Acquisto di servizi;5;Utenze e canoni;5;Acqua;12/02/2024
572;3;9999999;13,32;238,3;VERITAS  S.P.A.; ;08/02/2024;6905;0;206;1;Spese correnti;3;Acquisto di beni e servizi;2;Acquisto di servizi;5;Utenze e canoni;5;Acqua;12/02/2024
572;4;9999999;13,32;238,3;VERITAS  S.P.A.; ;08/02/2024;6905;0;206;1;Spese correnti;3;Acquisto di beni e servizi;2;Acquisto di servizi;5;Utenze e canoni;5;Acqua;12/02/2024
572;5;9999999;13,95;238,3;VERITAS  S.P.A.; ;08/02/2024;6905;0;206;1;Spese correnti;3;Acquisto di beni e servizi;2;Acquisto di servizi;5;Utenze e canoni;5;Acqua;12/02/2024
572;6;9999999;14,12;238,3;VERITAS  S.P.A.; ;08/02/2024;6905;0;206;1;Spese correnti;3;Acquisto di beni e servizi;2;Acquisto di servizi;5;Utenze e canoni;5;Acqua;12/02/2024
572;7;9999999;17,49;238,3;VERITAS  S.P.A.; ;08/02/2024;6905;0;206;1;Spese correnti;3;Acquisto di beni e servizi;2;Acquisto di servizi;5;Utenze e canoni;5;Acqua;12/02/2024
572;8;9999999;17,49;238,3;VERITAS  S.P.A.; ;08/02/2024;6905;0;206;1;Spese correnti;3;Acquisto di beni e servizi;2;Acquisto di servizi;5;Utenze e canoni;5;Acqua;12/02/2024
572;9;9999999;17,49;238,3;VERITAS  S.P.A.; ;08/02/2024;6905;0;206;1;Spese correnti;3;Acquisto di beni e servizi;2;Acquisto di servizi;5;Utenze e canoni;5;Acqua;12/02/2024
572;10;9999999;21,29;238,3;VERITAS  S.P.A.; ;08/02/2024;6905;0;206;1;Spese correnti;3;Acquisto di beni e servizi;2;Acquisto di servizi;5;Utenze e canoni;5;Acqua;12/02/2024
572;11;9999999;84,79;238,3;VERITAS  S.P.A.; ;08/02/2024;6905;0;206;1;Spese correnti;3;Acquisto di beni e servizi;2;Acquisto di servizi;5;Utenze e canoni;5;Acqua;12/02/2024
573;1;9999999;14,12;125,51;VERITAS  S.P.A.; ;08/02/2024;7431;0;207;1;Spese correnti;3;Acquisto di beni e servizi;2;Acquisto di servizi;5;Utenze e canoni;5;Acqua;12/02/2024
573;2;9999999;19,4;125,51;VERITAS  S.P.A.; ;08/02/2024;7431;0;207;1;Spese correnti;3;Acquisto di beni e servizi;2;Acquisto di servizi;5;Utenze e canoni;5;Acqua;12/02/2024
573;3;9999999;23,18;125,51;VERITAS  S.P.A.; ;08/02/2024;7431;0;207;1;Spese correnti;3;Acquisto di beni e servizi;2;Acquisto di servizi;5;Utenze e canoni;5;Acqua;12/02/2024
573;4;9999999;25,11;125,51;VERITAS  S.P.A.; ;08/02/2024;7431;0;207;1;Spese correnti;3;Acquisto di beni e servizi;2;Acquisto di servizi;5;Utenze e canoni;5;Acqua;12/02/2024
573;5;9999999;43,7;125,51;VERITAS  S.P.A.; ;08/02/2024;7431;0;207;1;Spese correnti;3;Acquisto di beni e servizi;2;Acquisto di servizi;5;Utenze e canoni;5;Acqua;12/02/2024
574;1;9999999;74;179,1;VERITAS  S.P.A.; ;08/02/2024;7552;1;227;1;Spese correnti;3;Acquisto di beni e servizi;2;Acquisto di servizi;5;Utenze e canoni;5;Acqua;12/02/2024
574;2;9999999;105,1;179,1;VERITAS  S.P.A.; ;08/02/2024;7552;1;227;1;Spese correnti;3;Acquisto di beni e servizi;2;Acquisto di servizi;5;Utenze e canoni;5;Acqua;12/02/2024
575;1;9999999;2.052,06;2.052,06;AGENZIA DELLE ENTRATE DI TREVISO; ;08/02/2024;1904;0;205;1;Spese correnti;10;Altre spese correnti;3;Versamenti IVA a debito;1;Versamenti IVA a debito per le gestioni commerciali;1;Versamenti IVA a debito per le gestioni commerciali;16/02/2024
576;1;9999999;70;70;KAIROS FORMA S.R.L. IMPRESA SOCIALE;B0121D1BA3;09/02/2024;558;0;156;1;Spese correnti;3;Acquisto di beni e servizi;2;Acquisto di servizi;4;Acquisto di servizi per formazione e addestramento del personale dell'ente;999;Acquisto di servizi per altre spese per formazione e addestramento n.a.c.;13/02/2024
577;1;9999999;19.995,80;19.995,80;SKYFITNESS S.R.L.;Z733D10C10;09/02/2024;18105;0;914;2;Spese in conto capitale;2;Investimenti fissi lordi e acquisto di terreni;1;Beni materiali;5;Attrezzature;999;Attrezzature n.a.c.;13/02/2024
578;1;9999999;660;660;PROVINCIA DI TREVISO;A041392F43;09/02/2024;11315;0;1039;2;Spese in conto capitale;2;Investimenti fissi lordi e acquisto di terreni;1;Beni materiali;9;Beni immobili;999;Beni immobili n.a.c.;13/02/2024
579;1;9999999;850;850;FORMEL SRL;ZBA3DFEDB1;14/02/2024;550;0;1160;1;Spese correnti;3;Acquisto di beni e servizi;2;Acquisto di servizi;4;Acquisto di servizi per formazione e addestramento del personale dell'ente;999;Acquisto di servizi per altre spese per formazione e addestramento n.a.c.;16/02/2024
580;1;9999999;600;600;FORMEL SRL;ZBA3DFEDB1;14/02/2024;551;0;1159;1;Spese correnti;3;Acquisto di beni e servizi;2;Acquisto di servizi;4;Acquisto di servizi per formazione e addestramento del personale dell'ente;999;Acquisto di servizi per altre spese per formazione e addestramento n.a.c.;16/02/2024
582;1;9999999;1.400,00;1.400,00;FORMEL SRL;ZBA3DFEDB1;14/02/2024;557;0;1161;1;Spese correnti;3;Acquisto di beni e servizi;2;Acquisto di servizi;4;Acquisto di servizi per formazione e addestramento del personale dell'ente;999;Acquisto di servizi per altre spese per formazione e addestramento n.a.c.;16/02/2024
583;1;9999999;502;502;FORMEL SRL;ZBA3DFEDB1;14/02/2024;558;0;1165;1;Spese correnti;3;Acquisto di beni e servizi;2;Acquisto di servizi;4;Acquisto di servizi per formazione e addestramento del personale dell'ente;999;Acquisto di servizi per altre spese per formazione e addestramento n.a.c.;16/02/2024
584;1;9999999;450;450;FORMEL SRL;ZBA3DFEDB1;14/02/2024;559;0;1163;1;Spese correnti;3;Acquisto di beni e servizi;2;Acquisto di servizi;4;Acquisto di servizi per formazione e addestramento del personale dell'ente;999;Acquisto di servizi per altre spese per formazione e addestramento n.a.c.;16/02/2024
585;1;9999999;700;700;FORMEL SRL;ZBA3DFEDB1;14/02/2024;560;0;1162;1;Spese correnti;3;Acquisto di beni e servizi;2;Acquisto di servizi;4;Acquisto di servizi per formazione e addestramento del personale dell'ente;999;Acquisto di servizi per altre spese per formazione e addestramento n.a.c.;16/02/2024
586;1;9999999;300;300;FORMEL SRL;ZBA3DFEDB1;14/02/2024;564;0;1164;1;Spese correnti;3;Acquisto di beni e servizi;2;Acquisto di servizi;4;Acquisto di servizi per formazione e addestramento del personale dell'ente;999;Acquisto di servizi per altre spese per formazione e addestramento n.a.c.;16/02/2024
587;1;9999999;166,59;166,59;ERREBIAN SPA;Z6B3D61048;14/02/2024;1778;0;1006;1;Spese correnti;3;Acquisto di beni e servizi;1;Acquisto di beni;2;Altri beni di consumo;1;Carta, cancelleria e stampati;16/02/2024
588;1;9999999;823,27;823,27;TELECOM ITALIA S.P.A.;9,29E+10;14/02/2024;1801;1;610;1;Spese correnti;3;Acquisto di beni e servizi;2;Acquisto di servizi;5;Utenze e canoni;999;Utenze e canoni per altri servizi n.a.c.;16/02/2024
589;1;9999999;1.481,51;1.481,51;TELECOM ITALIA S.P.A.;9,29E+10;14/02/2024;1801;1;610;1;Spese correnti;3;Acquisto di beni e servizi;2;Acquisto di servizi;5;Utenze e canoni;999;Utenze e canoni per altri servizi n.a.c.;16/02/2024
590;1;9999999;442,88;442,88;TELECOM ITALIA S.P.A.;9,29E+10;14/02/2024;2790;1;613;1;Spese correnti;3;Acquisto di beni e servizi;2;Acquisto di servizi;5;Utenze e canoni;999;Utenze e canoni per altri servizi n.a.c.;16/02/2024
591;1;9999999;585,31;585,31;VIER  SCARL; ;14/02/2024;2792;0;235;1;Spese correnti;3;Acquisto di beni e servizi;2;Acquisto di servizi;5;Utenze e canoni;4;Energia elettrica;16/02/2024
592;1;9999999;132,88;132,88;TELECOM ITALIA S.P.A.;9,29E+10;14/02/2024;2792;1;611;1;Spese correnti;3;Acquisto di beni e servizi;2;Acquisto di servizi;5;Utenze e canoni;999;Utenze e canoni per altri servizi n.a.c.;16/02/2024
593;1;9999999;4.513,37;4.513,37;VIER  SCARL; ;14/02/2024;2973;0;131;1;Spese correnti;3;Acquisto di beni e servizi;2;Acquisto di servizi;5;Utenze e canoni;4;Energia elettrica;16/02/2024
594;1;9999999;1.841,43;1.841,43;TELECOM ITALIA S.P.A.;9,29E+10;14/02/2024;2973;1;612;1;Spese correnti;3;Acquisto di beni e servizi;2;Acquisto di servizi;5;Utenze e canoni;999;Utenze e canoni per altri servizi n.a.c.;16/02/2024
595;1;9999999;1.958,27;1.958,27;VIER  SCARL; ;14/02/2024;4020;0;236;1;Spese correnti;3;Acquisto di beni e servizi;2;Acquisto di servizi;5;Utenze e canoni;4;Energia elettrica;16/02/2024
596;1;9999999;924,65;924,65;VIER  SCARL; ;14/02/2024;5050;0;141;1;Spese correnti;3;Acquisto di beni e servizi;2;Acquisto di servizi;5;Utenze e canoni;4;Energia elettrica;16/02/2024
597;1;9999999;151,05;151,05;TELECOM ITALIA S.P.A.;9,29E+10;14/02/2024;6642;0;838;1;Spese correnti;3;Acquisto di beni e servizi;2;Acquisto di servizi;5;Utenze e canoni;1;Telefonia fissa;16/02/2024
598;1;9999999;390,2;390,2;VIER  SCARL; ;14/02/2024;7552;1;237;1;Spese correnti;3;Acquisto di beni e servizi;2;Acquisto di servizi;5;Utenze e canoni;4;Energia elettrica;16/02/2024
599;1;9999999;353,8;353,8;INIZIATIVE UNINDUSTRIA SRL; ;14/02/2024;8204;5;163;1;Spese correnti;3;Acquisto di beni e servizi;2;Acquisto di servizi;7;Utilizzo di beni di terzi;1;Locazione di beni immobili;16/02/2024
600;1;9999999;300;300;LA TANA DEI GOBLIN TREVISO A.P.S. Ludus in Tabula;Z193A2CC2D;14/02/2024;8204;4;304;1;Spese correnti;3;Acquisto di beni e servizi;2;Acquisto di servizi;99;Altri servizi;999;Altri servizi diversi n.a.c.;16/02/2024
601;1;9999999;3.068,24;3.068,24;AG.ENTRATE RISCOSSIONE- A.N.C.I. NAZIONALE; ;14/02/2024;690;1;208;1;Spese correnti;3;Acquisto di beni e servizi;2;Acquisto di servizi;99;Altri servizi;3;Quote di associazioni;15/02/2024
602;1;9999999;26.000,00;26.000,00;ISTITUTO COMPRENSIVO STATALE DI PREGANZIOL; ;14/02/2024;4442;0;215;1;Spese correnti;4;Trasferimenti correnti;1;Trasferimenti correnti a Amministrazioni Pubbliche;2;Trasferimenti correnti a Amministrazioni Locali;999;Trasferimenti correnti a altre Amministrazioni Locali n.a.c.;16/02/2024
630;1;9999999;262,78;262,78;KUWAIT PETROLEUM ITALIA SPA;Z9C36EAB07;14/02/2024;1307;0;270;1;Spese correnti;3;Acquisto di beni e servizi;1;Acquisto di beni;2;Altri beni di consumo;2;Carburanti, combustibili e lubrificanti;16/02/2024
631;1;9999999;538,61;538,61;KYOCERA DOCUMENT SOLUTIONS ITALIA SPA;8227602FF1;14/02/2024;1813;0;291;1;Spese correnti;3;Acquisto di beni e servizi;2;Acquisto di servizi;7;Utilizzo di beni di terzi;4;Noleggi di hardware;16/02/2024
632;1;9999999;256,08;256,08;KUWAIT PETROLEUM ITALIA SPA;Z9C36EAB07;14/02/2024;2197;0;271;1;Spese correnti;3;Acquisto di beni e servizi;1;Acquisto di beni;2;Altri beni di consumo;2;Carburanti, combustibili e lubrificanti;16/02/2024
633;1;9999999;58,94;58,94;KUWAIT PETROLEUM ITALIA SPA;Z9C36EAB07;14/02/2024;8132;1;273;1;Spese correnti;3;Acquisto di beni e servizi;1;Acquisto di beni;2;Altri beni di consumo;2;Carburanti, combustibili e lubrificanti;16/02/2024
634;1;9999999;248,49;248,49;CONTARINA S.P.A.;ZB638FC84E;15/02/2024;1344;1;1301;1;Spese correnti;3;Acquisto di beni e servizi;2;Acquisto di servizi;99;Altri servizi;9;Acquisto di sevizi per verde e arredo urbano;20/02/2024
635;1;9999999;27.742,76;27.742,76;EURO TOURS SRL;88188476C3;15/02/2024;4261;4;729;1;Spese correnti;3;Acquisto di beni e servizi;2;Acquisto di servizi;15;Contratti di servizio pubblico;2;Contratti di servizio di trasporto scolastico;20/02/2024
636;1;9999999;2.889,50;2.889,50;CONTARINA S.P.A.;ZB638FC84E;15/02/2024;5720;2;1299;1;Spese correnti;3;Acquisto di beni e servizi;2;Acquisto di servizi;9;Manutenzione ordinaria e riparazioni;5;Manutenzione ordinaria e riparazioni di attrezzature;20/02/2024
637;1;9999999;13.426,44;13.426,44;CODESS SOCIALE-COOP. ONLUS;9120417633;15/02/2024;8250;0;578;1;Spese correnti;3;Acquisto di beni e servizi;2;Acquisto di servizi;15;Contratti di servizio pubblico;9;Contratti di servizio di assistenza sociale domiciliare;20/02/2024
638;1;9999999;3.050,00;3.050,00;TELERADIO DIFFUSIONE BASSANO SRL;Z473DB6437;15/02/2024;9439;0;1050;1;Spese correnti;3;Acquisto di beni e servizi;2;Acquisto di servizi;99;Altri servizi;999;Altri servizi diversi n.a.c.;20/02/2024
639;1;9999999;12.688,00;12.688,00;STUDIO TRE INGEGNERI ASSOCIATI;9898084D4D;15/02/2024;15904;1;565;2;Spese in conto capitale;2;Investimenti fissi lordi e acquisto di terreni;1;Beni materiali;9;Beni immobili;12;Infrastrutture stradali;20/02/2024
640;1;9999999;2.000,00;2.000,00;PREGANZIOL ASSE T; ;15/02/2024;9461;0;464;1;Spese correnti;4;Trasferimenti correnti;3;Trasferimenti correnti a Imprese;99;Trasferimenti correnti a altre imprese;999;Trasferimenti correnti a altre imprese;20/02/2024
641;1;9999999;7.933,34;7.933,34;ASSOCIAZIONE COMUNI MARCA TREVIGIANA; ;15/02/2024;4261;2;773;1;Spese correnti;3;Acquisto di beni e servizi;2;Acquisto di servizi;99;Altri servizi;999;Altri servizi diversi n.a.c.;20/02/2024
642;1;9999999;2.188,96;2.188,96;ASSOCIAZIONE COMUNI MARCA TREVIGIANA; ;15/02/2024;4261;2;1077;1;Spese correnti;3;Acquisto di beni e servizi;2;Acquisto di servizi;99;Altri servizi;999;Altri servizi diversi n.a.c.;20/02/2024
643;1;9999999;250;250;PROVINCIA DI TREVISO; ;15/02/2024;810;0;941;1;Spese correnti;3;Acquisto di beni e servizi;2;Acquisto di servizi;99;Altri servizi;999;Altri servizi diversi n.a.c.;20/02/2024
644;1;9999999;35;35;ANAC;A018FB7BB9;15/02/2024;7435;2;789;1;Spese correnti;3;Acquisto di beni e servizi;2;Acquisto di servizi;9;Manutenzione ordinaria e riparazioni;4;Manutenzione ordinaria e riparazioni di impianti e macchinari;22/02/2024
645;1;9999999;35;35;ANAC;A012AF66AC;15/02/2024;11302;3;764;2;Spese in conto capitale;2;Investimenti fissi lordi e acquisto di terreni;1;Beni materiali;9;Beni immobili;19;Fabbricati ad uso strumentale;22/02/2024
646;1;9999999;35;35;ANAC;A03C3AC01B;15/02/2024;18080;2;1068;2;Spese in conto capitale;2;Investimenti fissi lordi e acquisto di terreni;1;Beni materiali;9;Beni immobili;999;Beni immobili n.a.c.;22/02/2024
647;1;9999999;35;35;ANAC;A04430FF89;15/02/2024;11302;16;1145;2;Spese in conto capitale;2;Investimenti fissi lordi e acquisto di terreni;1;Beni materiali;9;Beni immobili;12;Infrastrutture stradali;22/02/2024
648;1;9999999;35;35;ANAC;A04434F45D;15/02/2024;15904;6;1089;2;Spese in conto capitale;2;Investimenti fissi lordi e acquisto di terreni;1;Beni materiali;9;Beni immobili;12;Infrastrutture stradali;22/02/2024
649;1;9999999;35;35;ANAC;A0445279DD;15/02/2024;15904;5;1091;2;Spese in conto capitale;2;Investimenti fissi lordi e acquisto di terreni;1;Beni materiali;9;Beni immobili;12;Infrastrutture stradali;22/02/2024
650;1;9999999;793;793;SOC. IMM. MURETTO S.N.C. DI CRESCENTE V. & C.; ;15/02/2024;1812;0;327;1;Spese correnti;3;Acquisto di beni e servizi;2;Acquisto di servizi;7;Utilizzo di beni di terzi;1;Locazione di beni immobili;20/02/2024
651;1;9999999;549,02;549,02;POSTE ITALIANE SPA;ZCE3502180;15/02/2024;1793;0;288;1;Spese correnti;3;Acquisto di beni e servizi;2;Acquisto di servizi;16;Servizi amministrativi;2;Spese postali;20/02/2024
652;1;9999999;4,98;14,94;SHARP ELECTRONICS ITALIA SPA;7286031EF9;15/02/2024;1813;0;1306;1;Spese correnti;3;Acquisto di beni e servizi;2;Acquisto di servizi;7;Utilizzo di beni di terzi;4;Noleggi di hardware;20/02/2024
652;2;9999999;4,98;14,94;SHARP ELECTRONICS ITALIA SPA;7286031EF9;15/02/2024;1813;0;1306;1;Spese correnti;3;Acquisto di beni e servizi;2;Acquisto di servizi;7;Utilizzo di beni di terzi;4;Noleggi di hardware;20/02/2024
652;3;9999999;4,98;14,94;SHARP ELECTRONICS ITALIA SPA;7286031EF9;15/02/2024;1813;0;1306;1;Spese correnti;3;Acquisto di beni e servizi;2;Acquisto di servizi;7;Utilizzo di beni di terzi;4;Noleggi di hardware;20/02/2024
653;1;9999999;4,98;4,98;SHARP ELECTRONICS ITALIA SPA;7286031EF9;15/02/2024;1813;0;1306;1;Spese correnti;3;Acquisto di beni e servizi;2;Acquisto di servizi;7;Utilizzo di beni di terzi;4;Noleggi di hardware;20/02/2024
654;1;9999999;4,98;19,92;SHARP ELECTRONICS ITALIA SPA;7286031EF9;15/02/2024;1813;0;1306;1;Spese correnti;3;Acquisto di beni e servizi;2;Acquisto di servizi;7;Utilizzo di beni di terzi;4;Noleggi di hardware;20/02/2024
654;2;9999999;4,98;19,92;SHARP ELECTRONICS ITALIA SPA;7286031EF9;15/02/2024;1813;0;1306;1;Spese correnti;3;Acquisto di beni e servizi;2;Acquisto di servizi;7;Utilizzo di beni di terzi;4;Noleggi di hardware;20/02/2024
654;3;9999999;4,98;19,92;SHARP ELECTRONICS ITALIA SPA;7286031EF9;15/02/2024;1813;0;1306;1;Spese correnti;3;Acquisto di beni e servizi;2;Acquisto di servizi;7;Utilizzo di beni di terzi;4;Noleggi di hardware;20/02/2024
654;4;9999999;4,98;19,92;SHARP ELECTRONICS ITALIA SPA;7286031EF9;15/02/2024;1813;0;1306;1;Spese correnti;3;Acquisto di beni e servizi;2;Acquisto di servizi;7;Utilizzo di beni di terzi;4;Noleggi di hardware;20/02/2024
655;1;9999999;4,98;19,92;SHARP ELECTRONICS ITALIA SPA;7286031EF9;15/02/2024;1813;0;1306;1;Spese correnti;3;Acquisto di beni e servizi;2;Acquisto di servizi;7;Utilizzo di beni di terzi;4;Noleggi di hardware;20/02/2024
655;2;9999999;4,98;19,92;SHARP ELECTRONICS ITALIA SPA;7286031EF9;15/02/2024;1813;0;1306;1;Spese correnti;3;Acquisto di beni e servizi;2;Acquisto di servizi;7;Utilizzo di beni di terzi;4;Noleggi di hardware;20/02/2024
655;3;9999999;4,98;19,92;SHARP ELECTRONICS ITALIA SPA;7286031EF9;15/02/2024;1813;0;1306;1;Spese correnti;3;Acquisto di beni e servizi;2;Acquisto di servizi;7;Utilizzo di beni di terzi;4;Noleggi di hardware;20/02/2024
655;4;9999999;4,98;19,92;SHARP ELECTRONICS ITALIA SPA;7286031EF9;15/02/2024;1813;0;1306;1;Spese correnti;3;Acquisto di beni e servizi;2;Acquisto di servizi;7;Utilizzo di beni di terzi;4;Noleggi di hardware;20/02/2024
656;1;9999999;4,98;19,92;SHARP ELECTRONICS ITALIA SPA;7286031EF9;15/02/2024;1813;0;1306;1;Spese correnti;3;Acquisto di beni e servizi;2;Acquisto di servizi;7;Utilizzo di beni di terzi;4;Noleggi di hardware;20/02/2024
656;2;9999999;4,98;19,92;SHARP ELECTRONICS ITALIA SPA;7286031EF9;15/02/2024;1813;0;1306;1;Spese correnti;3;Acquisto di beni e servizi;2;Acquisto di servizi;7;Utilizzo di beni di terzi;4;Noleggi di hardware;20/02/2024
656;3;9999999;4,98;19,92;SHARP ELECTRONICS ITALIA SPA;7286031EF9;15/02/2024;1813;0;1306;1;Spese correnti;3;Acquisto di beni e servizi;2;Acquisto di servizi;7;Utilizzo di beni di terzi;4;Noleggi di hardware;20/02/2024
656;4;9999999;4,98;19,92;SHARP ELECTRONICS ITALIA SPA;7286031EF9;15/02/2024;1813;0;1306;1;Spese correnti;3;Acquisto di beni e servizi;2;Acquisto di servizi;7;Utilizzo di beni di terzi;4;Noleggi di hardware;20/02/2024
657;1;9999999;4,98;14,94;SHARP ELECTRONICS ITALIA SPA;7286031EF9;15/02/2024;1813;0;1306;1;Spese correnti;3;Acquisto di beni e servizi;2;Acquisto di servizi;7;Utilizzo di beni di terzi;4;Noleggi di hardware;20/02/2024
657;2;9999999;4,98;14,94;SHARP ELECTRONICS ITALIA SPA;7286031EF9;15/02/2024;1813;0;1306;1;Spese correnti;3;Acquisto di beni e servizi;2;Acquisto di servizi;7;Utilizzo di beni di terzi;4;Noleggi di hardware;20/02/2024
657;3;9999999;4,98;14,94;SHARP ELECTRONICS ITALIA SPA;7286031EF9;15/02/2024;1813;0;1306;1;Spese correnti;3;Acquisto di beni e servizi;2;Acquisto di servizi;7;Utilizzo di beni di terzi;4;Noleggi di hardware;20/02/2024
658;1;9999999;4,98;4,98;SHARP ELECTRONICS ITALIA SPA;7286031EF9;15/02/2024;1813;0;1306;1;Spese correnti;3;Acquisto di beni e servizi;2;Acquisto di servizi;7;Utilizzo di beni di terzi;4;Noleggi di hardware;20/02/2024
660;1;9999999;11.231,83;11.231,83;PRO LOCO PREGANZIOL; ;15/02/2024;5412;0;219;1;Spese correnti;4;Trasferimenti correnti;4;Trasferimenti correnti a Istituzioni Sociali Private;1;Trasferimenti correnti a Istituzioni Sociali Private;1;Trasferimenti correnti a Istituzioni Sociali Private;20/02/2024
661;1;9999999;150;150;OMESSO NOMINATIVO NEL RISPETTO DELLA NORMATIVA SULLA PROTEZIONE DATI PERSONALI; ;16/02/2024;8361;0;222;1;Spese correnti;4;Trasferimenti correnti;2;Trasferimenti correnti a Famiglie;2;Interventi assistenziali;999;Altri assegni e sussidi assistenziali;21/02/2024
662;1;9999999;267,67;267,67;OMESSO NOMINATIVO NEL RISPETTO DELLA NORMATIVA SULLA PROTEZIONE DATI PERSONALI; ;16/02/2024;74;0;1166;1;Spese correnti;3;Acquisto di beni e servizi;2;Acquisto di servizi;1;Organi e incarichi istituzionali dell'amministrazione;1;Organi istituzionali dell'amministrazione - Indennità;21/02/2024
663;1;9999999;308,85;308,85;OMESSO NOMINATIVO NEL RISPETTO DELLA NORMATIVA SULLA PROTEZIONE DATI PERSONALI; ;16/02/2024;74;0;1166;1;Spese correnti;3;Acquisto di beni e servizi;2;Acquisto di servizi;1;Organi e incarichi istituzionali dell'amministrazione;1;Organi istituzionali dell'amministrazione - Indennità;21/02/2024
664;1;9999999;144,13;144,13;OMESSO NOMINATIVO NEL RISPETTO DELLA NORMATIVA SULLA PROTEZIONE DATI PERSONALI; ;16/02/2024;74;0;1166;1;Spese correnti;3;Acquisto di beni e servizi;2;Acquisto di servizi;1;Organi e incarichi istituzionali dell'amministrazione;1;Organi istituzionali dell'amministrazione - Indennità;21/02/2024
665;1;9999999;144,13;144,13;OMESSO NOMINATIVO NEL RISPETTO DELLA NORMATIVA SULLA PROTEZIONE DATI PERSONALI; ;16/02/2024;74;0;1166;1;Spese correnti;3;Acquisto di beni e servizi;2;Acquisto di servizi;1;Organi e incarichi istituzionali dell'amministrazione;1;Organi istituzionali dell'amministrazione - Indennità;21/02/2024
666;1;9999999;102,95;102,95;OMESSO NOMINATIVO NEL RISPETTO DELLA NORMATIVA SULLA PROTEZIONE DATI PERSONALI; ;16/02/2024;74;0;1166;1;Spese correnti;3;Acquisto di beni e servizi;2;Acquisto di servizi;1;Organi e incarichi istituzionali dell'amministrazione;1;Organi istituzionali dell'amministrazione - Indennità;21/02/2024
667;1;9999999;226,49;226,49;OMESSO NOMINATIVO NEL RISPETTO DELLA NORMATIVA SULLA PROTEZIONE DATI PERSONALI; ;16/02/2024;74;0;1166;1;Spese correnti;3;Acquisto di beni e servizi;2;Acquisto di servizi;1;Organi e incarichi istituzionali dell'amministrazione;1;Organi istituzionali dell'amministrazione - Indennità;21/02/2024
668;1;9999999;144,13;144,13;OMESSO NOMINATIVO NEL RISPETTO DELLA NORMATIVA SULLA PROTEZIONE DATI PERSONALI; ;16/02/2024;74;0;1166;1;Spese correnti;3;Acquisto di beni e servizi;2;Acquisto di servizi;1;Organi e incarichi istituzionali dell'amministrazione;1;Organi istituzionali dell'amministrazione - Indennità;21/02/2024
669;1;9999999;247,08;247,08;OMESSO NOMINATIVO NEL RISPETTO DELLA NORMATIVA SULLA PROTEZIONE DATI PERSONALI; ;16/02/2024;74;0;1166;1;Spese correnti;3;Acquisto di beni e servizi;2;Acquisto di servizi;1;Organi e incarichi istituzionali dell'amministrazione;1;Organi istituzionali dell'amministrazione - Indennità;21/02/2024
670;1;9999999;102,95;102,95;OMESSO NOMINATIVO NEL RISPETTO DELLA NORMATIVA SULLA PROTEZIONE DATI PERSONALI; ;16/02/2024;74;0;1166;1;Spese correnti;3;Acquisto di beni e servizi;2;Acquisto di servizi;1;Organi e incarichi istituzionali dell'amministrazione;1;Organi istituzionali dell'amministrazione - Indennità;21/02/2024
671;1;9999999;123,54;123,54;OMESSO NOMINATIVO NEL RISPETTO DELLA NORMATIVA SULLA PROTEZIONE DATI PERSONALI; ;16/02/2024;74;0;1166;1;Spese correnti;3;Acquisto di beni e servizi;2;Acquisto di servizi;1;Organi e incarichi istituzionali dell'amministrazione;1;Organi istituzionali dell'amministrazione - Indennità;21/02/2024
672;1;9999999;267,67;267,67;OMESSO NOMINATIVO NEL RISPETTO DELLA NORMATIVA SULLA PROTEZIONE DATI PERSONALI; ;16/02/2024;74;0;1166;1;Spese correnti;3;Acquisto di beni e servizi;2;Acquisto di servizi;1;Organi e incarichi istituzionali dell'amministrazione;1;Organi istituzionali dell'amministrazione - Indennità;21/02/2024
673;1;9999999;123,54;123,54;OMESSO NOMINATIVO NEL RISPETTO DELLA NORMATIVA SULLA PROTEZIONE DATI PERSONALI; ;16/02/2024;74;0;1166;1;Spese correnti;3;Acquisto di beni e servizi;2;Acquisto di servizi;1;Organi e incarichi istituzionali dell'amministrazione;1;Organi istituzionali dell'amministrazione - Indennità;21/02/2024
674;1;9999999;123,54;123,54;OMESSO NOMINATIVO NEL RISPETTO DELLA NORMATIVA SULLA PROTEZIONE DATI PERSONALI; ;16/02/2024;74;0;1166;1;Spese correnti;3;Acquisto di beni e servizi;2;Acquisto di servizi;1;Organi e incarichi istituzionali dell'amministrazione;1;Organi istituzionali dell'amministrazione - Indennità;21/02/2024
675;1;9999999;226,49;226,49;OMESSO NOMINATIVO NEL RISPETTO DELLA NORMATIVA SULLA PROTEZIONE DATI PERSONALI; ;16/02/2024;74;0;1166;1;Spese correnti;3;Acquisto di beni e servizi;2;Acquisto di servizi;1;Organi e incarichi istituzionali dell'amministrazione;1;Organi istituzionali dell'amministrazione - Indennità;21/02/2024
676;1;9999999;226,49;226,49;OMESSO NOMINATIVO NEL RISPETTO DELLA NORMATIVA SULLA PROTEZIONE DATI PERSONALI; ;16/02/2024;74;0;1166;1;Spese correnti;3;Acquisto di beni e servizi;2;Acquisto di servizi;1;Organi e incarichi istituzionali dell'amministrazione;1;Organi istituzionali dell'amministrazione - Indennità;21/02/2024
678;1;9999999;2.196,00;2.196,00;ROLLERI CULTURA D'IMPRESA SRL;ZB03D83164;16/02/2024;561;0;1051;1;Spese correnti;3;Acquisto di beni e servizi;2;Acquisto di servizi;4;Acquisto di servizi per formazione e addestramento del personale dell'ente;999;Acquisto di servizi per altre spese per formazione e addestramento n.a.c.;21/02/2024
680;1;9999999;12.611,48;12.611,48;AMMINISTRATORI COMUNALI; ;19/02/2024;74;0;59;1;Spese correnti;3;Acquisto di beni e servizi;2;Acquisto di servizi;1;Organi e incarichi istituzionali dell'amministrazione;1;Organi istituzionali dell'amministrazione - Indennità;23/02/2024
769;1;9999999;800;800;SOGEST ITALIA SRL;Z08372EAAD;20/02/2024;1185;1;715;1;Spese correnti;3;Acquisto di beni e servizi;2;Acquisto di servizi;9;Manutenzione ordinaria e riparazioni;4;Manutenzione ordinaria e riparazioni di impianti e macchinari;23/02/2024
770;1;9999999;50;50;SOGEST ITALIA SRL;Z08372EAAD;20/02/2024;1185;2;716;1;Spese correnti;3;Acquisto di beni e servizi;2;Acquisto di servizi;9;Manutenzione ordinaria e riparazioni;4;Manutenzione ordinaria e riparazioni di impianti e macchinari;23/02/2024
771;1;9999999;219,6;219,6;LINDE MATERIAL HANDLING ITALIA SPA;Z8B370D069;20/02/2024;1344;1;685;1;Spese correnti;3;Acquisto di beni e servizi;2;Acquisto di servizi;99;Altri servizi;999;Altri servizi diversi n.a.c.;23/02/2024
772;1;9999999;386;386;POSTE ITALIANE SPA;ZCE3502180;20/02/2024;1793;0;288;1;Spese correnti;3;Acquisto di beni e servizi;2;Acquisto di servizi;16;Servizi amministrativi;2;Spese postali;23/02/2024
773;1;9999999;31.134,40;31.134,40;HALLEY VENETO SRL;901457569E;20/02/2024;1798;0;1250;1;Spese correnti;3;Acquisto di beni e servizi;2;Acquisto di servizi;19;Servizi informatici e di telecomunicazioni;1;Gestione e manutenzione applicazioni;23/02/2024
774;1;9999999;2.583,52;2.583,52;SOGEST ITALIA SRL;Z08372EAAD;20/02/2024;1805;0;1112;1;Spese correnti;3;Acquisto di beni e servizi;2;Acquisto di servizi;13;Servizi ausiliari per il funzionamento dell'ente;1;Servizi di sorveglianza, custodia e accoglienza;23/02/2024
775;1;9999999;1.733,52;1.733,52;SOGEST ITALIA SRL;Z08372EAAD;20/02/2024;1805;0;714;1;Spese correnti;3;Acquisto di beni e servizi;2;Acquisto di servizi;13;Servizi ausiliari per il funzionamento dell'ente;1;Servizi di sorveglianza, custodia e accoglienza;23/02/2024
776;1;9999999;231,55;4.036,27;SERENISSIMA RISTORAZIONE SPA;932853027C;20/02/2024;4260;0;731;1;Spese correnti;3;Acquisto di beni e servizi;2;Acquisto di servizi;15;Contratti di servizio pubblico;6;Contratti di servizio per le mense scolastiche;23/02/2024
776;2;9999999;231,55;4.036,27;SERENISSIMA RISTORAZIONE SPA;932853027C;20/02/2024;4260;0;731;1;Spese correnti;3;Acquisto di beni e servizi;2;Acquisto di servizi;15;Contratti di servizio pubblico;6;Contratti di servizio per le mense scolastiche;23/02/2024
776;3;9999999;252,6;4.036,27;SERENISSIMA RISTORAZIONE SPA;932853027C;20/02/2024;4260;0;731;1;Spese correnti;3;Acquisto di beni e servizi;2;Acquisto di servizi;15;Contratti di servizio pubblico;6;Contratti di servizio per le mense scolastiche;23/02/2024
776;4;9999999;663,06;4.036,27;SERENISSIMA RISTORAZIONE SPA;932853027C;20/02/2024;4260;0;731;1;Spese correnti;3;Acquisto di beni e servizi;2;Acquisto di servizi;15;Contratti di servizio pubblico;6;Contratti di servizio per le mense scolastiche;23/02/2024
